{"text_format":"1","workbook":"xlsx","n_sheets":8,"sheets":["IQEF Intake Form","MeasureCode","Paste Values","Copy Values","Project Performance","Module1","Module2","Module3"],"not_rendered":{"charts":0,"images":2,"macros":1,"external_links":0,"defined_names":87,"comments":1,"pivot_tables":0},"unopened":[{"sheet":"Module1","index":5,"reason":"part_missing"},{"sheet":"Module2","index":6,"reason":"part_missing"},{"sheet":"Module3","index":7,"reason":"part_missing"}],"bounds":{"document_bytes":16777216,"sheet_cells":100000,"rows_first":2000,"rows_last":500,"rows_between":2000,"halvings":0,"cell_chars":16384,"cell_head_chars":4096},"cells_cut":0,"cells_raw":0,"read":"whole","date_system":"1900"}

{"sheet":"IQEF Intake Form","index":0,"n_rows":106,"n_cols":23,"rows_kept":106,"cut":false,"hidden":false,"merged":[[2,8,2,9],[0,8,0,9],[1,8,1,9]]}
[null,null,null,null,null,null,null,null,"TOTAL PROJECT COST W/O CUSTOMER CONTRIBUTION",null,0]
[null,null,null,null,null,null,null,null,"CUSTOMER CONTRIBUTION",null,0]
[null,null,null,null,null,"Project Site  Address:",null,null,"TOTAL PROJECT COST",null,{"$f":"K1-K2","v":0},null,null,null,null,null,null,null,null,null,null,null,{"$f":"SUM(SUMPRODUCT(Q7:Q26,M7:M26),SUMPRODUCT(N29:N33,L29:L33),SUMPRODUCT(R36:R38,M36:M38),PRODUCT(M41,I41),PRODUCT(P44,J44),SUMPRODUCT(Q48:Q50,O48:O50),SUMPRODUCT(N54:N56,I54:I56),PRODUCT(K59,I59),SUMPRODUCT(N64:N66,J64:J66),SUMPRODUCT(L70:L73,I70:I73),L76:L77,SUMPRODUCT(K81:K86,H81:H86),SUMPRODUCT(J91:J93,G91:G93),SUMPRODUCT(L98:L99,J98:J99))","v":0}]
[null,null,null,null,null,"This form must be submitted along with the Income Qualified Efficiency Fund Application, to  include corresponding specification sheets for the measures listed in this form. "]
[null,null,null,null,null,"Lighting",null,{"$f":"VLOOKUP(K5, lighthrdef, 3, FALSE)","v":{"$error":"#N/A"}},"Existing Watts per Fixture (W)","Proposed Watts per Fixture (W)","Location","Existing Quantity","Proposed Quantity","Existing Equipment Age","Space Conditioning","Total Installed Cost","Materials Cost (per Bulb or Fixture)","Manufacturer","Model","Existing Lamp Description"]
[{"$f":"'Copy Values'!A4","v":"kWh"},{"$f":"'Copy Values'!B4","v":"kW"},{"$f":"'Copy Values'!D4","v":"MMBtu"},"Equivalent MMBtu",null,"Bulbs and Fixtures",null,null,null,null,1]
[{"$f":"'Copy Values'!A5","v":0},{"$f":"'Copy Values'!B5","v":0},{"$f":"'Copy Values'!D5","v":0},{"$f":"SUM(C7,(A7*3412.14/10^6))","v":0},null,null,null,{"$f":"VLOOKUP(K7, lighthrdef, 3, FALSE)","v":"Choose Location"},null,null,1,null,null,null,null,{"$f":"Q7/matcost*projcost","v":{"$error":"#DIV/0!"}},0]
[{"$f":"'Copy Values'!A6","v":0},{"$f":"'Copy Values'!B6","v":0},{"$f":"'Copy Values'!D6","v":0},{"$f":"SUM(C8,(A8*3412.14/10^6))","v":0},null,null,null,"Choose Location",null,null,1,null,null,null,null,{"$f":"Q8/matcost*projcost","v":{"$error":"#DIV/0!"}}]
[{"$f":"'Copy Values'!A7","v":0},{"$f":"'Copy Values'!B7","v":0},{"$f":"'Copy Values'!D7","v":0},0,null,null,null,"Choose Location",null,null,1,null,null,null,null,{"$f":"Q9/matcost*projcost","v":{"$error":"#DIV/0!"}}]
[{"$f":"'Copy Values'!A8","v":0},{"$f":"'Copy Values'!B8","v":0},{"$f":"'Copy Values'!D8","v":0},0,null,null,null,"Choose Location",null,null,1,null,null,null,null,{"$error":"#DIV/0!"}]
[{"$f":"'Copy Values'!A9","v":0},{"$f":"'Copy Values'!B9","v":0},{"$f":"'Copy Values'!D9","v":0},0,null,null,null,"Choose Location",null,null,1,null,null,null,null,{"$error":"#DIV/0!"}]
[{"$f":"'Copy Values'!A10","v":0},{"$f":"'Copy Values'!B10","v":0},{"$f":"'Copy Values'!D10","v":0},0,null,null,null,"Choose Location",null,null,1,null,null,null,null,{"$error":"#DIV/0!"}]
[{"$f":"'Copy Values'!A11","v":0},{"$f":"'Copy Values'!B11","v":0},{"$f":"'Copy Values'!D11","v":0},0,null,null,null,"Choose Location",null,null,1,null,null,null,null,{"$error":"#DIV/0!"}]
[{"$f":"'Copy Values'!A12","v":0},{"$f":"'Copy Values'!B12","v":0},{"$f":"'Copy Values'!D12","v":0},0,null,null,null,"Choose Location",null,null,1,null,null,null,null,{"$error":"#DIV/0!"}]
[{"$f":"'Copy Values'!A13","v":0},{"$f":"'Copy Values'!B13","v":0},{"$f":"'Copy Values'!D13","v":0},0,null,null,null,"Choose Location",null,null,1,null,null,null,null,{"$error":"#DIV/0!"}]
[{"$f":"'Copy Values'!A14","v":0},{"$f":"'Copy Values'!B14","v":0},{"$f":"'Copy Values'!D14","v":0},0,null,null,null,"Choose Location",null,null,1,null,null,null,null,{"$error":"#DIV/0!"}]
[{"$f":"'Copy Values'!A15","v":0},{"$f":"'Copy Values'!B15","v":0},{"$f":"'Copy Values'!D15","v":0},0,null,null,null,"Choose Location",null,null,1,null,null,null,null,{"$error":"#DIV/0!"}]
[{"$f":"'Copy Values'!A16","v":0},{"$f":"'Copy Values'!B16","v":0},{"$f":"'Copy Values'!D16","v":0},0,null,null,null,"Choose Location",null,null,1,null,null,null,null,{"$error":"#DIV/0!"}]
[{"$f":"'Copy Values'!A17","v":0},{"$f":"'Copy Values'!B17","v":0},{"$f":"'Copy Values'!D17","v":0},0,null,null,null,"Choose Location",null,null,1,null,null,null,null,{"$error":"#DIV/0!"}]
[{"$f":"'Copy Values'!A18","v":0},{"$f":"'Copy Values'!B18","v":0},{"$f":"'Copy Values'!D18","v":0},0,null,null,null,"Choose Location",null,null,1,null,null,null,null,{"$error":"#DIV/0!"}]
[{"$f":"'Copy Values'!A19","v":0},{"$f":"'Copy Values'!B19","v":0},{"$f":"'Copy Values'!D19","v":0},0,null,null,null,"Choose Location",null,null,1,null,null,null,null,{"$error":"#DIV/0!"}]
[{"$f":"'Copy Values'!A20","v":0},{"$f":"'Copy Values'!B20","v":0},{"$f":"'Copy Values'!D20","v":0},0,null,null,null,"Choose Location",null,null,1,null,null,null,null,{"$error":"#DIV/0!"}]
[{"$f":"'Copy Values'!A21","v":0},{"$f":"'Copy Values'!B21","v":0},{"$f":"'Copy Values'!D21","v":0},0,null,null,null,"Choose Location",null,null,1,null,null,null,null,{"$error":"#DIV/0!"}]
[{"$f":"'Copy Values'!A22","v":0},{"$f":"'Copy Values'!B22","v":0},{"$f":"'Copy Values'!D22","v":0},0,null,null,null,"Choose Location",null,null,1,null,null,null,null,{"$error":"#DIV/0!"}]
[{"$f":"'Copy Values'!A23","v":0},{"$f":"'Copy Values'!B23","v":0},{"$f":"'Copy Values'!D23","v":0},0,null,null,null,"Choose Location",null,null,1,null,null,null,null,{"$error":"#DIV/0!"}]
[{"$f":"'Copy Values'!A24","v":0},{"$f":"'Copy Values'!B24","v":0},{"$f":"'Copy Values'!D24","v":0},0,null,null,null,"Choose Location",null,null,1,null,null,null,null,{"$error":"#DIV/0!"}]
[{"$f":"SUM(A7:A26)","v":0},{"$f":"SUM(B7:B26)","v":0},0,0]
[{"$f":"'Copy Values'!A26","v":"kWh"},{"$f":"'Copy Values'!B26","v":"kW"},{"$f":"'Copy Values'!D26","v":"MMBtu"},"Equivalent MMBtu",null,"Controls",null,"Controlled Wattage (Watts)","Existing Operating Hours","Savings Factor (operating hours or wattage reduction, as applicable)","Location","Quantity","Total Installed Cost","Materials Cost per Unit"]
[{"$f":"'Copy Values'!A27","v":0},{"$f":"'Copy Values'!B27","v":0},{"$f":"'Copy Values'!D27","v":0},{"$f":"SUM(C29,(A29*3412.14/10^6))","v":0},null,null,null,null,{"$f":"VLOOKUP(K29, lighthrdef, 3, FALSE)","v":"Choose Location"},null,1,null,{"$f":"N29/matcost*projcost","v":{"$error":"#DIV/0!"}}]
[{"$f":"'Copy Values'!A28","v":0},{"$f":"'Copy Values'!B28","v":0},{"$f":"'Copy Values'!D28","v":0},0,null,null,null,null,{"$f":"VLOOKUP(K30, lighthrdef, 3, FALSE)","v":"Choose Location"},null,1,null,{"$f":"N30/matcost*projcost","v":{"$error":"#DIV/0!"}}]
[{"$f":"'Copy Values'!A29","v":0},{"$f":"'Copy Values'!B29","v":0},{"$f":"'Copy Values'!D29","v":0},0,null,null,null,null,{"$f":"VLOOKUP(K31, lighthrdef, 3, FALSE)","v":"Choose Location"},null,1,null,{"$f":"N31/matcost*projcost","v":{"$error":"#DIV/0!"}}]
[{"$f":"'Copy Values'!A30","v":0},{"$f":"'Copy Values'!B30","v":0},{"$f":"'Copy Values'!D30","v":0},0,null,null,null,null,{"$f":"VLOOKUP(K32, lighthrdef, 3, FALSE)","v":"Choose Location"},null,1,null,{"$f":"N32/matcost*projcost","v":{"$error":"#DIV/0!"}}]
[{"$f":"'Copy Values'!A31","v":0},{"$f":"'Copy Values'!B31","v":0},{"$f":"'Copy Values'!D31","v":0},0,null,null,null,null,{"$f":"VLOOKUP(K33, lighthrdef, 3, FALSE)","v":"Choose Location"},null,1,null,{"$f":"N33/matcost*projcost","v":{"$error":"#DIV/0!"}}]
[{"$f":"SUM(A29:A33)","v":0},{"$f":"SUM(B29:B33)","v":0},0,0]
[{"$f":"'Copy Values'!A33","v":"kWh"},{"$f":"'Copy Values'!B33","v":"kW"},{"$f":"'Copy Values'!D33","v":"MMBtu"},"Equivalent MMBtu",null,"Space Heating","Existing Equipment Age","AFUE Existing (%)","AFUE Proposed (%)","Input Capacity of Proposed Equipment (Btu/hr)","Condensing Unit? (Y/N)","Existing Quantity","Proposed Quantity","If furnace, efficient BLPM motor equipped? (Y/N)","Beginning Operating Month","Ending Operating Month","Total Installed Cost","Materials Cost per Unit","Manufacturer","Model"]
[{"$f":"'Copy Values'!A34","v":0},{"$f":"'Copy Values'!B34","v":0},{"$f":"'Copy Values'!D34","v":0},{"$f":"SUM(C36,(A36*3412.14/10^6))","v":0},null,null,null,null,null,null,null,null,null,null,null,null,{"$f":"R36/matcost*projcost","v":{"$error":"#DIV/0!"}}]
[{"$f":"'Copy Values'!A35","v":0},{"$f":"'Copy Values'!B35","v":0},{"$f":"'Copy Values'!D35","v":0},0,null,null,null,null,null,null,null,null,null,null,null,null,{"$f":"R37/matcost*projcost","v":{"$error":"#DIV/0!"}}]
[{"$f":"'Copy Values'!A36","v":0},{"$f":"'Copy Values'!B36","v":0},{"$f":"'Copy Values'!D36","v":0},0,null,null,null,null,null,null,null,null,null,null,null,null,{"$f":"R38/matcost*projcost","v":{"$error":"#DIV/0!"}}]
[{"$f":"SUM(A36:A38)","v":0},{"$f":"SUM(B36:B38)","v":0},0,0]
[{"$f":"'Copy Values'!A38","v":"kWh"},{"$f":"'Copy Values'!B38","v":"kW"},{"$f":"'Copy Values'!D38","v":"MMBtu"},"Equivalent MMBtu",null,"Air Conditioning","Capacity (Btu/hr)","Reverse Cycle (Y/N)?","Quantity","Existing EER","Proposed EER","Total Installed Cost","Materials Cost per Unit","Manufacturer","Model"]
[{"$f":"'Copy Values'!A39","v":0},{"$f":"'Copy Values'!B39","v":0},{"$f":"'Copy Values'!D39","v":0},{"$f":"SUM(C41,(A41*3412.14/10^6))","v":0},null,"Room Air Conditioner",null,null,null,null,null,{"$f":"M41/matcost*projcost","v":{"$error":"#DIV/0!"}}]
[]
[{"$f":"'Copy Values'!A41","v":"kWh"},{"$f":"'Copy Values'!B41","v":"kW"},{"$f":"'Copy Values'!D41","v":"MMBtu"},"Equivalent MMBtu",null,null,"Type","Heat Type","Capacity (Btu/hr)","Quantity","Existing EER","Proposed EER","Existing SEER","Proposed SEER","Total Installed Cost","Materials Cost per Unit","Manufacturer","Model"]
[{"$f":"'Copy Values'!A42","v":0},{"$f":"'Copy Values'!B42","v":0},{"$f":"'Copy Values'!D42","v":0},{"$f":"SUM(C44,(A44*3412.14/10^6))","v":0},null,"Central Unitary/Split System, PTAC",null,null,null,null,null,null,null,null,{"$f":"P44/matcost*projcost","v":{"$error":"#DIV/0!"}}]
[]
[null,null,null,null,null,"Chiller"]
[{"$f":"'Copy Values'!A45","v":"kWh"},{"$f":"'Copy Values'!B45","v":"kW"},{"$f":"'Copy Values'!D45","v":"MMBtu"},"Equivalent MMBtu",null,"Type","Nominal Cooling Capacity (tons)","Existing EER or kW/ton","Proposed EER or kW/ton","Existing IPLV","Proposed IPLV","Beginning Operating Month","Ending Operating Month","Annual Operating Hours","Quantity","Total Installed Cost","Materials Cost per Unit","Manufacturer","Model"]
[{"$f":"'Copy Values'!A46","v":0},{"$f":"'Copy Values'!B46","v":0},{"$f":"'Copy Values'!D46","v":0},{"$f":"SUM(C48,(A48*3412.14/10^6))","v":0},null,null,null,null,null,null,null,null,null,null,null,{"$f":"Q48/matcost*projcost","v":{"$error":"#DIV/0!"}}]
[{"$f":"'Copy Values'!A47","v":0},{"$f":"'Copy Values'!B47","v":0},{"$f":"'Copy Values'!D47","v":0},0,null,null,null,null,null,null,null,null,null,null,null,{"$f":"Q49/matcost*projcost","v":{"$error":"#DIV/0!"}}]
[{"$f":"'Copy Values'!A48","v":0},{"$f":"'Copy Values'!B48","v":0},{"$f":"'Copy Values'!D48","v":0},0,null,null,null,null,null,null,null,null,null,null,null,{"$f":"Q50/matcost*projcost","v":{"$error":"#DIV/0!"}}]
[{"$f":"SUM(A48:A50)","v":0},{"$f":"SUM(B48:B50)","v":0},0,0]
[null,null,null,null,null,"Heat Pump"]
[{"$f":"'Copy Values'!A51","v":"kWh"},{"$f":"'Copy Values'!B51","v":"kW"},{"$f":"'Copy Values'!D51","v":"MMBtu"},"Equivalent MMBtu",null,"Type","Heating Capacity (Btu/hr)","Cooling Capacity (Btu/hr)","Quantity","Proposed EER","Proposed COP","Proposed SEER","Total Installed Cost","Materials Cost per Unit","Manufacturer","Model"]
[{"$f":"'Copy Values'!A52","v":0},{"$f":"'Copy Values'!B52","v":0},{"$f":"'Copy Values'!D52","v":0},{"$f":"SUM(C54,(A54*3412.14/10^6))","v":0},null,null,null,null,null,null,null,null,{"$f":"N54/matcost*projcost","v":{"$error":"#DIV/0!"}}]
[{"$f":"'Copy Values'!A53","v":0},{"$f":"'Copy Values'!B53","v":0},{"$f":"'Copy Values'!D53","v":0},0,null,null,null,null,null,null,null,null,{"$f":"N55/matcost*projcost","v":{"$error":"#DIV/0!"}}]
[{"$f":"'Copy Values'!A54","v":0},{"$f":"'Copy Values'!B54","v":0},{"$f":"'Copy Values'!D54","v":0},0,null,null,null,null,null,null,null,null,{"$f":"N56/matcost*projcost","v":{"$error":"#DIV/0!"}}]
[{"$f":"SUM(A54:A56)","v":0},{"$f":"SUM(B54:B56)","v":0},0,0]
[{"$f":"'Copy Values'!A56","v":"kWh"},{"$f":"'Copy Values'!B56","v":"kW"},{"$f":"'Copy Values'!D56","v":"MMBtu"},"Equivalent MMBtu",null,"Advanced Thermostat\nType","Heat Type","Central Air Conditioning? (Y/N)","Quantity","Total Installed Cost","Materials Cost","Manufacturer","Model"]
[{"$f":"'Copy Values'!A57","v":0},{"$f":"'Copy Values'!B57","v":0},{"$f":"'Copy Values'!D57","v":0},{"$f":"SUM(C59,(A59*3412.14/10^6))","v":0},null,null,null,null,null,{"$f":"K59/matcost*projcost","v":{"$error":"#DIV/0!"}}]
[]
[null,null,null,null,null,"Hot Water"]
[null,null,null,null,null,"Water Heating"]
[{"$f":"'Copy Values'!A61","v":"kWh"},{"$f":"'Copy Values'!B61","v":"kW"},{"$f":"'Copy Values'!D61","v":"MMBtu"},"Equivalent MMBtu",null,"Type","Number of Households Served","Existing Efficiency","Proposed Efficiency","Quantity","Proposed Tank Capacity (Gallons)","Proposed Input Capacity (Btu/hr)","Total Installed Cost","Materials Cost per Unit","Manufacturer","Model"]
[{"$f":"'Copy Values'!A62","v":0},{"$f":"'Copy Values'!B62","v":0},{"$f":"'Copy Values'!D62","v":0},{"$f":"SUM(C64,(A64*3412.14/10^6))","v":0},null,null,null,null,null,null,null,null,{"$f":"N64/matcost*projcost","v":{"$error":"#DIV/0!"}}]
[{"$f":"'Copy Values'!A63","v":0},{"$f":"'Copy Values'!B63","v":0},{"$f":"'Copy Values'!D63","v":0},0,null,null,null,null,null,null,null,null,{"$f":"N65/matcost*projcost","v":{"$error":"#DIV/0!"}}]
[{"$f":"'Copy Values'!A64","v":0},{"$f":"'Copy Values'!B64","v":0},{"$f":"'Copy Values'!D64","v":0},0,null,null,null,null,null,null,null,null,{"$f":"N66/matcost*projcost","v":{"$error":"#DIV/0!"}}]
[{"$f":"SUM(A64:A66)","v":0},{"$f":"SUM(B64:B66)","v":0},0,0]
[null,null,null,null,null,"Hot Water Efficiency"]
[{"$f":"'Copy Values'!A67","v":"kWh"},{"$f":"'Copy Values'!B67","v":"kW"},{"$f":"'Copy Values'!D67","v":"MMBtu"},"Equivalent MMBtu",null,"Aerators, Showerheads & Restrictor Valves","Location","Hot Water Type","Quantity","Proposed Flow Rate (GPM)","Total Installed Cost","Materials Cost per Unit"]
[{"$f":"'Copy Values'!A68","v":0},{"$f":"'Copy Values'!B68","v":0},{"$f":"'Copy Values'!D68","v":0},{"$f":"SUM(C70,(A70*3412.14/10^6))","v":0},null,null,null,null,null,null,{"$f":"L70/matcost*projcost","v":{"$error":"#DIV/0!"}}]
[{"$f":"'Copy Values'!A69","v":0},{"$f":"'Copy Values'!B69","v":0},{"$f":"'Copy Values'!D69","v":0},0,null,null,null,null,null,null,{"$f":"L71/matcost*projcost","v":{"$error":"#DIV/0!"}}]
[{"$f":"'Copy Values'!A70","v":0},{"$f":"'Copy Values'!B70","v":0},{"$f":"'Copy Values'!D70","v":0},0,null,null,null,null,null,null,{"$f":"L72/matcost*projcost","v":{"$error":"#DIV/0!"}}]
[{"$f":"'Copy Values'!A71","v":0},{"$f":"'Copy Values'!B71","v":0},{"$f":"'Copy Values'!D71","v":0},0,null,null,null,null,null,null,{"$f":"L73/matcost*projcost","v":{"$error":"#DIV/0!"}}]
[{"$f":"SUM(A70:A73)","v":0},{"$f":"SUM(B70:B73)","v":0},0,0]
[{"$f":"'Copy Values'!A73","v":"kWh"},{"$f":"'Copy Values'!B73","v":"kW"},{"$f":"'Copy Values'!D73","v":"MMBtu"},"Equivalent MMBtu",null,null,"Feet of pipe or No. tanks insulated","Hot Water Type","Insulation R-Value","Pipe Diameter (if Pipe Wrap), in inches.","Total Installed Cost","Total Materials Cost"]
[{"$f":"'Copy Values'!A74","v":0},{"$f":"'Copy Values'!B74","v":0},{"$f":"'Copy Values'!D74","v":0},{"$f":"SUM(C76,(A76*3412.14/10^6))","v":0},null,"Pipe Wrap",null,null,null,null,{"$f":"L76/matcost*projcost","v":{"$error":"#DIV/0!"}}]
[{"$f":"'Copy Values'!A75","v":0},{"$f":"'Copy Values'!B75","v":0},{"$f":"'Copy Values'!D75","v":0},0,null,"Tank Insulation",null,null,null,null,{"$f":"L77/matcost*projcost","v":{"$error":"#DIV/0!"}}]
[{"$f":"SUM(A76:A77)","v":0},{"$f":"SUM(B76:B77)","v":0},0,0]
[null,null,null,null,null,"Variable Frequency Drives"]
[{"$f":"'Copy Values'!A78","v":"kWh"},{"$f":"'Copy Values'!B78","v":"kW"},{"$f":"'Copy Values'!D78","v":"MMBtu"},"Equivalent MMBtu",null,"Application","Motor HP","Quantity","Annual Operating Hours","Total Installed Cost","Materials Cost per Unit"]
[{"$f":"'Copy Values'!A79","v":0},{"$f":"'Copy Values'!B79","v":0},{"$f":"'Copy Values'!D79","v":0},{"$f":"SUM(C81,(A81*3412.14/10^6))","v":0},null,null,null,null,null,{"$f":"K81/matcost*projcost","v":{"$error":"#DIV/0!"}}]
[{"$f":"'Copy Values'!A80","v":0},{"$f":"'Copy Values'!B80","v":0},{"$f":"'Copy Values'!D80","v":0},0,null,null,null,null,null,{"$error":"#DIV/0!"}]
[{"$f":"'Copy Values'!A81","v":0},{"$f":"'Copy Values'!B81","v":0},{"$f":"'Copy Values'!D81","v":0},0,null,null,null,null,null,{"$error":"#DIV/0!"}]
[{"$f":"'Copy Values'!A82","v":0},{"$f":"'Copy Values'!B82","v":0},{"$f":"'Copy Values'!D82","v":0},0,null,null,null,null,null,{"$error":"#DIV/0!"}]
[{"$f":"'Copy Values'!A83","v":0},{"$f":"'Copy Values'!B83","v":0},{"$f":"'Copy Values'!D83","v":0},0,null,null,null,null,null,{"$error":"#DIV/0!"}]
[{"$f":"'Copy Values'!A84","v":0},{"$f":"'Copy Values'!B84","v":0},{"$f":"'Copy Values'!D84","v":0},0,null,null,null,null,null,{"$error":"#DIV/0!"}]
[{"$f":"SUM(A81:A86)","v":0},{"$f":"SUM(B81:B86)","v":0},0,0]
[]
[]
[]
[]
[]
[]
[]
[null,null,null,null,null,"Ventilation"]
[null,null,null,null,null,"Exhaust-only, in-unit"]
[{"$f":"'Copy Values'!A95","v":"kWh"},{"$f":"'Copy Values'!B95","v":"kW"},{"$f":"'Copy Values'!D95","v":"MMBtu"},"Equivalent MMBtu",null,"Type","Annual Operating Hours","CFM Rating","Power Requirement (Watts)","Quantity","Total Installed Cost","Materials Cost per Unit","Manufacturer","Model"]
[{"$f":"'Copy Values'!A96","v":0},{"$f":"'Copy Values'!B96","v":0},{"$f":"'Copy Values'!D96","v":0},{"$f":"SUM(C98,(A98*3412.14/10^6))","v":0},null,null,null,null,null,null,{"$f":"L98/matcost*projcost","v":{"$error":"#DIV/0!"}}]
[{"$f":"'Copy Values'!A97","v":0},{"$f":"'Copy Values'!B97","v":0},{"$f":"'Copy Values'!D97","v":0},0,null,null,null,null,null,null,{"$f":"L99/matcost*projcost","v":{"$error":"#DIV/0!"}}]
[{"$f":"SUM(A98:A99)","v":0},{"$f":"SUM(B98:B99)","v":0},0,0]
["TOTAL (KWh)","KW (Elec)","(MMBtu)","(Equiv. MMBtu)",null,"Other/Custom Measure"]
[{"$f":"SUM(A100,A94,A87,A78,A74,A67,A59,A57,A51,A44,A41,A39,A34,A27)","v":0},{"$f":"SUM(B100,B94,B87,B78,B74,B67,B59,B57,B51,B44,B41,B39,B34,B27)","v":0},0,{"$f":"D100+D94+D87+D78+D74+D67+D59+D57+D51+D44+D41+D39+D34+D27","v":0},null,"Please fully describe the measure, including costs, savings estimates and relevant information used to derive savings estimates."]
[]
["YIELD ($/MWh)",null,"($/MMBtu)","($/Mmbtu Equiv)"]
[{"$f":"K3/(A102/1000)","v":{"$error":"#DIV/0!"}},null,{"$f":"K3/(C102/1000)","v":{"$error":"#DIV/0!"}},{"$f":"K3/(D102)","v":{"$error":"#DIV/0!"}}]
["Electric only",null,"Gas only","Mixed measures"]

{"sheet":"MeasureCode","index":1,"n_rows":77,"n_cols":12,"rows_kept":77,"cut":false,"hidden":true,"merged":[]}
["Air Conditioning Efficiency","Water chilling system",null,null,null,99,null,"Jan",null,1,"Select","Choose Location"]
["Air Conditioning Efficiency","AC, Cool Choice tier 2 0-65 KBTU/hr",null,null,null,98,null,"Feb",null,2,"In Unit",1150]
["Air Conditioning Efficiency","Heat pump, air, Cool Choice tier 2 0-65 KBTU/hr",null,null,"Energy Star/CEE Tier 1",97,null,"Mar",null,3,"Common Area - Indoor Hall/Stairway/Corridor",8760]
["Air Conditioning Efficiency","Heat pump, air source",null,null,"CEE Tier 2",96,null,"Apr",null,4,"Common Area - Laundry/Other",5950]
["Air Conditioning Efficiency","Unitary air conditioning system",null,null,"CEE Tier 3",95,null,"May",null,5,"Outdoor",4380]
["Air Conditioning Efficiency","Ductless Mini Split",null,null,null,94,null,"Jun",null,6,"Other","Specify"]
["Air Conditioning Efficiency","Package terminal heat hump",null,null,null,93,null,"Jul"]
["Air Conditioning Efficiency","Energy Star CEE Tier 1 AC, incremental",null,null,null,92,null,"Aug"]
["Cooking and Laundry","Energy Star dishwasher",null,null,null,91,null,"Sep"]
["Hot Water Efficiency","Low flow showerhead",null,null,null,90,null,"Oct"]
["Hot Water Efficiency","Faucet aerator/flow restrictor",null,null,null,89,null,"Nov"]
["Hot Water Efficiency","Shower Restriction Valve",null,null,"Gas Storage",88,null,"Dec"]
["Hot Water Efficiency","Insulate hot water pipes",null,null,"Condensing gas storage",87]
["Hot Water Efficiency","Insulate hot water tank",null,null,"Tankless",86]
["Hot Water Replacement","Replace hot water, stand alone natural gas",null,null,"Heat Pump",85]
["Hot Water Replacement","Replace hot water, indirect fired natural gas",null,null,null,84]
["Lighting Efficiency/Controls","Occupancy sensor",null,null,null,83]
["Lighting Efficiency/Controls","Photocell switch",null,null,null,82]
["Lighting Efficiency/Controls","Timer control",null,null,"Heating Only",81]
["Lighting Efficiency/Controls","Dimming control and ballast",null,null,"Cooling Only",80]
["Light Bulb/Lamp","LED Screw Base Lamp",null,null,"Heating & Cooling",79]
["Light Bulb/Lamp","LED 4' Linear Replacement Lamp",null,null,"No Conditioning",78]
["Light Bulb/Lamp","LED 2' Linear Replacement Lamp",null,null,null,77]
["Lighting Hardwired Fixture","LED Wall-Mount Area Fixture (WallPack)",null,null,null,76]
["Lighting Hardwired Fixture","LED Parking Garage/Canopy Fixture",null,null,"Kitchen",75]
["Lighting Hardwired Fixture","Exit signs, LED",null,null,"Bathroom",74]
["Lighting Hardwired Fixture","LED Surface of Pendant Downlight",null,null,null,73]
["Lighting Hardwired Fixture","LED Recessed Lighting Fixture 2X4",null,null,"Electric",72]
["Lighting Hardwired Fixture","LED Recessed Lighting Fixture 1X4",null,null,"Gas",71]
["Lighting Hardwired Fixture","LED Wall Wash Fixture",null,null,null,70]
["Lighting Hardwired Fixture","LED Recessed Surface or Pendant Downlight"]
["Lighting Hardwired Fixture","LED Recessed Lighting Fixture 2X2",null,null,"Air Source"]
["Lighting Hardwired Fixture","LED Outdoor Pole/Arm Area or Roadway Fixture",null,null,"Water Source"]
["Lighting Hardwired Fixture","LED Flood Light Fixture",null,null,"Ductless Mini Split"]
["Lighting Hardwired Fixture","LED Outdoor Decorative Pole/Arm Area or Roadway Fuxture",null,null,"Packaged Terminal"]
["Lighting Hardwired Fixture","Miscillaneous LEDs"]
["Lighting Hardwired Fixture","LED High- and Low-Bay Fixtures"]
["Lighting Hardwired Fixture","LED Surface and Suspended Linear Fixture"]
["Light Bulb/Lamp","Compact fluorescent screw-base bulb",null,null,"Supply Fan"]
["Light Bulb/Lamp","Specialty Compact Fluorescent Bulb",null,null,"Return Fan"]
["Lighting Hardwired Fixture","Relamp/Reballast to High Performance T8",null,null,"Cooling Water Pump"]
["Lighting Hardwired Fixture","Relamp/reballast conversion existing fixture to standard T8",null,null,"Hot Water Pump"]
["Lighting Hardwired Fixture","Linear fluorescent High Performance T8, Troffer/Wrap fixture",null,null,"WSHP Circulation Pump"]
["Lighting Hardwired Fixture","Linear fluorescent T8"]
["Lighting Hardwired Fixture","Compact fluorescent interior fixture"]
["Lighting Hardwired Fixture","Linear fluorescent High Performance T8",null,null,"Energy Star"]
["Motor Controls","Variable frequency drive motor control",null,null,"Energy Star Most Efficient"]
["Refrigeration","CEE Tier 2 refrigerator, incremental cost"]
["Refrigeration","Energy star refrigerator"]
["Refrigeration","Energy star refrigerator, early replacement",null,null,"Split"]
["Space Heat Efficiency","Furnace fan motor",null,null,"Packaged"]
["Space Heat Replacement","Replace furnace, natural gas"]
["Space Heat Replacement","Replace boiler, natural gas"]
["Thermal Shell","Attic/ceiling/wall insulation",null,null,"None"]
["Thermal Shell","Window improvements",null,null,"Electric"]
["Ventilation","Exhaust fan, ceiling",null,null,"Gas"]
["Lighting Efficiency/Controls","Lighting system, interior power density reduction"]
[null,null,null,null,"Gas"]
[null,null,null,null,"Electric"]
[]
[null,null,null,null,"Yes"]
[null,null,null,null,"No"]
[]
[null,null,null,null,"Air cooled"]
[null,null,null,null,"Air cooled w/out condenser, elec. operated"]
[null,null,null,null,"Water cooled, elec. operated, reciprocating"]
[null,null,null,null,"Water cooled, elec. operated, positive displacement"]
[null,null,null,null,"Water cooled, elec. operated, centrifugal"]
[]
[]
[null,null,null,null,"Advanced/Smart"]
[null,null,null,null,"Programmable"]
[]
[]
[null,null,null,null,"Top Freezer"]
[null,null,null,null,"Bottom Freezer"]
[null,null,null,null,"Side by Side"]

{"sheet":"Paste Values","index":2,"n_rows":126,"n_cols":18,"rows_kept":126,"cut":false,"hidden":true,"merged":[]}
[{"$f":"VALUE('IQEF Intake Form'!F3)","v":{"$error":"#VALUE!"}},{"$f":"VALUE('IQEF Intake Form'!G3)","v":0},{"$f":"VALUE('IQEF Intake Form'!H3)","v":0},{"$f":"VALUE('IQEF Intake Form'!I3)","v":{"$error":"#VALUE!"}},{"$f":"VALUE('IQEF Intake Form'!J3)","v":0},{"$f":"VALUE('IQEF Intake Form'!K3)","v":0},{"$f":"VALUE('IQEF Intake Form'!L3)","v":0},{"$f":"VALUE('IQEF Intake Form'!M3)","v":0},{"$f":"VALUE('IQEF Intake Form'!N3)","v":0},{"$f":"VALUE('IQEF Intake Form'!O3)","v":0},{"$f":"VALUE('IQEF Intake Form'!P3)","v":0},{"$f":"VALUE('IQEF Intake Form'!Q3)","v":0},{"$f":"VALUE('IQEF Intake Form'!R3)","v":0},{"$f":"VALUE('IQEF Intake Form'!S3)","v":0},{"$f":"VALUE('IQEF Intake Form'!T3)","v":0},{"$f":"VALUE('IQEF Intake Form'!U3)","v":0},{"$f":"VALUE('IQEF Intake Form'!V3)","v":0},{"$f":"VALUE('IQEF Intake Form'!W3)","v":0}]
[{"$f":"VALUE('IQEF Intake Form'!F4)","v":{"$error":"#VALUE!"}},{"$f":"VALUE('IQEF Intake Form'!G4)","v":0},{"$f":"VALUE('IQEF Intake Form'!H4)","v":0},{"$f":"VALUE('IQEF Intake Form'!I4)","v":0},{"$f":"VALUE('IQEF Intake Form'!J4)","v":0},{"$f":"VALUE('IQEF Intake Form'!K4)","v":0},{"$f":"VALUE('IQEF Intake Form'!L4)","v":0},{"$f":"VALUE('IQEF Intake Form'!M4)","v":0},{"$f":"VALUE('IQEF Intake Form'!N4)","v":0},{"$f":"VALUE('IQEF Intake Form'!O4)","v":0},{"$f":"VALUE('IQEF Intake Form'!P4)","v":0},{"$f":"VALUE('IQEF Intake Form'!Q4)","v":0},{"$f":"VALUE('IQEF Intake Form'!R4)","v":0},{"$f":"VALUE('IQEF Intake Form'!S4)","v":0},{"$f":"VALUE('IQEF Intake Form'!T4)","v":0},{"$f":"VALUE('IQEF Intake Form'!U4)","v":0},{"$f":"VALUE('IQEF Intake Form'!V4)","v":0},{"$f":"VALUE('IQEF Intake Form'!W4)","v":0}]
[{"$f":"VALUE('IQEF Intake Form'!F5)","v":{"$error":"#VALUE!"}},{"$f":"VALUE('IQEF Intake Form'!G5)","v":0},{"$f":"VALUE('IQEF Intake Form'!H5)","v":{"$error":"#N/A"}},{"$f":"VALUE('IQEF Intake Form'!I5)","v":{"$error":"#VALUE!"}},{"$f":"VALUE('IQEF Intake Form'!J5)","v":{"$error":"#VALUE!"}},{"$f":"VALUE('IQEF Intake Form'!K5)","v":{"$error":"#VALUE!"}},{"$f":"VALUE('IQEF Intake Form'!L5)","v":{"$error":"#VALUE!"}},{"$f":"VALUE('IQEF Intake Form'!M5)","v":{"$error":"#VALUE!"}},{"$f":"VALUE('IQEF Intake Form'!N5)","v":{"$error":"#VALUE!"}},{"$f":"VALUE('IQEF Intake Form'!O5)","v":{"$error":"#VALUE!"}},{"$f":"VALUE('IQEF Intake Form'!P5)","v":{"$error":"#VALUE!"}},{"$f":"VALUE('IQEF Intake Form'!Q5)","v":{"$error":"#VALUE!"}},{"$f":"VALUE('IQEF Intake Form'!R5)","v":{"$error":"#VALUE!"}},{"$f":"VALUE('IQEF Intake Form'!S5)","v":{"$error":"#VALUE!"}},{"$f":"VALUE('IQEF Intake Form'!T5)","v":{"$error":"#VALUE!"}},{"$f":"VALUE('IQEF Intake Form'!U5)","v":0},{"$f":"VALUE('IQEF Intake Form'!V5)","v":0},{"$f":"VALUE('IQEF Intake Form'!W5)","v":0}]
[{"$f":"VALUE('IQEF Intake Form'!F6)","v":{"$error":"#VALUE!"}},{"$f":"VALUE('IQEF Intake Form'!G6)","v":0},{"$f":"VALUE('IQEF Intake Form'!H6)","v":0},{"$f":"VALUE('IQEF Intake Form'!I6)","v":0},{"$f":"VALUE('IQEF Intake Form'!J6)","v":0},{"$f":"VALUE('IQEF Intake Form'!K6)","v":1},{"$f":"VALUE('IQEF Intake Form'!L6)","v":0},{"$f":"VALUE('IQEF Intake Form'!M6)","v":0},{"$f":"VALUE('IQEF Intake Form'!N6)","v":0},{"$f":"VALUE('IQEF Intake Form'!O6)","v":0},{"$f":"VALUE('IQEF Intake Form'!P6)","v":0},{"$f":"VALUE('IQEF Intake Form'!Q6)","v":0},{"$f":"VALUE('IQEF Intake Form'!R6)","v":0},{"$f":"VALUE('IQEF Intake Form'!S6)","v":0},{"$f":"VALUE('IQEF Intake Form'!T6)","v":0},{"$f":"VALUE('IQEF Intake Form'!U6)","v":0},{"$f":"VALUE('IQEF Intake Form'!V6)","v":0},{"$f":"VALUE('IQEF Intake Form'!W6)","v":0}]
[{"$f":"VALUE('IQEF Intake Form'!F7)","v":0},{"$f":"VALUE('IQEF Intake Form'!G7)","v":0},{"$f":"VALUE('IQEF Intake Form'!H7)","v":{"$error":"#VALUE!"}},{"$f":"VALUE('IQEF Intake Form'!I7)","v":0},{"$f":"VALUE('IQEF Intake Form'!J7)","v":0},{"$f":"VALUE('IQEF Intake Form'!K7)","v":1},{"$f":"VALUE('IQEF Intake Form'!L7)","v":0},{"$f":"VALUE('IQEF Intake Form'!M7)","v":0},{"$f":"VALUE('IQEF Intake Form'!N7)","v":0},{"$f":"VALUE('IQEF Intake Form'!O7)","v":0},{"$f":"VALUE('IQEF Intake Form'!P7)","v":{"$error":"#DIV/0!"}},{"$f":"VALUE('IQEF Intake Form'!Q7)","v":0},{"$f":"VALUE('IQEF Intake Form'!R7)","v":0},{"$f":"VALUE('IQEF Intake Form'!S7)","v":0},{"$f":"VALUE('IQEF Intake Form'!T7)","v":0},{"$f":"VALUE('IQEF Intake Form'!U7)","v":0},{"$f":"VALUE('IQEF Intake Form'!V7)","v":0},{"$f":"VALUE('IQEF Intake Form'!W7)","v":0}]
[{"$f":"VALUE('IQEF Intake Form'!F8)","v":0},{"$f":"VALUE('IQEF Intake Form'!G8)","v":0},{"$f":"VALUE('IQEF Intake Form'!H8)","v":{"$error":"#VALUE!"}},{"$f":"VALUE('IQEF Intake Form'!I8)","v":0},{"$f":"VALUE('IQEF Intake Form'!J8)","v":0},{"$f":"VALUE('IQEF Intake Form'!K8)","v":1},{"$f":"VALUE('IQEF Intake Form'!L8)","v":0},{"$f":"VALUE('IQEF Intake Form'!M8)","v":0},{"$f":"VALUE('IQEF Intake Form'!N8)","v":0},{"$f":"VALUE('IQEF Intake Form'!O8)","v":0},{"$f":"VALUE('IQEF Intake Form'!P8)","v":{"$error":"#DIV/0!"}},{"$f":"VALUE('IQEF Intake Form'!Q8)","v":0},{"$f":"VALUE('IQEF Intake Form'!R8)","v":0},{"$f":"VALUE('IQEF Intake Form'!S8)","v":0},{"$f":"VALUE('IQEF Intake Form'!T8)","v":0},{"$f":"VALUE('IQEF Intake Form'!U8)","v":0},{"$f":"VALUE('IQEF Intake Form'!V8)","v":0},{"$f":"VALUE('IQEF Intake Form'!W8)","v":0}]
[{"$f":"VALUE('IQEF Intake Form'!F9)","v":0},{"$f":"VALUE('IQEF Intake Form'!G9)","v":0},{"$f":"VALUE('IQEF Intake Form'!H9)","v":{"$error":"#VALUE!"}},{"$f":"VALUE('IQEF Intake Form'!I9)","v":0},{"$f":"VALUE('IQEF Intake Form'!J9)","v":0},{"$f":"VALUE('IQEF Intake Form'!K9)","v":1},{"$f":"VALUE('IQEF Intake Form'!L9)","v":0},{"$f":"VALUE('IQEF Intake Form'!M9)","v":0},{"$f":"VALUE('IQEF Intake Form'!N9)","v":0},{"$f":"VALUE('IQEF Intake Form'!O9)","v":0},{"$f":"VALUE('IQEF Intake Form'!P9)","v":{"$error":"#DIV/0!"}},{"$f":"VALUE('IQEF Intake Form'!Q9)","v":0},{"$f":"VALUE('IQEF Intake Form'!R9)","v":0},{"$f":"VALUE('IQEF Intake Form'!S9)","v":0},{"$f":"VALUE('IQEF Intake Form'!T9)","v":0},{"$f":"VALUE('IQEF Intake Form'!U9)","v":0},{"$f":"VALUE('IQEF Intake Form'!V9)","v":0},{"$f":"VALUE('IQEF Intake Form'!W9)","v":0}]
[{"$f":"VALUE('IQEF Intake Form'!F10)","v":0},{"$f":"VALUE('IQEF Intake Form'!G10)","v":0},{"$f":"VALUE('IQEF Intake Form'!H10)","v":{"$error":"#VALUE!"}},{"$f":"VALUE('IQEF Intake Form'!I10)","v":0},{"$f":"VALUE('IQEF Intake Form'!J10)","v":0},{"$f":"VALUE('IQEF Intake Form'!K10)","v":1},{"$f":"VALUE('IQEF Intake Form'!L10)","v":0},{"$f":"VALUE('IQEF Intake Form'!M10)","v":0},{"$f":"VALUE('IQEF Intake Form'!N10)","v":0},{"$f":"VALUE('IQEF Intake Form'!O10)","v":0},{"$f":"VALUE('IQEF Intake Form'!P10)","v":{"$error":"#DIV/0!"}},{"$f":"VALUE('IQEF Intake Form'!Q10)","v":0},{"$f":"VALUE('IQEF Intake Form'!R10)","v":0},{"$f":"VALUE('IQEF Intake Form'!S10)","v":0},{"$f":"VALUE('IQEF Intake Form'!T10)","v":0},{"$f":"VALUE('IQEF Intake Form'!U10)","v":0},{"$f":"VALUE('IQEF Intake Form'!V10)","v":0},{"$f":"VALUE('IQEF Intake Form'!W10)","v":0}]
[{"$f":"VALUE('IQEF Intake Form'!F11)","v":0},{"$f":"VALUE('IQEF Intake Form'!G11)","v":0},{"$f":"VALUE('IQEF Intake Form'!H11)","v":{"$error":"#VALUE!"}},{"$f":"VALUE('IQEF Intake Form'!I11)","v":0},{"$f":"VALUE('IQEF Intake Form'!J11)","v":0},{"$f":"VALUE('IQEF Intake Form'!K11)","v":1},{"$f":"VALUE('IQEF Intake Form'!L11)","v":0},{"$f":"VALUE('IQEF Intake Form'!M11)","v":0},{"$f":"VALUE('IQEF Intake Form'!N11)","v":0},{"$f":"VALUE('IQEF Intake Form'!O11)","v":0},{"$f":"VALUE('IQEF Intake Form'!P11)","v":{"$error":"#DIV/0!"}},{"$f":"VALUE('IQEF Intake Form'!Q11)","v":0},{"$f":"VALUE('IQEF Intake Form'!R11)","v":0},{"$f":"VALUE('IQEF Intake Form'!S11)","v":0},{"$f":"VALUE('IQEF Intake Form'!T11)","v":0},{"$f":"VALUE('IQEF Intake Form'!U11)","v":0},{"$f":"VALUE('IQEF Intake Form'!V11)","v":0},{"$f":"VALUE('IQEF Intake Form'!W11)","v":0}]
[{"$f":"VALUE('IQEF Intake Form'!F12)","v":0},{"$f":"VALUE('IQEF Intake Form'!G12)","v":0},{"$f":"VALUE('IQEF Intake Form'!H12)","v":{"$error":"#VALUE!"}},{"$f":"VALUE('IQEF Intake Form'!I12)","v":0},{"$f":"VALUE('IQEF Intake Form'!J12)","v":0},{"$f":"VALUE('IQEF Intake Form'!K12)","v":1},{"$f":"VALUE('IQEF Intake Form'!L12)","v":0},{"$f":"VALUE('IQEF Intake Form'!M12)","v":0},{"$f":"VALUE('IQEF Intake Form'!N12)","v":0},{"$f":"VALUE('IQEF Intake Form'!O12)","v":0},{"$f":"VALUE('IQEF Intake Form'!P12)","v":{"$error":"#DIV/0!"}},{"$f":"VALUE('IQEF Intake Form'!Q12)","v":0},{"$f":"VALUE('IQEF Intake Form'!R12)","v":0},{"$f":"VALUE('IQEF Intake Form'!S12)","v":0},{"$f":"VALUE('IQEF Intake Form'!T12)","v":0},{"$f":"VALUE('IQEF Intake Form'!U12)","v":0},{"$f":"VALUE('IQEF Intake Form'!V12)","v":0},{"$f":"VALUE('IQEF Intake Form'!W12)","v":0}]
[{"$f":"VALUE('IQEF Intake Form'!F13)","v":0},{"$f":"VALUE('IQEF Intake Form'!G13)","v":0},{"$f":"VALUE('IQEF Intake Form'!H13)","v":{"$error":"#VALUE!"}},{"$f":"VALUE('IQEF Intake Form'!I13)","v":0},{"$f":"VALUE('IQEF Intake Form'!J13)","v":0},{"$f":"VALUE('IQEF Intake Form'!K13)","v":1},{"$f":"VALUE('IQEF Intake Form'!L13)","v":0},{"$f":"VALUE('IQEF Intake Form'!M13)","v":0},{"$f":"VALUE('IQEF Intake Form'!N13)","v":0},{"$f":"VALUE('IQEF Intake Form'!O13)","v":0},{"$f":"VALUE('IQEF Intake Form'!P13)","v":{"$error":"#DIV/0!"}},{"$f":"VALUE('IQEF Intake Form'!Q13)","v":0},{"$f":"VALUE('IQEF Intake Form'!R13)","v":0},{"$f":"VALUE('IQEF Intake Form'!S13)","v":0},{"$f":"VALUE('IQEF Intake Form'!T13)","v":0},{"$f":"VALUE('IQEF Intake Form'!U13)","v":0},{"$f":"VALUE('IQEF Intake Form'!V13)","v":0},{"$f":"VALUE('IQEF Intake Form'!W13)","v":0}]
[{"$f":"VALUE('IQEF Intake Form'!F14)","v":0},{"$f":"VALUE('IQEF Intake Form'!G14)","v":0},{"$f":"VALUE('IQEF Intake Form'!H14)","v":{"$error":"#VALUE!"}},{"$f":"VALUE('IQEF Intake Form'!I14)","v":0},{"$f":"VALUE('IQEF Intake Form'!J14)","v":0},{"$f":"VALUE('IQEF Intake Form'!K14)","v":1},{"$f":"VALUE('IQEF Intake Form'!L14)","v":0},{"$f":"VALUE('IQEF Intake Form'!M14)","v":0},{"$f":"VALUE('IQEF Intake Form'!N14)","v":0},{"$f":"VALUE('IQEF Intake Form'!O14)","v":0},{"$f":"VALUE('IQEF Intake Form'!P14)","v":{"$error":"#DIV/0!"}},{"$f":"VALUE('IQEF Intake Form'!Q14)","v":0},{"$f":"VALUE('IQEF Intake Form'!R14)","v":0},{"$f":"VALUE('IQEF Intake Form'!S14)","v":0},{"$f":"VALUE('IQEF Intake Form'!T14)","v":0},{"$f":"VALUE('IQEF Intake Form'!U14)","v":0},{"$f":"VALUE('IQEF Intake Form'!V14)","v":0},{"$f":"VALUE('IQEF Intake Form'!W14)","v":0}]
[{"$f":"VALUE('IQEF Intake Form'!F15)","v":0},{"$f":"VALUE('IQEF Intake Form'!G15)","v":0},{"$f":"VALUE('IQEF Intake Form'!H15)","v":{"$error":"#VALUE!"}},{"$f":"VALUE('IQEF Intake Form'!I15)","v":0},{"$f":"VALUE('IQEF Intake Form'!J15)","v":0},{"$f":"VALUE('IQEF Intake Form'!K15)","v":1},{"$f":"VALUE('IQEF Intake Form'!L15)","v":0},{"$f":"VALUE('IQEF Intake Form'!M15)","v":0},{"$f":"VALUE('IQEF Intake Form'!N15)","v":0},{"$f":"VALUE('IQEF Intake Form'!O15)","v":0},{"$f":"VALUE('IQEF Intake Form'!P15)","v":{"$error":"#DIV/0!"}},{"$f":"VALUE('IQEF Intake Form'!Q15)","v":0},{"$f":"VALUE('IQEF Intake Form'!R15)","v":0},{"$f":"VALUE('IQEF Intake Form'!S15)","v":0},{"$f":"VALUE('IQEF Intake Form'!T15)","v":0},{"$f":"VALUE('IQEF Intake Form'!U15)","v":0},{"$f":"VALUE('IQEF Intake Form'!V15)","v":0},{"$f":"VALUE('IQEF Intake Form'!W15)","v":0}]
[{"$f":"VALUE('IQEF Intake Form'!F16)","v":0},{"$f":"VALUE('IQEF Intake Form'!G16)","v":0},{"$f":"VALUE('IQEF Intake Form'!H16)","v":{"$error":"#VALUE!"}},{"$f":"VALUE('IQEF Intake Form'!I16)","v":0},{"$f":"VALUE('IQEF Intake Form'!J16)","v":0},{"$f":"VALUE('IQEF Intake Form'!K16)","v":1},{"$f":"VALUE('IQEF Intake Form'!L16)","v":0},{"$f":"VALUE('IQEF Intake Form'!M16)","v":0},{"$f":"VALUE('IQEF Intake Form'!N16)","v":0},{"$f":"VALUE('IQEF Intake Form'!O16)","v":0},{"$f":"VALUE('IQEF Intake Form'!P16)","v":{"$error":"#DIV/0!"}},{"$f":"VALUE('IQEF Intake Form'!Q16)","v":0},{"$f":"VALUE('IQEF Intake Form'!R16)","v":0},{"$f":"VALUE('IQEF Intake Form'!S16)","v":0},{"$f":"VALUE('IQEF Intake Form'!T16)","v":0},{"$f":"VALUE('IQEF Intake Form'!U16)","v":0},{"$f":"VALUE('IQEF Intake Form'!V16)","v":0},{"$f":"VALUE('IQEF Intake Form'!W16)","v":0}]
[{"$f":"VALUE('IQEF Intake Form'!F17)","v":0},{"$f":"VALUE('IQEF Intake Form'!G17)","v":0},{"$f":"VALUE('IQEF Intake Form'!H17)","v":{"$error":"#VALUE!"}},{"$f":"VALUE('IQEF Intake Form'!I17)","v":0},{"$f":"VALUE('IQEF Intake Form'!J17)","v":0},{"$f":"VALUE('IQEF Intake Form'!K17)","v":1},{"$f":"VALUE('IQEF Intake Form'!L17)","v":0},{"$f":"VALUE('IQEF Intake Form'!M17)","v":0},{"$f":"VALUE('IQEF Intake Form'!N17)","v":0},{"$f":"VALUE('IQEF Intake Form'!O17)","v":0},{"$f":"VALUE('IQEF Intake Form'!P17)","v":{"$error":"#DIV/0!"}},{"$f":"VALUE('IQEF Intake Form'!Q17)","v":0},{"$f":"VALUE('IQEF Intake Form'!R17)","v":0},{"$f":"VALUE('IQEF Intake Form'!S17)","v":0},{"$f":"VALUE('IQEF Intake Form'!T17)","v":0},{"$f":"VALUE('IQEF Intake Form'!U17)","v":0},{"$f":"VALUE('IQEF Intake Form'!V17)","v":0},{"$f":"VALUE('IQEF Intake Form'!W17)","v":0}]
[{"$f":"VALUE('IQEF Intake Form'!F18)","v":0},{"$f":"VALUE('IQEF Intake Form'!G18)","v":0},{"$f":"VALUE('IQEF Intake Form'!H18)","v":{"$error":"#VALUE!"}},{"$f":"VALUE('IQEF Intake Form'!I18)","v":0},{"$f":"VALUE('IQEF Intake Form'!J18)","v":0},{"$f":"VALUE('IQEF Intake Form'!K18)","v":1},{"$f":"VALUE('IQEF Intake Form'!L18)","v":0},{"$f":"VALUE('IQEF Intake Form'!M18)","v":0},{"$f":"VALUE('IQEF Intake Form'!N18)","v":0},{"$f":"VALUE('IQEF Intake Form'!O18)","v":0},{"$f":"VALUE('IQEF Intake Form'!P18)","v":{"$error":"#DIV/0!"}},{"$f":"VALUE('IQEF Intake Form'!Q18)","v":0},{"$f":"VALUE('IQEF Intake Form'!R18)","v":0},{"$f":"VALUE('IQEF Intake Form'!S18)","v":0},{"$f":"VALUE('IQEF Intake Form'!T18)","v":0},{"$f":"VALUE('IQEF Intake Form'!U18)","v":0},{"$f":"VALUE('IQEF Intake Form'!V18)","v":0},{"$f":"VALUE('IQEF Intake Form'!W18)","v":0}]
[{"$f":"VALUE('IQEF Intake Form'!F19)","v":0},{"$f":"VALUE('IQEF Intake Form'!G19)","v":0},{"$f":"VALUE('IQEF Intake Form'!H19)","v":{"$error":"#VALUE!"}},{"$f":"VALUE('IQEF Intake Form'!I19)","v":0},{"$f":"VALUE('IQEF Intake Form'!J19)","v":0},{"$f":"VALUE('IQEF Intake Form'!K19)","v":1},{"$f":"VALUE('IQEF Intake Form'!L19)","v":0},{"$f":"VALUE('IQEF Intake Form'!M19)","v":0},{"$f":"VALUE('IQEF Intake Form'!N19)","v":0},{"$f":"VALUE('IQEF Intake Form'!O19)","v":0},{"$f":"VALUE('IQEF Intake Form'!P19)","v":{"$error":"#DIV/0!"}},{"$f":"VALUE('IQEF Intake Form'!Q19)","v":0},{"$f":"VALUE('IQEF Intake Form'!R19)","v":0},{"$f":"VALUE('IQEF Intake Form'!S19)","v":0},{"$f":"VALUE('IQEF Intake Form'!T19)","v":0},{"$f":"VALUE('IQEF Intake Form'!U19)","v":0},{"$f":"VALUE('IQEF Intake Form'!V19)","v":0},{"$f":"VALUE('IQEF Intake Form'!W19)","v":0}]
[{"$f":"VALUE('IQEF Intake Form'!F20)","v":0},{"$f":"VALUE('IQEF Intake Form'!G20)","v":0},{"$f":"VALUE('IQEF Intake Form'!H20)","v":{"$error":"#VALUE!"}},{"$f":"VALUE('IQEF Intake Form'!I20)","v":0},{"$f":"VALUE('IQEF Intake Form'!J20)","v":0},{"$f":"VALUE('IQEF Intake Form'!K20)","v":1},{"$f":"VALUE('IQEF Intake Form'!L20)","v":0},{"$f":"VALUE('IQEF Intake Form'!M20)","v":0},{"$f":"VALUE('IQEF Intake Form'!N20)","v":0},{"$f":"VALUE('IQEF Intake Form'!O20)","v":0},{"$f":"VALUE('IQEF Intake Form'!P20)","v":{"$error":"#DIV/0!"}},{"$f":"VALUE('IQEF Intake Form'!Q20)","v":0},{"$f":"VALUE('IQEF Intake Form'!R20)","v":0},{"$f":"VALUE('IQEF Intake Form'!S20)","v":0},{"$f":"VALUE('IQEF Intake Form'!T20)","v":0},{"$f":"VALUE('IQEF Intake Form'!U20)","v":0},{"$f":"VALUE('IQEF Intake Form'!V20)","v":0},{"$f":"VALUE('IQEF Intake Form'!W20)","v":0}]
[{"$f":"VALUE('IQEF Intake Form'!F21)","v":0},{"$f":"VALUE('IQEF Intake Form'!G21)","v":0},{"$f":"VALUE('IQEF Intake Form'!H21)","v":{"$error":"#VALUE!"}},{"$f":"VALUE('IQEF Intake Form'!I21)","v":0},{"$f":"VALUE('IQEF Intake Form'!J21)","v":0},{"$f":"VALUE('IQEF Intake Form'!K21)","v":1},{"$f":"VALUE('IQEF Intake Form'!L21)","v":0},{"$f":"VALUE('IQEF Intake Form'!M21)","v":0},{"$f":"VALUE('IQEF Intake Form'!N21)","v":0},{"$f":"VALUE('IQEF Intake Form'!O21)","v":0},{"$f":"VALUE('IQEF Intake Form'!P21)","v":{"$error":"#DIV/0!"}},{"$f":"VALUE('IQEF Intake Form'!Q21)","v":0},{"$f":"VALUE('IQEF Intake Form'!R21)","v":0},{"$f":"VALUE('IQEF Intake Form'!S21)","v":0},{"$f":"VALUE('IQEF Intake Form'!T21)","v":0},{"$f":"VALUE('IQEF Intake Form'!U21)","v":0},{"$f":"VALUE('IQEF Intake Form'!V21)","v":0},{"$f":"VALUE('IQEF Intake Form'!W21)","v":0}]
[{"$f":"VALUE('IQEF Intake Form'!F22)","v":0},{"$f":"VALUE('IQEF Intake Form'!G22)","v":0},{"$f":"VALUE('IQEF Intake Form'!H22)","v":{"$error":"#VALUE!"}},{"$f":"VALUE('IQEF Intake Form'!I22)","v":0},{"$f":"VALUE('IQEF Intake Form'!J22)","v":0},{"$f":"VALUE('IQEF Intake Form'!K22)","v":1},{"$f":"VALUE('IQEF Intake Form'!L22)","v":0},{"$f":"VALUE('IQEF Intake Form'!M22)","v":0},{"$f":"VALUE('IQEF Intake Form'!N22)","v":0},{"$f":"VALUE('IQEF Intake Form'!O22)","v":0},{"$f":"VALUE('IQEF Intake Form'!P22)","v":{"$error":"#DIV/0!"}},{"$f":"VALUE('IQEF Intake Form'!Q22)","v":0},{"$f":"VALUE('IQEF Intake Form'!R22)","v":0},{"$f":"VALUE('IQEF Intake Form'!S22)","v":0},{"$f":"VALUE('IQEF Intake Form'!T22)","v":0},{"$f":"VALUE('IQEF Intake Form'!U22)","v":0},{"$f":"VALUE('IQEF Intake Form'!V22)","v":0},{"$f":"VALUE('IQEF Intake Form'!W22)","v":0}]
[{"$f":"VALUE('IQEF Intake Form'!F23)","v":0},{"$f":"VALUE('IQEF Intake Form'!G23)","v":0},{"$f":"VALUE('IQEF Intake Form'!H23)","v":{"$error":"#VALUE!"}},{"$f":"VALUE('IQEF Intake Form'!I23)","v":0},{"$f":"VALUE('IQEF Intake Form'!J23)","v":0},{"$f":"VALUE('IQEF Intake Form'!K23)","v":1},{"$f":"VALUE('IQEF Intake Form'!L23)","v":0},{"$f":"VALUE('IQEF Intake Form'!M23)","v":0},{"$f":"VALUE('IQEF Intake Form'!N23)","v":0},{"$f":"VALUE('IQEF Intake Form'!O23)","v":0},{"$f":"VALUE('IQEF Intake Form'!P23)","v":{"$error":"#DIV/0!"}},{"$f":"VALUE('IQEF Intake Form'!Q23)","v":0},{"$f":"VALUE('IQEF Intake Form'!R23)","v":0},{"$f":"VALUE('IQEF Intake Form'!S23)","v":0},{"$f":"VALUE('IQEF Intake Form'!T23)","v":0},{"$f":"VALUE('IQEF Intake Form'!U23)","v":0},{"$f":"VALUE('IQEF Intake Form'!V23)","v":0},{"$f":"VALUE('IQEF Intake Form'!W23)","v":0}]
[{"$f":"VALUE('IQEF Intake Form'!F24)","v":0},{"$f":"VALUE('IQEF Intake Form'!G24)","v":0},{"$f":"VALUE('IQEF Intake Form'!H24)","v":{"$error":"#VALUE!"}},{"$f":"VALUE('IQEF Intake Form'!I24)","v":0},{"$f":"VALUE('IQEF Intake Form'!J24)","v":0},{"$f":"VALUE('IQEF Intake Form'!K24)","v":1},{"$f":"VALUE('IQEF Intake Form'!L24)","v":0},{"$f":"VALUE('IQEF Intake Form'!M24)","v":0},{"$f":"VALUE('IQEF Intake Form'!N24)","v":0},{"$f":"VALUE('IQEF Intake Form'!O24)","v":0},{"$f":"VALUE('IQEF Intake Form'!P24)","v":{"$error":"#DIV/0!"}},{"$f":"VALUE('IQEF Intake Form'!Q24)","v":0},{"$f":"VALUE('IQEF Intake Form'!R24)","v":0},{"$f":"VALUE('IQEF Intake Form'!S24)","v":0},{"$f":"VALUE('IQEF Intake Form'!T24)","v":0},{"$f":"VALUE('IQEF Intake Form'!U24)","v":0},{"$f":"VALUE('IQEF Intake Form'!V24)","v":0},{"$f":"VALUE('IQEF Intake Form'!W24)","v":0}]
[{"$f":"VALUE('IQEF Intake Form'!F25)","v":0},{"$f":"VALUE('IQEF Intake Form'!G25)","v":0},{"$f":"VALUE('IQEF Intake Form'!H25)","v":{"$error":"#VALUE!"}},{"$f":"VALUE('IQEF Intake Form'!I25)","v":0},{"$f":"VALUE('IQEF Intake Form'!J25)","v":0},{"$f":"VALUE('IQEF Intake Form'!K25)","v":1},{"$f":"VALUE('IQEF Intake Form'!L25)","v":0},{"$f":"VALUE('IQEF Intake Form'!M25)","v":0},{"$f":"VALUE('IQEF Intake Form'!N25)","v":0},{"$f":"VALUE('IQEF Intake Form'!O25)","v":0},{"$f":"VALUE('IQEF Intake Form'!P25)","v":{"$error":"#DIV/0!"}},{"$f":"VALUE('IQEF Intake Form'!Q25)","v":0},{"$f":"VALUE('IQEF Intake Form'!R25)","v":0},{"$f":"VALUE('IQEF Intake Form'!S25)","v":0},{"$f":"VALUE('IQEF Intake Form'!T25)","v":0},{"$f":"VALUE('IQEF Intake Form'!U25)","v":0},{"$f":"VALUE('IQEF Intake Form'!V25)","v":0},{"$f":"VALUE('IQEF Intake Form'!W25)","v":0}]
[{"$f":"VALUE('IQEF Intake Form'!F26)","v":0},{"$f":"VALUE('IQEF Intake Form'!G26)","v":0},{"$f":"VALUE('IQEF Intake Form'!H26)","v":{"$error":"#VALUE!"}},{"$f":"VALUE('IQEF Intake Form'!I26)","v":0},{"$f":"VALUE('IQEF Intake Form'!J26)","v":0},{"$f":"VALUE('IQEF Intake Form'!K26)","v":1},{"$f":"VALUE('IQEF Intake Form'!L26)","v":0},{"$f":"VALUE('IQEF Intake Form'!M26)","v":0},{"$f":"VALUE('IQEF Intake Form'!N26)","v":0},{"$f":"VALUE('IQEF Intake Form'!O26)","v":0},{"$f":"VALUE('IQEF Intake Form'!P26)","v":{"$error":"#DIV/0!"}},{"$f":"VALUE('IQEF Intake Form'!Q26)","v":0},{"$f":"VALUE('IQEF Intake Form'!R26)","v":0},{"$f":"VALUE('IQEF Intake Form'!S26)","v":0},{"$f":"VALUE('IQEF Intake Form'!T26)","v":0},{"$f":"VALUE('IQEF Intake Form'!U26)","v":0},{"$f":"VALUE('IQEF Intake Form'!V26)","v":0},{"$f":"VALUE('IQEF Intake Form'!W26)","v":0}]
[{"$f":"VALUE('IQEF Intake Form'!F27)","v":0},{"$f":"VALUE('IQEF Intake Form'!G27)","v":0},{"$f":"VALUE('IQEF Intake Form'!H27)","v":0},{"$f":"VALUE('IQEF Intake Form'!I27)","v":0},{"$f":"VALUE('IQEF Intake Form'!J27)","v":0},{"$f":"VALUE('IQEF Intake Form'!K27)","v":0},{"$f":"VALUE('IQEF Intake Form'!L27)","v":0},{"$f":"VALUE('IQEF Intake Form'!M27)","v":0},{"$f":"VALUE('IQEF Intake Form'!N27)","v":0},{"$f":"VALUE('IQEF Intake Form'!O27)","v":0},{"$f":"VALUE('IQEF Intake Form'!P27)","v":0},{"$f":"VALUE('IQEF Intake Form'!Q27)","v":0},{"$f":"VALUE('IQEF Intake Form'!R27)","v":0},{"$f":"VALUE('IQEF Intake Form'!S27)","v":0},{"$f":"VALUE('IQEF Intake Form'!T27)","v":0},{"$f":"VALUE('IQEF Intake Form'!U27)","v":0},{"$f":"VALUE('IQEF Intake Form'!V27)","v":0},{"$f":"VALUE('IQEF Intake Form'!W27)","v":0}]
[{"$f":"VALUE('IQEF Intake Form'!F28)","v":{"$error":"#VALUE!"}},{"$f":"VALUE('IQEF Intake Form'!G28)","v":0},{"$f":"VALUE('IQEF Intake Form'!H28)","v":{"$error":"#VALUE!"}},{"$f":"VALUE('IQEF Intake Form'!I28)","v":{"$error":"#VALUE!"}},{"$f":"VALUE('IQEF Intake Form'!J28)","v":{"$error":"#VALUE!"}},{"$f":"VALUE('IQEF Intake Form'!K28)","v":{"$error":"#VALUE!"}},{"$f":"VALUE('IQEF Intake Form'!L28)","v":{"$error":"#VALUE!"}},{"$f":"VALUE('IQEF Intake Form'!M28)","v":{"$error":"#VALUE!"}},{"$f":"VALUE('IQEF Intake Form'!N28)","v":{"$error":"#VALUE!"}},{"$f":"VALUE('IQEF Intake Form'!O28)","v":0},{"$f":"VALUE('IQEF Intake Form'!P28)","v":0},{"$f":"VALUE('IQEF Intake Form'!Q28)","v":0},{"$f":"VALUE('IQEF Intake Form'!R28)","v":0},{"$f":"VALUE('IQEF Intake Form'!S28)","v":0},{"$f":"VALUE('IQEF Intake Form'!T28)","v":0},{"$f":"VALUE('IQEF Intake Form'!U28)","v":0},{"$f":"VALUE('IQEF Intake Form'!V28)","v":0},{"$f":"VALUE('IQEF Intake Form'!W28)","v":0}]
[{"$f":"VALUE('IQEF Intake Form'!F29)","v":0},{"$f":"VALUE('IQEF Intake Form'!G29)","v":0},{"$f":"VALUE('IQEF Intake Form'!H29)","v":0},{"$f":"VALUE('IQEF Intake Form'!I29)","v":{"$error":"#VALUE!"}},{"$f":"VALUE('IQEF Intake Form'!J29)","v":0},{"$f":"VALUE('IQEF Intake Form'!K29)","v":1},{"$f":"VALUE('IQEF Intake Form'!L29)","v":0},{"$f":"VALUE('IQEF Intake Form'!M29)","v":{"$error":"#DIV/0!"}},{"$f":"VALUE('IQEF Intake Form'!N29)","v":0},{"$f":"VALUE('IQEF Intake Form'!O29)","v":0},{"$f":"VALUE('IQEF Intake Form'!P29)","v":0},{"$f":"VALUE('IQEF Intake Form'!Q29)","v":0},{"$f":"VALUE('IQEF Intake Form'!R29)","v":0},{"$f":"VALUE('IQEF Intake Form'!S29)","v":0},{"$f":"VALUE('IQEF Intake Form'!T29)","v":0},{"$f":"VALUE('IQEF Intake Form'!U29)","v":0},{"$f":"VALUE('IQEF Intake Form'!V29)","v":0},{"$f":"VALUE('IQEF Intake Form'!W29)","v":0}]
[{"$f":"VALUE('IQEF Intake Form'!F30)","v":0},{"$f":"VALUE('IQEF Intake Form'!G30)","v":0},{"$f":"VALUE('IQEF Intake Form'!H30)","v":0},{"$f":"VALUE('IQEF Intake Form'!I30)","v":{"$error":"#VALUE!"}},{"$f":"VALUE('IQEF Intake Form'!J30)","v":0},{"$f":"VALUE('IQEF Intake Form'!K30)","v":1},{"$f":"VALUE('IQEF Intake Form'!L30)","v":0},{"$f":"VALUE('IQEF Intake Form'!M30)","v":{"$error":"#DIV/0!"}},{"$f":"VALUE('IQEF Intake Form'!N30)","v":0},{"$f":"VALUE('IQEF Intake Form'!O30)","v":0},{"$f":"VALUE('IQEF Intake Form'!P30)","v":0},{"$f":"VALUE('IQEF Intake Form'!Q30)","v":0},{"$f":"VALUE('IQEF Intake Form'!R30)","v":0},{"$f":"VALUE('IQEF Intake Form'!S30)","v":0},{"$f":"VALUE('IQEF Intake Form'!T30)","v":0},{"$f":"VALUE('IQEF Intake Form'!U30)","v":0},{"$f":"VALUE('IQEF Intake Form'!V30)","v":0},{"$f":"VALUE('IQEF Intake Form'!W30)","v":0}]
[{"$f":"VALUE('IQEF Intake Form'!F31)","v":0},{"$f":"VALUE('IQEF Intake Form'!G31)","v":0},{"$f":"VALUE('IQEF Intake Form'!H31)","v":0},{"$f":"VALUE('IQEF Intake Form'!I31)","v":{"$error":"#VALUE!"}},{"$f":"VALUE('IQEF Intake Form'!J31)","v":0},{"$f":"VALUE('IQEF Intake Form'!K31)","v":1},{"$f":"VALUE('IQEF Intake Form'!L31)","v":0},{"$f":"VALUE('IQEF Intake Form'!M31)","v":{"$error":"#DIV/0!"}},{"$f":"VALUE('IQEF Intake Form'!N31)","v":0},{"$f":"VALUE('IQEF Intake Form'!O31)","v":0},{"$f":"VALUE('IQEF Intake Form'!P31)","v":0},{"$f":"VALUE('IQEF Intake Form'!Q31)","v":0},{"$f":"VALUE('IQEF Intake Form'!R31)","v":0},{"$f":"VALUE('IQEF Intake Form'!S31)","v":0},{"$f":"VALUE('IQEF Intake Form'!T31)","v":0},{"$f":"VALUE('IQEF Intake Form'!U31)","v":0},{"$f":"VALUE('IQEF Intake Form'!V31)","v":0},{"$f":"VALUE('IQEF Intake Form'!W31)","v":0}]
[{"$f":"VALUE('IQEF Intake Form'!F32)","v":0},{"$f":"VALUE('IQEF Intake Form'!G32)","v":0},{"$f":"VALUE('IQEF Intake Form'!H32)","v":0},{"$f":"VALUE('IQEF Intake Form'!I32)","v":{"$error":"#VALUE!"}},{"$f":"VALUE('IQEF Intake Form'!J32)","v":0},{"$f":"VALUE('IQEF Intake Form'!K32)","v":1},{"$f":"VALUE('IQEF Intake Form'!L32)","v":0},{"$f":"VALUE('IQEF Intake Form'!M32)","v":{"$error":"#DIV/0!"}},{"$f":"VALUE('IQEF Intake Form'!N32)","v":0},{"$f":"VALUE('IQEF Intake Form'!O32)","v":0},{"$f":"VALUE('IQEF Intake Form'!P32)","v":0},{"$f":"VALUE('IQEF Intake Form'!Q32)","v":0},{"$f":"VALUE('IQEF Intake Form'!R32)","v":0},{"$f":"VALUE('IQEF Intake Form'!S32)","v":0},{"$f":"VALUE('IQEF Intake Form'!T32)","v":0},{"$f":"VALUE('IQEF Intake Form'!U32)","v":0},{"$f":"VALUE('IQEF Intake Form'!V32)","v":0},{"$f":"VALUE('IQEF Intake Form'!W32)","v":0}]
[{"$f":"VALUE('IQEF Intake Form'!F33)","v":0},{"$f":"VALUE('IQEF Intake Form'!G33)","v":0},{"$f":"VALUE('IQEF Intake Form'!H33)","v":0},{"$f":"VALUE('IQEF Intake Form'!I33)","v":{"$error":"#VALUE!"}},{"$f":"VALUE('IQEF Intake Form'!J33)","v":0},{"$f":"VALUE('IQEF Intake Form'!K33)","v":1},{"$f":"VALUE('IQEF Intake Form'!L33)","v":0},{"$f":"VALUE('IQEF Intake Form'!M33)","v":{"$error":"#DIV/0!"}},{"$f":"VALUE('IQEF Intake Form'!N33)","v":0},{"$f":"VALUE('IQEF Intake Form'!O33)","v":0},{"$f":"VALUE('IQEF Intake Form'!P33)","v":0},{"$f":"VALUE('IQEF Intake Form'!Q33)","v":0},{"$f":"VALUE('IQEF Intake Form'!R33)","v":0},{"$f":"VALUE('IQEF Intake Form'!S33)","v":0},{"$f":"VALUE('IQEF Intake Form'!T33)","v":0},{"$f":"VALUE('IQEF Intake Form'!U33)","v":0},{"$f":"VALUE('IQEF Intake Form'!V33)","v":0},{"$f":"VALUE('IQEF Intake Form'!W33)","v":0}]
[{"$f":"VALUE('IQEF Intake Form'!F34)","v":0},{"$f":"VALUE('IQEF Intake Form'!G34)","v":0},{"$f":"VALUE('IQEF Intake Form'!H34)","v":0},{"$f":"VALUE('IQEF Intake Form'!I34)","v":0},{"$f":"VALUE('IQEF Intake Form'!J34)","v":0},{"$f":"VALUE('IQEF Intake Form'!K34)","v":0},{"$f":"VALUE('IQEF Intake Form'!L34)","v":0},{"$f":"VALUE('IQEF Intake Form'!M34)","v":0},{"$f":"VALUE('IQEF Intake Form'!N34)","v":0},{"$f":"VALUE('IQEF Intake Form'!O34)","v":0},{"$f":"VALUE('IQEF Intake Form'!P34)","v":0},{"$f":"VALUE('IQEF Intake Form'!Q34)","v":0},{"$f":"VALUE('IQEF Intake Form'!R34)","v":0},{"$f":"VALUE('IQEF Intake Form'!S34)","v":0},{"$f":"VALUE('IQEF Intake Form'!T34)","v":0},{"$f":"VALUE('IQEF Intake Form'!U34)","v":0},{"$f":"VALUE('IQEF Intake Form'!V34)","v":0},{"$f":"VALUE('IQEF Intake Form'!W34)","v":0}]
[{"$f":"VALUE('IQEF Intake Form'!F35)","v":{"$error":"#VALUE!"}},{"$f":"VALUE('IQEF Intake Form'!G35)","v":{"$error":"#VALUE!"}},{"$f":"VALUE('IQEF Intake Form'!H35)","v":{"$error":"#VALUE!"}},{"$f":"VALUE('IQEF Intake Form'!I35)","v":{"$error":"#VALUE!"}},{"$f":"VALUE('IQEF Intake Form'!J35)","v":{"$error":"#VALUE!"}},{"$f":"VALUE('IQEF Intake Form'!K35)","v":{"$error":"#VALUE!"}},{"$f":"VALUE('IQEF Intake Form'!L35)","v":{"$error":"#VALUE!"}},{"$f":"VALUE('IQEF Intake Form'!M35)","v":{"$error":"#VALUE!"}},{"$f":"VALUE('IQEF Intake Form'!N35)","v":{"$error":"#VALUE!"}},{"$f":"VALUE('IQEF Intake Form'!O35)","v":{"$error":"#VALUE!"}},{"$f":"VALUE('IQEF Intake Form'!P35)","v":{"$error":"#VALUE!"}},{"$f":"VALUE('IQEF Intake Form'!Q35)","v":{"$error":"#VALUE!"}},{"$f":"VALUE('IQEF Intake Form'!R35)","v":{"$error":"#VALUE!"}},{"$f":"VALUE('IQEF Intake Form'!S35)","v":{"$error":"#VALUE!"}},{"$f":"VALUE('IQEF Intake Form'!T35)","v":{"$error":"#VALUE!"}},{"$f":"VALUE('IQEF Intake Form'!U35)","v":0},{"$f":"VALUE('IQEF Intake Form'!V35)","v":0},{"$f":"VALUE('IQEF Intake Form'!W35)","v":0}]
[{"$f":"VALUE('IQEF Intake Form'!F36)","v":0},{"$f":"VALUE('IQEF Intake Form'!G36)","v":0},{"$f":"VALUE('IQEF Intake Form'!H36)","v":0},{"$f":"VALUE('IQEF Intake Form'!I36)","v":0},{"$f":"VALUE('IQEF Intake Form'!J36)","v":0},{"$f":"VALUE('IQEF Intake Form'!K36)","v":0},{"$f":"VALUE('IQEF Intake Form'!L36)","v":0},{"$f":"VALUE('IQEF Intake Form'!M36)","v":0},{"$f":"VALUE('IQEF Intake Form'!N36)","v":0},{"$f":"VALUE('IQEF Intake Form'!O36)","v":0},{"$f":"VALUE('IQEF Intake Form'!P36)","v":0},{"$f":"VALUE('IQEF Intake Form'!Q36)","v":{"$error":"#DIV/0!"}},{"$f":"VALUE('IQEF Intake Form'!R36)","v":0},{"$f":"VALUE('IQEF Intake Form'!S36)","v":0},{"$f":"VALUE('IQEF Intake Form'!T36)","v":0},{"$f":"VALUE('IQEF Intake Form'!U36)","v":0},{"$f":"VALUE('IQEF Intake Form'!V36)","v":0},{"$f":"VALUE('IQEF Intake Form'!W36)","v":0}]
[{"$f":"VALUE('IQEF Intake Form'!F37)","v":0},{"$f":"VALUE('IQEF Intake Form'!G37)","v":0},{"$f":"VALUE('IQEF Intake Form'!H37)","v":0},{"$f":"VALUE('IQEF Intake Form'!I37)","v":0},{"$f":"VALUE('IQEF Intake Form'!J37)","v":0},{"$f":"VALUE('IQEF Intake Form'!K37)","v":0},{"$f":"VALUE('IQEF Intake Form'!L37)","v":0},{"$f":"VALUE('IQEF Intake Form'!M37)","v":0},{"$f":"VALUE('IQEF Intake Form'!N37)","v":0},{"$f":"VALUE('IQEF Intake Form'!O37)","v":0},{"$f":"VALUE('IQEF Intake Form'!P37)","v":0},{"$f":"VALUE('IQEF Intake Form'!Q37)","v":{"$error":"#DIV/0!"}},{"$f":"VALUE('IQEF Intake Form'!R37)","v":0},{"$f":"VALUE('IQEF Intake Form'!S37)","v":0},{"$f":"VALUE('IQEF Intake Form'!T37)","v":0},{"$f":"VALUE('IQEF Intake Form'!U37)","v":0},{"$f":"VALUE('IQEF Intake Form'!V37)","v":0},{"$f":"VALUE('IQEF Intake Form'!W37)","v":0}]
[{"$f":"VALUE('IQEF Intake Form'!F38)","v":0},{"$f":"VALUE('IQEF Intake Form'!G38)","v":0},{"$f":"VALUE('IQEF Intake Form'!H38)","v":0},{"$f":"VALUE('IQEF Intake Form'!I38)","v":0},{"$f":"VALUE('IQEF Intake Form'!J38)","v":0},{"$f":"VALUE('IQEF Intake Form'!K38)","v":0},{"$f":"VALUE('IQEF Intake Form'!L38)","v":0},{"$f":"VALUE('IQEF Intake Form'!M38)","v":0},{"$f":"VALUE('IQEF Intake Form'!N38)","v":0},{"$f":"VALUE('IQEF Intake Form'!O38)","v":0},{"$f":"VALUE('IQEF Intake Form'!P38)","v":0},{"$f":"VALUE('IQEF Intake Form'!Q38)","v":{"$error":"#DIV/0!"}},{"$f":"VALUE('IQEF Intake Form'!R38)","v":0},{"$f":"VALUE('IQEF Intake Form'!S38)","v":0},{"$f":"VALUE('IQEF Intake Form'!T38)","v":0},{"$f":"VALUE('IQEF Intake Form'!U38)","v":0},{"$f":"VALUE('IQEF Intake Form'!V38)","v":0},{"$f":"VALUE('IQEF Intake Form'!W38)","v":0}]
[{"$f":"VALUE('IQEF Intake Form'!F39)","v":0},{"$f":"VALUE('IQEF Intake Form'!G39)","v":0},{"$f":"VALUE('IQEF Intake Form'!H39)","v":0},{"$f":"VALUE('IQEF Intake Form'!I39)","v":0},{"$f":"VALUE('IQEF Intake Form'!J39)","v":0},{"$f":"VALUE('IQEF Intake Form'!K39)","v":0},{"$f":"VALUE('IQEF Intake Form'!L39)","v":0},{"$f":"VALUE('IQEF Intake Form'!M39)","v":0},{"$f":"VALUE('IQEF Intake Form'!N39)","v":0},{"$f":"VALUE('IQEF Intake Form'!O39)","v":0},{"$f":"VALUE('IQEF Intake Form'!P39)","v":0},{"$f":"VALUE('IQEF Intake Form'!Q39)","v":0},{"$f":"VALUE('IQEF Intake Form'!R39)","v":0},{"$f":"VALUE('IQEF Intake Form'!S39)","v":0},{"$f":"VALUE('IQEF Intake Form'!T39)","v":0},{"$f":"VALUE('IQEF Intake Form'!U39)","v":0},{"$f":"VALUE('IQEF Intake Form'!V39)","v":0},{"$f":"VALUE('IQEF Intake Form'!W39)","v":0}]
[{"$f":"VALUE('IQEF Intake Form'!F40)","v":{"$error":"#VALUE!"}},{"$f":"VALUE('IQEF Intake Form'!G40)","v":{"$error":"#VALUE!"}},{"$f":"VALUE('IQEF Intake Form'!H40)","v":{"$error":"#VALUE!"}},{"$f":"VALUE('IQEF Intake Form'!I40)","v":{"$error":"#VALUE!"}},{"$f":"VALUE('IQEF Intake Form'!J40)","v":{"$error":"#VALUE!"}},{"$f":"VALUE('IQEF Intake Form'!K40)","v":{"$error":"#VALUE!"}},{"$f":"VALUE('IQEF Intake Form'!L40)","v":{"$error":"#VALUE!"}},{"$f":"VALUE('IQEF Intake Form'!M40)","v":{"$error":"#VALUE!"}},{"$f":"VALUE('IQEF Intake Form'!N40)","v":{"$error":"#VALUE!"}},{"$f":"VALUE('IQEF Intake Form'!O40)","v":{"$error":"#VALUE!"}},{"$f":"VALUE('IQEF Intake Form'!P40)","v":0},{"$f":"VALUE('IQEF Intake Form'!Q40)","v":0},{"$f":"VALUE('IQEF Intake Form'!R40)","v":0},{"$f":"VALUE('IQEF Intake Form'!S40)","v":0},{"$f":"VALUE('IQEF Intake Form'!T40)","v":0},{"$f":"VALUE('IQEF Intake Form'!U40)","v":0},{"$f":"VALUE('IQEF Intake Form'!V40)","v":0},{"$f":"VALUE('IQEF Intake Form'!W40)","v":0}]
[{"$f":"VALUE('IQEF Intake Form'!F41)","v":{"$error":"#VALUE!"}},{"$f":"VALUE('IQEF Intake Form'!G41)","v":0},{"$f":"VALUE('IQEF Intake Form'!H41)","v":0},{"$f":"VALUE('IQEF Intake Form'!I41)","v":0},{"$f":"VALUE('IQEF Intake Form'!J41)","v":0},{"$f":"VALUE('IQEF Intake Form'!K41)","v":0},{"$f":"VALUE('IQEF Intake Form'!L41)","v":{"$error":"#DIV/0!"}},{"$f":"VALUE('IQEF Intake Form'!M41)","v":0},{"$f":"VALUE('IQEF Intake Form'!N41)","v":0},{"$f":"VALUE('IQEF Intake Form'!O41)","v":0},{"$f":"VALUE('IQEF Intake Form'!P41)","v":0},{"$f":"VALUE('IQEF Intake Form'!Q41)","v":0},{"$f":"VALUE('IQEF Intake Form'!R41)","v":0},{"$f":"VALUE('IQEF Intake Form'!S41)","v":0},{"$f":"VALUE('IQEF Intake Form'!T41)","v":0},{"$f":"VALUE('IQEF Intake Form'!U41)","v":0},{"$f":"VALUE('IQEF Intake Form'!V41)","v":0},{"$f":"VALUE('IQEF Intake Form'!W41)","v":0}]
[{"$f":"VALUE('IQEF Intake Form'!F42)","v":0},{"$f":"VALUE('IQEF Intake Form'!G42)","v":0},{"$f":"VALUE('IQEF Intake Form'!H42)","v":0},{"$f":"VALUE('IQEF Intake Form'!I42)","v":0},{"$f":"VALUE('IQEF Intake Form'!J42)","v":0},{"$f":"VALUE('IQEF Intake Form'!K42)","v":0},{"$f":"VALUE('IQEF Intake Form'!L42)","v":0},{"$f":"VALUE('IQEF Intake Form'!M42)","v":0},{"$f":"VALUE('IQEF Intake Form'!N42)","v":0},{"$f":"VALUE('IQEF Intake Form'!O42)","v":0},{"$f":"VALUE('IQEF Intake Form'!P42)","v":0},{"$f":"VALUE('IQEF Intake Form'!Q42)","v":0},{"$f":"VALUE('IQEF Intake Form'!R42)","v":0},{"$f":"VALUE('IQEF Intake Form'!S42)","v":0},{"$f":"VALUE('IQEF Intake Form'!T42)","v":0},{"$f":"VALUE('IQEF Intake Form'!U42)","v":0},{"$f":"VALUE('IQEF Intake Form'!V42)","v":0},{"$f":"VALUE('IQEF Intake Form'!W42)","v":0}]
[{"$f":"VALUE('IQEF Intake Form'!F43)","v":0},{"$f":"VALUE('IQEF Intake Form'!G43)","v":{"$error":"#VALUE!"}},{"$f":"VALUE('IQEF Intake Form'!H43)","v":{"$error":"#VALUE!"}},{"$f":"VALUE('IQEF Intake Form'!I43)","v":{"$error":"#VALUE!"}},{"$f":"VALUE('IQEF Intake Form'!J43)","v":{"$error":"#VALUE!"}},{"$f":"VALUE('IQEF Intake Form'!K43)","v":{"$error":"#VALUE!"}},{"$f":"VALUE('IQEF Intake Form'!L43)","v":{"$error":"#VALUE!"}},{"$f":"VALUE('IQEF Intake Form'!M43)","v":{"$error":"#VALUE!"}},{"$f":"VALUE('IQEF Intake Form'!N43)","v":{"$error":"#VALUE!"}},{"$f":"VALUE('IQEF Intake Form'!O43)","v":{"$error":"#VALUE!"}},{"$f":"VALUE('IQEF Intake Form'!P43)","v":{"$error":"#VALUE!"}},{"$f":"VALUE('IQEF Intake Form'!Q43)","v":{"$error":"#VALUE!"}},{"$f":"VALUE('IQEF Intake Form'!R43)","v":{"$error":"#VALUE!"}},{"$f":"VALUE('IQEF Intake Form'!S43)","v":0},{"$f":"VALUE('IQEF Intake Form'!T43)","v":0},{"$f":"VALUE('IQEF Intake Form'!U43)","v":0},{"$f":"VALUE('IQEF Intake Form'!V43)","v":0},{"$f":"VALUE('IQEF Intake Form'!W43)","v":0}]
[{"$f":"VALUE('IQEF Intake Form'!F44)","v":{"$error":"#VALUE!"}},{"$f":"VALUE('IQEF Intake Form'!G44)","v":0},{"$f":"VALUE('IQEF Intake Form'!H44)","v":0},{"$f":"VALUE('IQEF Intake Form'!I44)","v":0},{"$f":"VALUE('IQEF Intake Form'!J44)","v":0},{"$f":"VALUE('IQEF Intake Form'!K44)","v":0},{"$f":"VALUE('IQEF Intake Form'!L44)","v":0},{"$f":"VALUE('IQEF Intake Form'!M44)","v":0},{"$f":"VALUE('IQEF Intake Form'!N44)","v":0},{"$f":"VALUE('IQEF Intake Form'!O44)","v":{"$error":"#DIV/0!"}},{"$f":"VALUE('IQEF Intake Form'!P44)","v":0},{"$f":"VALUE('IQEF Intake Form'!Q44)","v":0},{"$f":"VALUE('IQEF Intake Form'!R44)","v":0},{"$f":"VALUE('IQEF Intake Form'!S44)","v":0},{"$f":"VALUE('IQEF Intake Form'!T44)","v":0},{"$f":"VALUE('IQEF Intake Form'!U44)","v":0},{"$f":"VALUE('IQEF Intake Form'!V44)","v":0},{"$f":"VALUE('IQEF Intake Form'!W44)","v":0}]
[{"$f":"VALUE('IQEF Intake Form'!F45)","v":0},{"$f":"VALUE('IQEF Intake Form'!G45)","v":0},{"$f":"VALUE('IQEF Intake Form'!H45)","v":0},{"$f":"VALUE('IQEF Intake Form'!I45)","v":0},{"$f":"VALUE('IQEF Intake Form'!J45)","v":0},{"$f":"VALUE('IQEF Intake Form'!K45)","v":0},{"$f":"VALUE('IQEF Intake Form'!L45)","v":0},{"$f":"VALUE('IQEF Intake Form'!M45)","v":0},{"$f":"VALUE('IQEF Intake Form'!N45)","v":0},{"$f":"VALUE('IQEF Intake Form'!O45)","v":0},{"$f":"VALUE('IQEF Intake Form'!P45)","v":0},{"$f":"VALUE('IQEF Intake Form'!Q45)","v":0},{"$f":"VALUE('IQEF Intake Form'!R45)","v":0},{"$f":"VALUE('IQEF Intake Form'!S45)","v":0},{"$f":"VALUE('IQEF Intake Form'!T45)","v":0},{"$f":"VALUE('IQEF Intake Form'!U45)","v":0},{"$f":"VALUE('IQEF Intake Form'!V45)","v":0},{"$f":"VALUE('IQEF Intake Form'!W45)","v":0}]
[{"$f":"VALUE('IQEF Intake Form'!F46)","v":{"$error":"#VALUE!"}},{"$f":"VALUE('IQEF Intake Form'!G46)","v":0},{"$f":"VALUE('IQEF Intake Form'!H46)","v":0},{"$f":"VALUE('IQEF Intake Form'!I46)","v":0},{"$f":"VALUE('IQEF Intake Form'!J46)","v":0},{"$f":"VALUE('IQEF Intake Form'!K46)","v":0},{"$f":"VALUE('IQEF Intake Form'!L46)","v":0},{"$f":"VALUE('IQEF Intake Form'!M46)","v":0},{"$f":"VALUE('IQEF Intake Form'!N46)","v":0},{"$f":"VALUE('IQEF Intake Form'!O46)","v":0},{"$f":"VALUE('IQEF Intake Form'!P46)","v":0},{"$f":"VALUE('IQEF Intake Form'!Q46)","v":0},{"$f":"VALUE('IQEF Intake Form'!R46)","v":0},{"$f":"VALUE('IQEF Intake Form'!S46)","v":0},{"$f":"VALUE('IQEF Intake Form'!T46)","v":0},{"$f":"VALUE('IQEF Intake Form'!U46)","v":0},{"$f":"VALUE('IQEF Intake Form'!V46)","v":0},{"$f":"VALUE('IQEF Intake Form'!W46)","v":0}]
[{"$f":"VALUE('IQEF Intake Form'!F47)","v":{"$error":"#VALUE!"}},{"$f":"VALUE('IQEF Intake Form'!G47)","v":{"$error":"#VALUE!"}},{"$f":"VALUE('IQEF Intake Form'!H47)","v":{"$error":"#VALUE!"}},{"$f":"VALUE('IQEF Intake Form'!I47)","v":{"$error":"#VALUE!"}},{"$f":"VALUE('IQEF Intake Form'!J47)","v":{"$error":"#VALUE!"}},{"$f":"VALUE('IQEF Intake Form'!K47)","v":{"$error":"#VALUE!"}},{"$f":"VALUE('IQEF Intake Form'!L47)","v":{"$error":"#VALUE!"}},{"$f":"VALUE('IQEF Intake Form'!M47)","v":{"$error":"#VALUE!"}},{"$f":"VALUE('IQEF Intake Form'!N47)","v":{"$error":"#VALUE!"}},{"$f":"VALUE('IQEF Intake Form'!O47)","v":{"$error":"#VALUE!"}},{"$f":"VALUE('IQEF Intake Form'!P47)","v":{"$error":"#VALUE!"}},{"$f":"VALUE('IQEF Intake Form'!Q47)","v":{"$error":"#VALUE!"}},{"$f":"VALUE('IQEF Intake Form'!R47)","v":{"$error":"#VALUE!"}},{"$f":"VALUE('IQEF Intake Form'!S47)","v":{"$error":"#VALUE!"}},{"$f":"VALUE('IQEF Intake Form'!T47)","v":0},{"$f":"VALUE('IQEF Intake Form'!U47)","v":0},{"$f":"VALUE('IQEF Intake Form'!V47)","v":0},{"$f":"VALUE('IQEF Intake Form'!W47)","v":0}]
[{"$f":"VALUE('IQEF Intake Form'!F48)","v":0},{"$f":"VALUE('IQEF Intake Form'!G48)","v":0},{"$f":"VALUE('IQEF Intake Form'!H48)","v":0},{"$f":"VALUE('IQEF Intake Form'!I48)","v":0},{"$f":"VALUE('IQEF Intake Form'!J48)","v":0},{"$f":"VALUE('IQEF Intake Form'!K48)","v":0},{"$f":"VALUE('IQEF Intake Form'!L48)","v":0},{"$f":"VALUE('IQEF Intake Form'!M48)","v":0},{"$f":"VALUE('IQEF Intake Form'!N48)","v":0},{"$f":"VALUE('IQEF Intake Form'!O48)","v":0},{"$f":"VALUE('IQEF Intake Form'!P48)","v":{"$error":"#DIV/0!"}},{"$f":"VALUE('IQEF Intake Form'!Q48)","v":0},{"$f":"VALUE('IQEF Intake Form'!R48)","v":0},{"$f":"VALUE('IQEF Intake Form'!S48)","v":0},{"$f":"VALUE('IQEF Intake Form'!T48)","v":0},{"$f":"VALUE('IQEF Intake Form'!U48)","v":0},{"$f":"VALUE('IQEF Intake Form'!V48)","v":0},{"$f":"VALUE('IQEF Intake Form'!W48)","v":0}]
[{"$f":"VALUE('IQEF Intake Form'!F49)","v":0},{"$f":"VALUE('IQEF Intake Form'!G49)","v":0},{"$f":"VALUE('IQEF Intake Form'!H49)","v":0},{"$f":"VALUE('IQEF Intake Form'!I49)","v":0},{"$f":"VALUE('IQEF Intake Form'!J49)","v":0},{"$f":"VALUE('IQEF Intake Form'!K49)","v":0},{"$f":"VALUE('IQEF Intake Form'!L49)","v":0},{"$f":"VALUE('IQEF Intake Form'!M49)","v":0},{"$f":"VALUE('IQEF Intake Form'!N49)","v":0},{"$f":"VALUE('IQEF Intake Form'!O49)","v":0},{"$f":"VALUE('IQEF Intake Form'!P49)","v":{"$error":"#DIV/0!"}},{"$f":"VALUE('IQEF Intake Form'!Q49)","v":0},{"$f":"VALUE('IQEF Intake Form'!R49)","v":0},{"$f":"VALUE('IQEF Intake Form'!S49)","v":0},{"$f":"VALUE('IQEF Intake Form'!T49)","v":0},{"$f":"VALUE('IQEF Intake Form'!U49)","v":0},{"$f":"VALUE('IQEF Intake Form'!V49)","v":0},{"$f":"VALUE('IQEF Intake Form'!W49)","v":0}]
[{"$f":"VALUE('IQEF Intake Form'!F50)","v":0},{"$f":"VALUE('IQEF Intake Form'!G50)","v":0},{"$f":"VALUE('IQEF Intake Form'!H50)","v":0},{"$f":"VALUE('IQEF Intake Form'!I50)","v":0},{"$f":"VALUE('IQEF Intake Form'!J50)","v":0},{"$f":"VALUE('IQEF Intake Form'!K50)","v":0},{"$f":"VALUE('IQEF Intake Form'!L50)","v":0},{"$f":"VALUE('IQEF Intake Form'!M50)","v":0},{"$f":"VALUE('IQEF Intake Form'!N50)","v":0},{"$f":"VALUE('IQEF Intake Form'!O50)","v":0},{"$f":"VALUE('IQEF Intake Form'!P50)","v":{"$error":"#DIV/0!"}},{"$f":"VALUE('IQEF Intake Form'!Q50)","v":0},{"$f":"VALUE('IQEF Intake Form'!R50)","v":0},{"$f":"VALUE('IQEF Intake Form'!S50)","v":0},{"$f":"VALUE('IQEF Intake Form'!T50)","v":0},{"$f":"VALUE('IQEF Intake Form'!U50)","v":0},{"$f":"VALUE('IQEF Intake Form'!V50)","v":0},{"$f":"VALUE('IQEF Intake Form'!W50)","v":0}]
[{"$f":"VALUE('IQEF Intake Form'!F51)","v":0},{"$f":"VALUE('IQEF Intake Form'!G51)","v":0},{"$f":"VALUE('IQEF Intake Form'!H51)","v":0},{"$f":"VALUE('IQEF Intake Form'!I51)","v":0},{"$f":"VALUE('IQEF Intake Form'!J51)","v":0},{"$f":"VALUE('IQEF Intake Form'!K51)","v":0},{"$f":"VALUE('IQEF Intake Form'!L51)","v":0},{"$f":"VALUE('IQEF Intake Form'!M51)","v":0},{"$f":"VALUE('IQEF Intake Form'!N51)","v":0},{"$f":"VALUE('IQEF Intake Form'!O51)","v":0},{"$f":"VALUE('IQEF Intake Form'!P51)","v":0},{"$f":"VALUE('IQEF Intake Form'!Q51)","v":0},{"$f":"VALUE('IQEF Intake Form'!R51)","v":0},{"$f":"VALUE('IQEF Intake Form'!S51)","v":0},{"$f":"VALUE('IQEF Intake Form'!T51)","v":0},{"$f":"VALUE('IQEF Intake Form'!U51)","v":0},{"$f":"VALUE('IQEF Intake Form'!V51)","v":0},{"$f":"VALUE('IQEF Intake Form'!W51)","v":0}]
[{"$f":"VALUE('IQEF Intake Form'!F52)","v":{"$error":"#VALUE!"}},{"$f":"VALUE('IQEF Intake Form'!G52)","v":0},{"$f":"VALUE('IQEF Intake Form'!H52)","v":0},{"$f":"VALUE('IQEF Intake Form'!I52)","v":0},{"$f":"VALUE('IQEF Intake Form'!J52)","v":0},{"$f":"VALUE('IQEF Intake Form'!K52)","v":0},{"$f":"VALUE('IQEF Intake Form'!L52)","v":0},{"$f":"VALUE('IQEF Intake Form'!M52)","v":0},{"$f":"VALUE('IQEF Intake Form'!N52)","v":0},{"$f":"VALUE('IQEF Intake Form'!O52)","v":0},{"$f":"VALUE('IQEF Intake Form'!P52)","v":0},{"$f":"VALUE('IQEF Intake Form'!Q52)","v":0},{"$f":"VALUE('IQEF Intake Form'!R52)","v":0},{"$f":"VALUE('IQEF Intake Form'!S52)","v":0},{"$f":"VALUE('IQEF Intake Form'!T52)","v":0},{"$f":"VALUE('IQEF Intake Form'!U52)","v":0},{"$f":"VALUE('IQEF Intake Form'!V52)","v":0},{"$f":"VALUE('IQEF Intake Form'!W52)","v":0}]
[{"$f":"VALUE('IQEF Intake Form'!F53)","v":{"$error":"#VALUE!"}},{"$f":"VALUE('IQEF Intake Form'!G53)","v":{"$error":"#VALUE!"}},{"$f":"VALUE('IQEF Intake Form'!H53)","v":{"$error":"#VALUE!"}},{"$f":"VALUE('IQEF Intake Form'!I53)","v":{"$error":"#VALUE!"}},{"$f":"VALUE('IQEF Intake Form'!J53)","v":{"$error":"#VALUE!"}},{"$f":"VALUE('IQEF Intake Form'!K53)","v":{"$error":"#VALUE!"}},{"$f":"VALUE('IQEF Intake Form'!L53)","v":{"$error":"#VALUE!"}},{"$f":"VALUE('IQEF Intake Form'!M53)","v":{"$error":"#VALUE!"}},{"$f":"VALUE('IQEF Intake Form'!N53)","v":{"$error":"#VALUE!"}},{"$f":"VALUE('IQEF Intake Form'!O53)","v":{"$error":"#VALUE!"}},{"$f":"VALUE('IQEF Intake Form'!P53)","v":{"$error":"#VALUE!"}},{"$f":"VALUE('IQEF Intake Form'!Q53)","v":0},{"$f":"VALUE('IQEF Intake Form'!R53)","v":0},{"$f":"VALUE('IQEF Intake Form'!S53)","v":0},{"$f":"VALUE('IQEF Intake Form'!T53)","v":0},{"$f":"VALUE('IQEF Intake Form'!U53)","v":0},{"$f":"VALUE('IQEF Intake Form'!V53)","v":0},{"$f":"VALUE('IQEF Intake Form'!W53)","v":0}]
[{"$f":"VALUE('IQEF Intake Form'!F54)","v":0},{"$f":"VALUE('IQEF Intake Form'!G54)","v":0},{"$f":"VALUE('IQEF Intake Form'!H54)","v":0},{"$f":"VALUE('IQEF Intake Form'!I54)","v":0},{"$f":"VALUE('IQEF Intake Form'!J54)","v":0},{"$f":"VALUE('IQEF Intake Form'!K54)","v":0},{"$f":"VALUE('IQEF Intake Form'!L54)","v":0},{"$f":"VALUE('IQEF Intake Form'!M54)","v":{"$error":"#DIV/0!"}},{"$f":"VALUE('IQEF Intake Form'!N54)","v":0},{"$f":"VALUE('IQEF Intake Form'!O54)","v":0},{"$f":"VALUE('IQEF Intake Form'!P54)","v":0},{"$f":"VALUE('IQEF Intake Form'!Q54)","v":0},{"$f":"VALUE('IQEF Intake Form'!R54)","v":0},{"$f":"VALUE('IQEF Intake Form'!S54)","v":0},{"$f":"VALUE('IQEF Intake Form'!T54)","v":0},{"$f":"VALUE('IQEF Intake Form'!U54)","v":0},{"$f":"VALUE('IQEF Intake Form'!V54)","v":0},{"$f":"VALUE('IQEF Intake Form'!W54)","v":0}]
[{"$f":"VALUE('IQEF Intake Form'!F55)","v":0},{"$f":"VALUE('IQEF Intake Form'!G55)","v":0},{"$f":"VALUE('IQEF Intake Form'!H55)","v":0},{"$f":"VALUE('IQEF Intake Form'!I55)","v":0},{"$f":"VALUE('IQEF Intake Form'!J55)","v":0},{"$f":"VALUE('IQEF Intake Form'!K55)","v":0},{"$f":"VALUE('IQEF Intake Form'!L55)","v":0},{"$f":"VALUE('IQEF Intake Form'!M55)","v":{"$error":"#DIV/0!"}},{"$f":"VALUE('IQEF Intake Form'!N55)","v":0},{"$f":"VALUE('IQEF Intake Form'!O55)","v":0},{"$f":"VALUE('IQEF Intake Form'!P55)","v":0},{"$f":"VALUE('IQEF Intake Form'!Q55)","v":0},{"$f":"VALUE('IQEF Intake Form'!R55)","v":0},{"$f":"VALUE('IQEF Intake Form'!S55)","v":0},{"$f":"VALUE('IQEF Intake Form'!T55)","v":0},{"$f":"VALUE('IQEF Intake Form'!U55)","v":0},{"$f":"VALUE('IQEF Intake Form'!V55)","v":0},{"$f":"VALUE('IQEF Intake Form'!W55)","v":0}]
[{"$f":"VALUE('IQEF Intake Form'!F56)","v":0},{"$f":"VALUE('IQEF Intake Form'!G56)","v":0},{"$f":"VALUE('IQEF Intake Form'!H56)","v":0},{"$f":"VALUE('IQEF Intake Form'!I56)","v":0},{"$f":"VALUE('IQEF Intake Form'!J56)","v":0},{"$f":"VALUE('IQEF Intake Form'!K56)","v":0},{"$f":"VALUE('IQEF Intake Form'!L56)","v":0},{"$f":"VALUE('IQEF Intake Form'!M56)","v":{"$error":"#DIV/0!"}},{"$f":"VALUE('IQEF Intake Form'!N56)","v":0},{"$f":"VALUE('IQEF Intake Form'!O56)","v":0},{"$f":"VALUE('IQEF Intake Form'!P56)","v":0},{"$f":"VALUE('IQEF Intake Form'!Q56)","v":0},{"$f":"VALUE('IQEF Intake Form'!R56)","v":0},{"$f":"VALUE('IQEF Intake Form'!S56)","v":0},{"$f":"VALUE('IQEF Intake Form'!T56)","v":0},{"$f":"VALUE('IQEF Intake Form'!U56)","v":0},{"$f":"VALUE('IQEF Intake Form'!V56)","v":0},{"$f":"VALUE('IQEF Intake Form'!W56)","v":0}]
[{"$f":"VALUE('IQEF Intake Form'!F57)","v":0},{"$f":"VALUE('IQEF Intake Form'!G57)","v":0},{"$f":"VALUE('IQEF Intake Form'!H57)","v":0},{"$f":"VALUE('IQEF Intake Form'!I57)","v":0},{"$f":"VALUE('IQEF Intake Form'!J57)","v":0},{"$f":"VALUE('IQEF Intake Form'!K57)","v":0},{"$f":"VALUE('IQEF Intake Form'!L57)","v":0},{"$f":"VALUE('IQEF Intake Form'!M57)","v":0},{"$f":"VALUE('IQEF Intake Form'!N57)","v":0},{"$f":"VALUE('IQEF Intake Form'!O57)","v":0},{"$f":"VALUE('IQEF Intake Form'!P57)","v":0},{"$f":"VALUE('IQEF Intake Form'!Q57)","v":0},{"$f":"VALUE('IQEF Intake Form'!R57)","v":0},{"$f":"VALUE('IQEF Intake Form'!S57)","v":0},{"$f":"VALUE('IQEF Intake Form'!T57)","v":0},{"$f":"VALUE('IQEF Intake Form'!U57)","v":0},{"$f":"VALUE('IQEF Intake Form'!V57)","v":0},{"$f":"VALUE('IQEF Intake Form'!W57)","v":0}]
[{"$f":"VALUE('IQEF Intake Form'!F58)","v":{"$error":"#VALUE!"}},{"$f":"VALUE('IQEF Intake Form'!G58)","v":{"$error":"#VALUE!"}},{"$f":"VALUE('IQEF Intake Form'!H58)","v":{"$error":"#VALUE!"}},{"$f":"VALUE('IQEF Intake Form'!I58)","v":{"$error":"#VALUE!"}},{"$f":"VALUE('IQEF Intake Form'!J58)","v":{"$error":"#VALUE!"}},{"$f":"VALUE('IQEF Intake Form'!K58)","v":{"$error":"#VALUE!"}},{"$f":"VALUE('IQEF Intake Form'!L58)","v":{"$error":"#VALUE!"}},{"$f":"VALUE('IQEF Intake Form'!M58)","v":{"$error":"#VALUE!"}},{"$f":"VALUE('IQEF Intake Form'!N58)","v":0},{"$f":"VALUE('IQEF Intake Form'!O58)","v":0},{"$f":"VALUE('IQEF Intake Form'!P58)","v":0},{"$f":"VALUE('IQEF Intake Form'!Q58)","v":0},{"$f":"VALUE('IQEF Intake Form'!R58)","v":0},{"$f":"VALUE('IQEF Intake Form'!S58)","v":0},{"$f":"VALUE('IQEF Intake Form'!T58)","v":0},{"$f":"VALUE('IQEF Intake Form'!U58)","v":0},{"$f":"VALUE('IQEF Intake Form'!V58)","v":0},{"$f":"VALUE('IQEF Intake Form'!W58)","v":0}]
[{"$f":"VALUE('IQEF Intake Form'!F59)","v":0},{"$f":"VALUE('IQEF Intake Form'!G59)","v":0},{"$f":"VALUE('IQEF Intake Form'!H59)","v":0},{"$f":"VALUE('IQEF Intake Form'!I59)","v":0},{"$f":"VALUE('IQEF Intake Form'!J59)","v":{"$error":"#DIV/0!"}},{"$f":"VALUE('IQEF Intake Form'!K59)","v":0},{"$f":"VALUE('IQEF Intake Form'!L59)","v":0},{"$f":"VALUE('IQEF Intake Form'!M59)","v":0},{"$f":"VALUE('IQEF Intake Form'!N59)","v":0},{"$f":"VALUE('IQEF Intake Form'!O59)","v":0},{"$f":"VALUE('IQEF Intake Form'!P59)","v":0},{"$f":"VALUE('IQEF Intake Form'!Q59)","v":0},{"$f":"VALUE('IQEF Intake Form'!R59)","v":0},{"$f":"VALUE('IQEF Intake Form'!S59)","v":0},{"$f":"VALUE('IQEF Intake Form'!T59)","v":0},{"$f":"VALUE('IQEF Intake Form'!U59)","v":0},{"$f":"VALUE('IQEF Intake Form'!V59)","v":0},{"$f":"VALUE('IQEF Intake Form'!W59)","v":0}]
[{"$f":"VALUE('IQEF Intake Form'!F60)","v":0},{"$f":"VALUE('IQEF Intake Form'!G60)","v":0},{"$f":"VALUE('IQEF Intake Form'!H60)","v":0},{"$f":"VALUE('IQEF Intake Form'!I60)","v":0},{"$f":"VALUE('IQEF Intake Form'!J60)","v":0},{"$f":"VALUE('IQEF Intake Form'!K60)","v":0},{"$f":"VALUE('IQEF Intake Form'!L60)","v":0},{"$f":"VALUE('IQEF Intake Form'!M60)","v":0},{"$f":"VALUE('IQEF Intake Form'!N60)","v":0},{"$f":"VALUE('IQEF Intake Form'!O60)","v":0},{"$f":"VALUE('IQEF Intake Form'!P60)","v":0},{"$f":"VALUE('IQEF Intake Form'!Q60)","v":0},{"$f":"VALUE('IQEF Intake Form'!R60)","v":0},{"$f":"VALUE('IQEF Intake Form'!S60)","v":0},{"$f":"VALUE('IQEF Intake Form'!T60)","v":0},{"$f":"VALUE('IQEF Intake Form'!U60)","v":0},{"$f":"VALUE('IQEF Intake Form'!V60)","v":0},{"$f":"VALUE('IQEF Intake Form'!W60)","v":0}]
[{"$f":"VALUE('IQEF Intake Form'!F61)","v":{"$error":"#VALUE!"}},{"$f":"VALUE('IQEF Intake Form'!G61)","v":0},{"$f":"VALUE('IQEF Intake Form'!H61)","v":0},{"$f":"VALUE('IQEF Intake Form'!I61)","v":0},{"$f":"VALUE('IQEF Intake Form'!J61)","v":0},{"$f":"VALUE('IQEF Intake Form'!K61)","v":0},{"$f":"VALUE('IQEF Intake Form'!L61)","v":0},{"$f":"VALUE('IQEF Intake Form'!M61)","v":0},{"$f":"VALUE('IQEF Intake Form'!N61)","v":0},{"$f":"VALUE('IQEF Intake Form'!O61)","v":0},{"$f":"VALUE('IQEF Intake Form'!P61)","v":0},{"$f":"VALUE('IQEF Intake Form'!Q61)","v":0},{"$f":"VALUE('IQEF Intake Form'!R61)","v":0},{"$f":"VALUE('IQEF Intake Form'!S61)","v":0},{"$f":"VALUE('IQEF Intake Form'!T61)","v":0},{"$f":"VALUE('IQEF Intake Form'!U61)","v":0},{"$f":"VALUE('IQEF Intake Form'!V61)","v":0},{"$f":"VALUE('IQEF Intake Form'!W61)","v":0}]
[{"$f":"VALUE('IQEF Intake Form'!F62)","v":{"$error":"#VALUE!"}},{"$f":"VALUE('IQEF Intake Form'!G62)","v":0},{"$f":"VALUE('IQEF Intake Form'!H62)","v":0},{"$f":"VALUE('IQEF Intake Form'!I62)","v":0},{"$f":"VALUE('IQEF Intake Form'!J62)","v":0},{"$f":"VALUE('IQEF Intake Form'!K62)","v":0},{"$f":"VALUE('IQEF Intake Form'!L62)","v":0},{"$f":"VALUE('IQEF Intake Form'!M62)","v":0},{"$f":"VALUE('IQEF Intake Form'!N62)","v":0},{"$f":"VALUE('IQEF Intake Form'!O62)","v":0},{"$f":"VALUE('IQEF Intake Form'!P62)","v":0},{"$f":"VALUE('IQEF Intake Form'!Q62)","v":0},{"$f":"VALUE('IQEF Intake Form'!R62)","v":0},{"$f":"VALUE('IQEF Intake Form'!S62)","v":0},{"$f":"VALUE('IQEF Intake Form'!T62)","v":0},{"$f":"VALUE('IQEF Intake Form'!U62)","v":0},{"$f":"VALUE('IQEF Intake Form'!V62)","v":0},{"$f":"VALUE('IQEF Intake Form'!W62)","v":0}]
[{"$f":"VALUE('IQEF Intake Form'!F63)","v":{"$error":"#VALUE!"}},{"$f":"VALUE('IQEF Intake Form'!G63)","v":{"$error":"#VALUE!"}},{"$f":"VALUE('IQEF Intake Form'!H63)","v":{"$error":"#VALUE!"}},{"$f":"VALUE('IQEF Intake Form'!I63)","v":{"$error":"#VALUE!"}},{"$f":"VALUE('IQEF Intake Form'!J63)","v":{"$error":"#VALUE!"}},{"$f":"VALUE('IQEF Intake Form'!K63)","v":{"$error":"#VALUE!"}},{"$f":"VALUE('IQEF Intake Form'!L63)","v":{"$error":"#VALUE!"}},{"$f":"VALUE('IQEF Intake Form'!M63)","v":{"$error":"#VALUE!"}},{"$f":"VALUE('IQEF Intake Form'!N63)","v":{"$error":"#VALUE!"}},{"$f":"VALUE('IQEF Intake Form'!O63)","v":{"$error":"#VALUE!"}},{"$f":"VALUE('IQEF Intake Form'!P63)","v":{"$error":"#VALUE!"}},{"$f":"VALUE('IQEF Intake Form'!Q63)","v":0},{"$f":"VALUE('IQEF Intake Form'!R63)","v":0},{"$f":"VALUE('IQEF Intake Form'!S63)","v":0},{"$f":"VALUE('IQEF Intake Form'!T63)","v":0},{"$f":"VALUE('IQEF Intake Form'!U63)","v":0},{"$f":"VALUE('IQEF Intake Form'!V63)","v":0},{"$f":"VALUE('IQEF Intake Form'!W63)","v":0}]
[{"$f":"VALUE('IQEF Intake Form'!F64)","v":0},{"$f":"VALUE('IQEF Intake Form'!G64)","v":0},{"$f":"VALUE('IQEF Intake Form'!H64)","v":0},{"$f":"VALUE('IQEF Intake Form'!I64)","v":0},{"$f":"VALUE('IQEF Intake Form'!J64)","v":0},{"$f":"VALUE('IQEF Intake Form'!K64)","v":0},{"$f":"VALUE('IQEF Intake Form'!L64)","v":0},{"$f":"VALUE('IQEF Intake Form'!M64)","v":{"$error":"#DIV/0!"}},{"$f":"VALUE('IQEF Intake Form'!N64)","v":0},{"$f":"VALUE('IQEF Intake Form'!O64)","v":0},{"$f":"VALUE('IQEF Intake Form'!P64)","v":0},{"$f":"VALUE('IQEF Intake Form'!Q64)","v":0},{"$f":"VALUE('IQEF Intake Form'!R64)","v":0},{"$f":"VALUE('IQEF Intake Form'!S64)","v":0},{"$f":"VALUE('IQEF Intake Form'!T64)","v":0},{"$f":"VALUE('IQEF Intake Form'!U64)","v":0},{"$f":"VALUE('IQEF Intake Form'!V64)","v":0},{"$f":"VALUE('IQEF Intake Form'!W64)","v":0}]
[{"$f":"VALUE('IQEF Intake Form'!F65)","v":0},{"$f":"VALUE('IQEF Intake Form'!G65)","v":0},{"$f":"VALUE('IQEF Intake Form'!H65)","v":0},{"$f":"VALUE('IQEF Intake Form'!I65)","v":0},{"$f":"VALUE('IQEF Intake Form'!J65)","v":0},{"$f":"VALUE('IQEF Intake Form'!K65)","v":0},{"$f":"VALUE('IQEF Intake Form'!L65)","v":0},{"$f":"VALUE('IQEF Intake Form'!M65)","v":{"$error":"#DIV/0!"}},{"$f":"VALUE('IQEF Intake Form'!N65)","v":0},{"$f":"VALUE('IQEF Intake Form'!O65)","v":0},{"$f":"VALUE('IQEF Intake Form'!P65)","v":0},{"$f":"VALUE('IQEF Intake Form'!Q65)","v":0},{"$f":"VALUE('IQEF Intake Form'!R65)","v":0},{"$f":"VALUE('IQEF Intake Form'!S65)","v":0},{"$f":"VALUE('IQEF Intake Form'!T65)","v":0},{"$f":"VALUE('IQEF Intake Form'!U65)","v":0},{"$f":"VALUE('IQEF Intake Form'!V65)","v":0},{"$f":"VALUE('IQEF Intake Form'!W65)","v":0}]
[{"$f":"VALUE('IQEF Intake Form'!F66)","v":0},{"$f":"VALUE('IQEF Intake Form'!G66)","v":0},{"$f":"VALUE('IQEF Intake Form'!H66)","v":0},{"$f":"VALUE('IQEF Intake Form'!I66)","v":0},{"$f":"VALUE('IQEF Intake Form'!J66)","v":0},{"$f":"VALUE('IQEF Intake Form'!K66)","v":0},{"$f":"VALUE('IQEF Intake Form'!L66)","v":0},{"$f":"VALUE('IQEF Intake Form'!M66)","v":{"$error":"#DIV/0!"}},{"$f":"VALUE('IQEF Intake Form'!N66)","v":0},{"$f":"VALUE('IQEF Intake Form'!O66)","v":0},{"$f":"VALUE('IQEF Intake Form'!P66)","v":0},{"$f":"VALUE('IQEF Intake Form'!Q66)","v":0},{"$f":"VALUE('IQEF Intake Form'!R66)","v":0},{"$f":"VALUE('IQEF Intake Form'!S66)","v":0},{"$f":"VALUE('IQEF Intake Form'!T66)","v":0},{"$f":"VALUE('IQEF Intake Form'!U66)","v":0},{"$f":"VALUE('IQEF Intake Form'!V66)","v":0},{"$f":"VALUE('IQEF Intake Form'!W66)","v":0}]
[{"$f":"VALUE('IQEF Intake Form'!F67)","v":0},{"$f":"VALUE('IQEF Intake Form'!G67)","v":0},{"$f":"VALUE('IQEF Intake Form'!H67)","v":0},{"$f":"VALUE('IQEF Intake Form'!I67)","v":0},{"$f":"VALUE('IQEF Intake Form'!J67)","v":0},{"$f":"VALUE('IQEF Intake Form'!K67)","v":0},{"$f":"VALUE('IQEF Intake Form'!L67)","v":0},{"$f":"VALUE('IQEF Intake Form'!M67)","v":0},{"$f":"VALUE('IQEF Intake Form'!N67)","v":0},{"$f":"VALUE('IQEF Intake Form'!O67)","v":0},{"$f":"VALUE('IQEF Intake Form'!P67)","v":0},{"$f":"VALUE('IQEF Intake Form'!Q67)","v":0},{"$f":"VALUE('IQEF Intake Form'!R67)","v":0},{"$f":"VALUE('IQEF Intake Form'!S67)","v":0},{"$f":"VALUE('IQEF Intake Form'!T67)","v":0},{"$f":"VALUE('IQEF Intake Form'!U67)","v":0},{"$f":"VALUE('IQEF Intake Form'!V67)","v":0},{"$f":"VALUE('IQEF Intake Form'!W67)","v":0}]
[{"$f":"VALUE('IQEF Intake Form'!F68)","v":{"$error":"#VALUE!"}},{"$f":"VALUE('IQEF Intake Form'!G68)","v":0},{"$f":"VALUE('IQEF Intake Form'!H68)","v":0},{"$f":"VALUE('IQEF Intake Form'!I68)","v":0},{"$f":"VALUE('IQEF Intake Form'!J68)","v":0},{"$f":"VALUE('IQEF Intake Form'!K68)","v":0},{"$f":"VALUE('IQEF Intake Form'!L68)","v":0},{"$f":"VALUE('IQEF Intake Form'!M68)","v":0},{"$f":"VALUE('IQEF Intake Form'!N68)","v":0},{"$f":"VALUE('IQEF Intake Form'!O68)","v":0},{"$f":"VALUE('IQEF Intake Form'!P68)","v":0},{"$f":"VALUE('IQEF Intake Form'!Q68)","v":0},{"$f":"VALUE('IQEF Intake Form'!R68)","v":0},{"$f":"VALUE('IQEF Intake Form'!S68)","v":0},{"$f":"VALUE('IQEF Intake Form'!T68)","v":0},{"$f":"VALUE('IQEF Intake Form'!U68)","v":0},{"$f":"VALUE('IQEF Intake Form'!V68)","v":0},{"$f":"VALUE('IQEF Intake Form'!W68)","v":0}]
[{"$f":"VALUE('IQEF Intake Form'!F69)","v":{"$error":"#VALUE!"}},{"$f":"VALUE('IQEF Intake Form'!G69)","v":{"$error":"#VALUE!"}},{"$f":"VALUE('IQEF Intake Form'!H69)","v":{"$error":"#VALUE!"}},{"$f":"VALUE('IQEF Intake Form'!I69)","v":{"$error":"#VALUE!"}},{"$f":"VALUE('IQEF Intake Form'!J69)","v":{"$error":"#VALUE!"}},{"$f":"VALUE('IQEF Intake Form'!K69)","v":{"$error":"#VALUE!"}},{"$f":"VALUE('IQEF Intake Form'!L69)","v":{"$error":"#VALUE!"}},{"$f":"VALUE('IQEF Intake Form'!M69)","v":0},{"$f":"VALUE('IQEF Intake Form'!N69)","v":0},{"$f":"VALUE('IQEF Intake Form'!O69)","v":0},{"$f":"VALUE('IQEF Intake Form'!P69)","v":0},{"$f":"VALUE('IQEF Intake Form'!Q69)","v":0},{"$f":"VALUE('IQEF Intake Form'!R69)","v":0},{"$f":"VALUE('IQEF Intake Form'!S69)","v":0},{"$f":"VALUE('IQEF Intake Form'!T69)","v":0},{"$f":"VALUE('IQEF Intake Form'!U69)","v":0},{"$f":"VALUE('IQEF Intake Form'!V69)","v":0},{"$f":"VALUE('IQEF Intake Form'!W69)","v":0}]
[{"$f":"VALUE('IQEF Intake Form'!F70)","v":0},{"$f":"VALUE('IQEF Intake Form'!G70)","v":0},{"$f":"VALUE('IQEF Intake Form'!H70)","v":0},{"$f":"VALUE('IQEF Intake Form'!I70)","v":0},{"$f":"VALUE('IQEF Intake Form'!J70)","v":0},{"$f":"VALUE('IQEF Intake Form'!K70)","v":{"$error":"#DIV/0!"}},{"$f":"VALUE('IQEF Intake Form'!L70)","v":0},{"$f":"VALUE('IQEF Intake Form'!M70)","v":0},{"$f":"VALUE('IQEF Intake Form'!N70)","v":0},{"$f":"VALUE('IQEF Intake Form'!O70)","v":0},{"$f":"VALUE('IQEF Intake Form'!P70)","v":0},{"$f":"VALUE('IQEF Intake Form'!Q70)","v":0},{"$f":"VALUE('IQEF Intake Form'!R70)","v":0},{"$f":"VALUE('IQEF Intake Form'!S70)","v":0},{"$f":"VALUE('IQEF Intake Form'!T70)","v":0},{"$f":"VALUE('IQEF Intake Form'!U70)","v":0},{"$f":"VALUE('IQEF Intake Form'!V70)","v":0},{"$f":"VALUE('IQEF Intake Form'!W70)","v":0}]
[{"$f":"VALUE('IQEF Intake Form'!F71)","v":0},{"$f":"VALUE('IQEF Intake Form'!G71)","v":0},{"$f":"VALUE('IQEF Intake Form'!H71)","v":0},{"$f":"VALUE('IQEF Intake Form'!I71)","v":0},{"$f":"VALUE('IQEF Intake Form'!J71)","v":0},{"$f":"VALUE('IQEF Intake Form'!K71)","v":{"$error":"#DIV/0!"}},{"$f":"VALUE('IQEF Intake Form'!L71)","v":0},{"$f":"VALUE('IQEF Intake Form'!M71)","v":0},{"$f":"VALUE('IQEF Intake Form'!N71)","v":0},{"$f":"VALUE('IQEF Intake Form'!O71)","v":0},{"$f":"VALUE('IQEF Intake Form'!P71)","v":0},{"$f":"VALUE('IQEF Intake Form'!Q71)","v":0},{"$f":"VALUE('IQEF Intake Form'!R71)","v":0},{"$f":"VALUE('IQEF Intake Form'!S71)","v":0},{"$f":"VALUE('IQEF Intake Form'!T71)","v":0},{"$f":"VALUE('IQEF Intake Form'!U71)","v":0},{"$f":"VALUE('IQEF Intake Form'!V71)","v":0},{"$f":"VALUE('IQEF Intake Form'!W71)","v":0}]
[{"$f":"VALUE('IQEF Intake Form'!F72)","v":0},{"$f":"VALUE('IQEF Intake Form'!G72)","v":0},{"$f":"VALUE('IQEF Intake Form'!H72)","v":0},{"$f":"VALUE('IQEF Intake Form'!I72)","v":0},{"$f":"VALUE('IQEF Intake Form'!J72)","v":0},{"$f":"VALUE('IQEF Intake Form'!K72)","v":{"$error":"#DIV/0!"}},{"$f":"VALUE('IQEF Intake Form'!L72)","v":0},{"$f":"VALUE('IQEF Intake Form'!M72)","v":0},{"$f":"VALUE('IQEF Intake Form'!N72)","v":0},{"$f":"VALUE('IQEF Intake Form'!O72)","v":0},{"$f":"VALUE('IQEF Intake Form'!P72)","v":0},{"$f":"VALUE('IQEF Intake Form'!Q72)","v":0},{"$f":"VALUE('IQEF Intake Form'!R72)","v":0},{"$f":"VALUE('IQEF Intake Form'!S72)","v":0},{"$f":"VALUE('IQEF Intake Form'!T72)","v":0},{"$f":"VALUE('IQEF Intake Form'!U72)","v":0},{"$f":"VALUE('IQEF Intake Form'!V72)","v":0},{"$f":"VALUE('IQEF Intake Form'!W72)","v":0}]
[{"$f":"VALUE('IQEF Intake Form'!F73)","v":0},{"$f":"VALUE('IQEF Intake Form'!G73)","v":0},{"$f":"VALUE('IQEF Intake Form'!H73)","v":0},{"$f":"VALUE('IQEF Intake Form'!I73)","v":0},{"$f":"VALUE('IQEF Intake Form'!J73)","v":0},{"$f":"VALUE('IQEF Intake Form'!K73)","v":{"$error":"#DIV/0!"}},{"$f":"VALUE('IQEF Intake Form'!L73)","v":0},{"$f":"VALUE('IQEF Intake Form'!M73)","v":0},{"$f":"VALUE('IQEF Intake Form'!N73)","v":0},{"$f":"VALUE('IQEF Intake Form'!O73)","v":0},{"$f":"VALUE('IQEF Intake Form'!P73)","v":0},{"$f":"VALUE('IQEF Intake Form'!Q73)","v":0},{"$f":"VALUE('IQEF Intake Form'!R73)","v":0},{"$f":"VALUE('IQEF Intake Form'!S73)","v":0},{"$f":"VALUE('IQEF Intake Form'!T73)","v":0},{"$f":"VALUE('IQEF Intake Form'!U73)","v":0},{"$f":"VALUE('IQEF Intake Form'!V73)","v":0},{"$f":"VALUE('IQEF Intake Form'!W73)","v":0}]
[{"$f":"VALUE('IQEF Intake Form'!F74)","v":0},{"$f":"VALUE('IQEF Intake Form'!G74)","v":0},{"$f":"VALUE('IQEF Intake Form'!H74)","v":0},{"$f":"VALUE('IQEF Intake Form'!I74)","v":0},{"$f":"VALUE('IQEF Intake Form'!J74)","v":0},{"$f":"VALUE('IQEF Intake Form'!K74)","v":0},{"$f":"VALUE('IQEF Intake Form'!L74)","v":0},{"$f":"VALUE('IQEF Intake Form'!M74)","v":0},{"$f":"VALUE('IQEF Intake Form'!N74)","v":0},{"$f":"VALUE('IQEF Intake Form'!O74)","v":0},{"$f":"VALUE('IQEF Intake Form'!P74)","v":0},{"$f":"VALUE('IQEF Intake Form'!Q74)","v":0},{"$f":"VALUE('IQEF Intake Form'!R74)","v":0},{"$f":"VALUE('IQEF Intake Form'!S74)","v":0},{"$f":"VALUE('IQEF Intake Form'!T74)","v":0},{"$f":"VALUE('IQEF Intake Form'!U74)","v":0},{"$f":"VALUE('IQEF Intake Form'!V74)","v":0},{"$f":"VALUE('IQEF Intake Form'!W74)","v":0}]
[{"$f":"VALUE('IQEF Intake Form'!F75)","v":0},{"$f":"VALUE('IQEF Intake Form'!G75)","v":{"$error":"#VALUE!"}},{"$f":"VALUE('IQEF Intake Form'!H75)","v":{"$error":"#VALUE!"}},{"$f":"VALUE('IQEF Intake Form'!I75)","v":{"$error":"#VALUE!"}},{"$f":"VALUE('IQEF Intake Form'!J75)","v":{"$error":"#VALUE!"}},{"$f":"VALUE('IQEF Intake Form'!K75)","v":{"$error":"#VALUE!"}},{"$f":"VALUE('IQEF Intake Form'!L75)","v":{"$error":"#VALUE!"}},{"$f":"VALUE('IQEF Intake Form'!M75)","v":0},{"$f":"VALUE('IQEF Intake Form'!N75)","v":0},{"$f":"VALUE('IQEF Intake Form'!O75)","v":0},{"$f":"VALUE('IQEF Intake Form'!P75)","v":0},{"$f":"VALUE('IQEF Intake Form'!Q75)","v":0},{"$f":"VALUE('IQEF Intake Form'!R75)","v":0},{"$f":"VALUE('IQEF Intake Form'!S75)","v":0},{"$f":"VALUE('IQEF Intake Form'!T75)","v":0},{"$f":"VALUE('IQEF Intake Form'!U75)","v":0},{"$f":"VALUE('IQEF Intake Form'!V75)","v":0},{"$f":"VALUE('IQEF Intake Form'!W75)","v":0}]
[{"$f":"VALUE('IQEF Intake Form'!F76)","v":{"$error":"#VALUE!"}},{"$f":"VALUE('IQEF Intake Form'!G76)","v":0},{"$f":"VALUE('IQEF Intake Form'!H76)","v":0},{"$f":"VALUE('IQEF Intake Form'!I76)","v":0},{"$f":"VALUE('IQEF Intake Form'!J76)","v":0},{"$f":"VALUE('IQEF Intake Form'!K76)","v":{"$error":"#DIV/0!"}},{"$f":"VALUE('IQEF Intake Form'!L76)","v":0},{"$f":"VALUE('IQEF Intake Form'!M76)","v":0},{"$f":"VALUE('IQEF Intake Form'!N76)","v":0},{"$f":"VALUE('IQEF Intake Form'!O76)","v":0},{"$f":"VALUE('IQEF Intake Form'!P76)","v":0},{"$f":"VALUE('IQEF Intake Form'!Q76)","v":0},{"$f":"VALUE('IQEF Intake Form'!R76)","v":0},{"$f":"VALUE('IQEF Intake Form'!S76)","v":0},{"$f":"VALUE('IQEF Intake Form'!T76)","v":0},{"$f":"VALUE('IQEF Intake Form'!U76)","v":0},{"$f":"VALUE('IQEF Intake Form'!V76)","v":0},{"$f":"VALUE('IQEF Intake Form'!W76)","v":0}]
[{"$f":"VALUE('IQEF Intake Form'!F77)","v":{"$error":"#VALUE!"}},{"$f":"VALUE('IQEF Intake Form'!G77)","v":0},{"$f":"VALUE('IQEF Intake Form'!H77)","v":0},{"$f":"VALUE('IQEF Intake Form'!I77)","v":0},{"$f":"VALUE('IQEF Intake Form'!J77)","v":0},{"$f":"VALUE('IQEF Intake Form'!K77)","v":{"$error":"#DIV/0!"}},{"$f":"VALUE('IQEF Intake Form'!L77)","v":0},{"$f":"VALUE('IQEF Intake Form'!M77)","v":0},{"$f":"VALUE('IQEF Intake Form'!N77)","v":0},{"$f":"VALUE('IQEF Intake Form'!O77)","v":0},{"$f":"VALUE('IQEF Intake Form'!P77)","v":0},{"$f":"VALUE('IQEF Intake Form'!Q77)","v":0},{"$f":"VALUE('IQEF Intake Form'!R77)","v":0},{"$f":"VALUE('IQEF Intake Form'!S77)","v":0},{"$f":"VALUE('IQEF Intake Form'!T77)","v":0},{"$f":"VALUE('IQEF Intake Form'!U77)","v":0},{"$f":"VALUE('IQEF Intake Form'!V77)","v":0},{"$f":"VALUE('IQEF Intake Form'!W77)","v":0}]
[{"$f":"VALUE('IQEF Intake Form'!F78)","v":0},{"$f":"VALUE('IQEF Intake Form'!G78)","v":0},{"$f":"VALUE('IQEF Intake Form'!H78)","v":0},{"$f":"VALUE('IQEF Intake Form'!I78)","v":0},{"$f":"VALUE('IQEF Intake Form'!J78)","v":0},{"$f":"VALUE('IQEF Intake Form'!K78)","v":0},{"$f":"VALUE('IQEF Intake Form'!L78)","v":0},{"$f":"VALUE('IQEF Intake Form'!M78)","v":0},{"$f":"VALUE('IQEF Intake Form'!N78)","v":0},{"$f":"VALUE('IQEF Intake Form'!O78)","v":0},{"$f":"VALUE('IQEF Intake Form'!P78)","v":0},{"$f":"VALUE('IQEF Intake Form'!Q78)","v":0},{"$f":"VALUE('IQEF Intake Form'!R78)","v":0},{"$f":"VALUE('IQEF Intake Form'!S78)","v":0},{"$f":"VALUE('IQEF Intake Form'!T78)","v":0},{"$f":"VALUE('IQEF Intake Form'!U78)","v":0},{"$f":"VALUE('IQEF Intake Form'!V78)","v":0},{"$f":"VALUE('IQEF Intake Form'!W78)","v":0}]
[{"$f":"VALUE('IQEF Intake Form'!F79)","v":{"$error":"#VALUE!"}},{"$f":"VALUE('IQEF Intake Form'!G79)","v":0},{"$f":"VALUE('IQEF Intake Form'!H79)","v":0},{"$f":"VALUE('IQEF Intake Form'!I79)","v":0},{"$f":"VALUE('IQEF Intake Form'!J79)","v":0},{"$f":"VALUE('IQEF Intake Form'!K79)","v":0},{"$f":"VALUE('IQEF Intake Form'!L79)","v":0},{"$f":"VALUE('IQEF Intake Form'!M79)","v":0},{"$f":"VALUE('IQEF Intake Form'!N79)","v":0},{"$f":"VALUE('IQEF Intake Form'!O79)","v":0},{"$f":"VALUE('IQEF Intake Form'!P79)","v":0},{"$f":"VALUE('IQEF Intake Form'!Q79)","v":0},{"$f":"VALUE('IQEF Intake Form'!R79)","v":0},{"$f":"VALUE('IQEF Intake Form'!S79)","v":0},{"$f":"VALUE('IQEF Intake Form'!T79)","v":0},{"$f":"VALUE('IQEF Intake Form'!U79)","v":0},{"$f":"VALUE('IQEF Intake Form'!V79)","v":0},{"$f":"VALUE('IQEF Intake Form'!W79)","v":0}]
[{"$f":"VALUE('IQEF Intake Form'!F80)","v":{"$error":"#VALUE!"}},{"$f":"VALUE('IQEF Intake Form'!G80)","v":{"$error":"#VALUE!"}},{"$f":"VALUE('IQEF Intake Form'!H80)","v":{"$error":"#VALUE!"}},{"$f":"VALUE('IQEF Intake Form'!I80)","v":{"$error":"#VALUE!"}},{"$f":"VALUE('IQEF Intake Form'!J80)","v":{"$error":"#VALUE!"}},{"$f":"VALUE('IQEF Intake Form'!K80)","v":{"$error":"#VALUE!"}},{"$f":"VALUE('IQEF Intake Form'!L80)","v":0},{"$f":"VALUE('IQEF Intake Form'!M80)","v":0},{"$f":"VALUE('IQEF Intake Form'!N80)","v":0},{"$f":"VALUE('IQEF Intake Form'!O80)","v":0},{"$f":"VALUE('IQEF Intake Form'!P80)","v":0},{"$f":"VALUE('IQEF Intake Form'!Q80)","v":0},{"$f":"VALUE('IQEF Intake Form'!R80)","v":0},{"$f":"VALUE('IQEF Intake Form'!S80)","v":0},{"$f":"VALUE('IQEF Intake Form'!T80)","v":0},{"$f":"VALUE('IQEF Intake Form'!U80)","v":0},{"$f":"VALUE('IQEF Intake Form'!V80)","v":0},{"$f":"VALUE('IQEF Intake Form'!W80)","v":0}]
[{"$f":"VALUE('IQEF Intake Form'!F81)","v":0},{"$f":"VALUE('IQEF Intake Form'!G81)","v":0},{"$f":"VALUE('IQEF Intake Form'!H81)","v":0},{"$f":"VALUE('IQEF Intake Form'!I81)","v":0},{"$f":"VALUE('IQEF Intake Form'!J81)","v":{"$error":"#DIV/0!"}},{"$f":"VALUE('IQEF Intake Form'!K81)","v":0},{"$f":"VALUE('IQEF Intake Form'!L81)","v":0},{"$f":"VALUE('IQEF Intake Form'!M81)","v":0},{"$f":"VALUE('IQEF Intake Form'!N81)","v":0},{"$f":"VALUE('IQEF Intake Form'!O81)","v":0},{"$f":"VALUE('IQEF Intake Form'!P81)","v":0},{"$f":"VALUE('IQEF Intake Form'!Q81)","v":0},{"$f":"VALUE('IQEF Intake Form'!R81)","v":0},{"$f":"VALUE('IQEF Intake Form'!S81)","v":0},{"$f":"VALUE('IQEF Intake Form'!T81)","v":0},{"$f":"VALUE('IQEF Intake Form'!U81)","v":0},{"$f":"VALUE('IQEF Intake Form'!V81)","v":0},{"$f":"VALUE('IQEF Intake Form'!W81)","v":0}]
[{"$f":"VALUE('IQEF Intake Form'!F82)","v":0},{"$f":"VALUE('IQEF Intake Form'!G82)","v":0},{"$f":"VALUE('IQEF Intake Form'!H82)","v":0},{"$f":"VALUE('IQEF Intake Form'!I82)","v":0},{"$f":"VALUE('IQEF Intake Form'!J82)","v":{"$error":"#DIV/0!"}},{"$f":"VALUE('IQEF Intake Form'!K82)","v":0},{"$f":"VALUE('IQEF Intake Form'!L82)","v":0},{"$f":"VALUE('IQEF Intake Form'!M82)","v":0},{"$f":"VALUE('IQEF Intake Form'!N82)","v":0},{"$f":"VALUE('IQEF Intake Form'!O82)","v":0},{"$f":"VALUE('IQEF Intake Form'!P82)","v":0},{"$f":"VALUE('IQEF Intake Form'!Q82)","v":0},{"$f":"VALUE('IQEF Intake Form'!R82)","v":0},{"$f":"VALUE('IQEF Intake Form'!S82)","v":0},{"$f":"VALUE('IQEF Intake Form'!T82)","v":0},{"$f":"VALUE('IQEF Intake Form'!U82)","v":0},{"$f":"VALUE('IQEF Intake Form'!V82)","v":0},{"$f":"VALUE('IQEF Intake Form'!W82)","v":0}]
[{"$f":"VALUE('IQEF Intake Form'!F83)","v":0},{"$f":"VALUE('IQEF Intake Form'!G83)","v":0},{"$f":"VALUE('IQEF Intake Form'!H83)","v":0},{"$f":"VALUE('IQEF Intake Form'!I83)","v":0},{"$f":"VALUE('IQEF Intake Form'!J83)","v":{"$error":"#DIV/0!"}},{"$f":"VALUE('IQEF Intake Form'!K83)","v":0},{"$f":"VALUE('IQEF Intake Form'!L83)","v":0},{"$f":"VALUE('IQEF Intake Form'!M83)","v":0},{"$f":"VALUE('IQEF Intake Form'!N83)","v":0},{"$f":"VALUE('IQEF Intake Form'!O83)","v":0},{"$f":"VALUE('IQEF Intake Form'!P83)","v":0},{"$f":"VALUE('IQEF Intake Form'!Q83)","v":0},{"$f":"VALUE('IQEF Intake Form'!R83)","v":0},{"$f":"VALUE('IQEF Intake Form'!S83)","v":0},{"$f":"VALUE('IQEF Intake Form'!T83)","v":0},{"$f":"VALUE('IQEF Intake Form'!U83)","v":0},{"$f":"VALUE('IQEF Intake Form'!V83)","v":0},{"$f":"VALUE('IQEF Intake Form'!W83)","v":0}]
[{"$f":"VALUE('IQEF Intake Form'!F84)","v":0},{"$f":"VALUE('IQEF Intake Form'!G84)","v":0},{"$f":"VALUE('IQEF Intake Form'!H84)","v":0},{"$f":"VALUE('IQEF Intake Form'!I84)","v":0},{"$f":"VALUE('IQEF Intake Form'!J84)","v":{"$error":"#DIV/0!"}},{"$f":"VALUE('IQEF Intake Form'!K84)","v":0},{"$f":"VALUE('IQEF Intake Form'!L84)","v":0},{"$f":"VALUE('IQEF Intake Form'!M84)","v":0},{"$f":"VALUE('IQEF Intake Form'!N84)","v":0},{"$f":"VALUE('IQEF Intake Form'!O84)","v":0},{"$f":"VALUE('IQEF Intake Form'!P84)","v":0},{"$f":"VALUE('IQEF Intake Form'!Q84)","v":0},{"$f":"VALUE('IQEF Intake Form'!R84)","v":0},{"$f":"VALUE('IQEF Intake Form'!S84)","v":0},{"$f":"VALUE('IQEF Intake Form'!T84)","v":0},{"$f":"VALUE('IQEF Intake Form'!U84)","v":0},{"$f":"VALUE('IQEF Intake Form'!V84)","v":0},{"$f":"VALUE('IQEF Intake Form'!W84)","v":0}]
[{"$f":"VALUE('IQEF Intake Form'!F85)","v":0},{"$f":"VALUE('IQEF Intake Form'!G85)","v":0},{"$f":"VALUE('IQEF Intake Form'!H85)","v":0},{"$f":"VALUE('IQEF Intake Form'!I85)","v":0},{"$f":"VALUE('IQEF Intake Form'!J85)","v":{"$error":"#DIV/0!"}},{"$f":"VALUE('IQEF Intake Form'!K85)","v":0},{"$f":"VALUE('IQEF Intake Form'!L85)","v":0},{"$f":"VALUE('IQEF Intake Form'!M85)","v":0},{"$f":"VALUE('IQEF Intake Form'!N85)","v":0},{"$f":"VALUE('IQEF Intake Form'!O85)","v":0},{"$f":"VALUE('IQEF Intake Form'!P85)","v":0},{"$f":"VALUE('IQEF Intake Form'!Q85)","v":0},{"$f":"VALUE('IQEF Intake Form'!R85)","v":0},{"$f":"VALUE('IQEF Intake Form'!S85)","v":0},{"$f":"VALUE('IQEF Intake Form'!T85)","v":0},{"$f":"VALUE('IQEF Intake Form'!U85)","v":0},{"$f":"VALUE('IQEF Intake Form'!V85)","v":0},{"$f":"VALUE('IQEF Intake Form'!W85)","v":0}]
[{"$f":"VALUE('IQEF Intake Form'!F86)","v":0},{"$f":"VALUE('IQEF Intake Form'!G86)","v":0},{"$f":"VALUE('IQEF Intake Form'!H86)","v":0},{"$f":"VALUE('IQEF Intake Form'!I86)","v":0},{"$f":"VALUE('IQEF Intake Form'!J86)","v":{"$error":"#DIV/0!"}},{"$f":"VALUE('IQEF Intake Form'!K86)","v":0},{"$f":"VALUE('IQEF Intake Form'!L86)","v":0},{"$f":"VALUE('IQEF Intake Form'!M86)","v":0},{"$f":"VALUE('IQEF Intake Form'!N86)","v":0},{"$f":"VALUE('IQEF Intake Form'!O86)","v":0},{"$f":"VALUE('IQEF Intake Form'!P86)","v":0},{"$f":"VALUE('IQEF Intake Form'!Q86)","v":0},{"$f":"VALUE('IQEF Intake Form'!R86)","v":0},{"$f":"VALUE('IQEF Intake Form'!S86)","v":0},{"$f":"VALUE('IQEF Intake Form'!T86)","v":0},{"$f":"VALUE('IQEF Intake Form'!U86)","v":0},{"$f":"VALUE('IQEF Intake Form'!V86)","v":0},{"$f":"VALUE('IQEF Intake Form'!W86)","v":0}]
[{"$f":"VALUE('IQEF Intake Form'!F87)","v":0},{"$f":"VALUE('IQEF Intake Form'!G87)","v":0},{"$f":"VALUE('IQEF Intake Form'!H87)","v":0},{"$f":"VALUE('IQEF Intake Form'!I87)","v":0},{"$f":"VALUE('IQEF Intake Form'!J87)","v":0},{"$f":"VALUE('IQEF Intake Form'!K87)","v":0},{"$f":"VALUE('IQEF Intake Form'!L87)","v":0},{"$f":"VALUE('IQEF Intake Form'!M87)","v":0},{"$f":"VALUE('IQEF Intake Form'!N87)","v":0},{"$f":"VALUE('IQEF Intake Form'!O87)","v":0},{"$f":"VALUE('IQEF Intake Form'!P87)","v":0},{"$f":"VALUE('IQEF Intake Form'!Q87)","v":0},{"$f":"VALUE('IQEF Intake Form'!R87)","v":0},{"$f":"VALUE('IQEF Intake Form'!S87)","v":0},{"$f":"VALUE('IQEF Intake Form'!T87)","v":0},{"$f":"VALUE('IQEF Intake Form'!U87)","v":0},{"$f":"VALUE('IQEF Intake Form'!V87)","v":0},{"$f":"VALUE('IQEF Intake Form'!W87)","v":0}]
[{"$f":"VALUE('IQEF Intake Form'!F88)","v":0},{"$f":"VALUE('IQEF Intake Form'!G88)","v":0},{"$f":"VALUE('IQEF Intake Form'!H88)","v":0},{"$f":"VALUE('IQEF Intake Form'!I88)","v":0},{"$f":"VALUE('IQEF Intake Form'!J88)","v":0},{"$f":"VALUE('IQEF Intake Form'!K88)","v":0},{"$f":"VALUE('IQEF Intake Form'!L88)","v":0},{"$f":"VALUE('IQEF Intake Form'!M88)","v":0},{"$f":"VALUE('IQEF Intake Form'!N88)","v":0},{"$f":"VALUE('IQEF Intake Form'!O88)","v":0},{"$f":"VALUE('IQEF Intake Form'!P88)","v":0},{"$f":"VALUE('IQEF Intake Form'!Q88)","v":0},{"$f":"VALUE('IQEF Intake Form'!R88)","v":0},{"$f":"VALUE('IQEF Intake Form'!S88)","v":0},{"$f":"VALUE('IQEF Intake Form'!T88)","v":0},{"$f":"VALUE('IQEF Intake Form'!U88)","v":0},{"$f":"VALUE('IQEF Intake Form'!V88)","v":0},{"$f":"VALUE('IQEF Intake Form'!W88)","v":0}]
[{"$f":"VALUE('IQEF Intake Form'!F89)","v":0},{"$f":"VALUE('IQEF Intake Form'!G89)","v":0},{"$f":"VALUE('IQEF Intake Form'!H89)","v":0},{"$f":"VALUE('IQEF Intake Form'!I89)","v":0},{"$f":"VALUE('IQEF Intake Form'!J89)","v":0},{"$f":"VALUE('IQEF Intake Form'!K89)","v":0},{"$f":"VALUE('IQEF Intake Form'!L89)","v":0},{"$f":"VALUE('IQEF Intake Form'!M89)","v":0},{"$f":"VALUE('IQEF Intake Form'!N89)","v":0},{"$f":"VALUE('IQEF Intake Form'!O89)","v":0},{"$f":"VALUE('IQEF Intake Form'!P89)","v":0},{"$f":"VALUE('IQEF Intake Form'!Q89)","v":0},{"$f":"VALUE('IQEF Intake Form'!R89)","v":0},{"$f":"VALUE('IQEF Intake Form'!S89)","v":0},{"$f":"VALUE('IQEF Intake Form'!T89)","v":0},{"$f":"VALUE('IQEF Intake Form'!U89)","v":0},{"$f":"VALUE('IQEF Intake Form'!V89)","v":0},{"$f":"VALUE('IQEF Intake Form'!W89)","v":0}]
[{"$f":"VALUE('IQEF Intake Form'!F90)","v":0},{"$f":"VALUE('IQEF Intake Form'!G90)","v":0},{"$f":"VALUE('IQEF Intake Form'!H90)","v":0},{"$f":"VALUE('IQEF Intake Form'!I90)","v":0},{"$f":"VALUE('IQEF Intake Form'!J90)","v":0},{"$f":"VALUE('IQEF Intake Form'!K90)","v":0},{"$f":"VALUE('IQEF Intake Form'!L90)","v":0},{"$f":"VALUE('IQEF Intake Form'!M90)","v":0},{"$f":"VALUE('IQEF Intake Form'!N90)","v":0},{"$f":"VALUE('IQEF Intake Form'!O90)","v":0},{"$f":"VALUE('IQEF Intake Form'!P90)","v":0},{"$f":"VALUE('IQEF Intake Form'!Q90)","v":0},{"$f":"VALUE('IQEF Intake Form'!R90)","v":0},{"$f":"VALUE('IQEF Intake Form'!S90)","v":0},{"$f":"VALUE('IQEF Intake Form'!T90)","v":0},{"$f":"VALUE('IQEF Intake Form'!U90)","v":0},{"$f":"VALUE('IQEF Intake Form'!V90)","v":0},{"$f":"VALUE('IQEF Intake Form'!W90)","v":0}]
[{"$f":"VALUE('IQEF Intake Form'!F91)","v":0},{"$f":"VALUE('IQEF Intake Form'!G91)","v":0},{"$f":"VALUE('IQEF Intake Form'!H91)","v":0},{"$f":"VALUE('IQEF Intake Form'!I91)","v":0},{"$f":"VALUE('IQEF Intake Form'!J91)","v":0},{"$f":"VALUE('IQEF Intake Form'!K91)","v":0},{"$f":"VALUE('IQEF Intake Form'!L91)","v":0},{"$f":"VALUE('IQEF Intake Form'!M91)","v":0},{"$f":"VALUE('IQEF Intake Form'!N91)","v":0},{"$f":"VALUE('IQEF Intake Form'!O91)","v":0},{"$f":"VALUE('IQEF Intake Form'!P91)","v":0},{"$f":"VALUE('IQEF Intake Form'!Q91)","v":0},{"$f":"VALUE('IQEF Intake Form'!R91)","v":0},{"$f":"VALUE('IQEF Intake Form'!S91)","v":0},{"$f":"VALUE('IQEF Intake Form'!T91)","v":0},{"$f":"VALUE('IQEF Intake Form'!U91)","v":0},{"$f":"VALUE('IQEF Intake Form'!V91)","v":0},{"$f":"VALUE('IQEF Intake Form'!W91)","v":0}]
[{"$f":"VALUE('IQEF Intake Form'!F92)","v":0},{"$f":"VALUE('IQEF Intake Form'!G92)","v":0},{"$f":"VALUE('IQEF Intake Form'!H92)","v":0},{"$f":"VALUE('IQEF Intake Form'!I92)","v":0},{"$f":"VALUE('IQEF Intake Form'!J92)","v":0},{"$f":"VALUE('IQEF Intake Form'!K92)","v":0},{"$f":"VALUE('IQEF Intake Form'!L92)","v":0},{"$f":"VALUE('IQEF Intake Form'!M92)","v":0},{"$f":"VALUE('IQEF Intake Form'!N92)","v":0},{"$f":"VALUE('IQEF Intake Form'!O92)","v":0},{"$f":"VALUE('IQEF Intake Form'!P92)","v":0},{"$f":"VALUE('IQEF Intake Form'!Q92)","v":0},{"$f":"VALUE('IQEF Intake Form'!R92)","v":0},{"$f":"VALUE('IQEF Intake Form'!S92)","v":0},{"$f":"VALUE('IQEF Intake Form'!T92)","v":0},{"$f":"VALUE('IQEF Intake Form'!U92)","v":0},{"$f":"VALUE('IQEF Intake Form'!V92)","v":0},{"$f":"VALUE('IQEF Intake Form'!W92)","v":0}]
[{"$f":"VALUE('IQEF Intake Form'!F93)","v":0},{"$f":"VALUE('IQEF Intake Form'!G93)","v":0},{"$f":"VALUE('IQEF Intake Form'!H93)","v":0},{"$f":"VALUE('IQEF Intake Form'!I93)","v":0},{"$f":"VALUE('IQEF Intake Form'!J93)","v":0},{"$f":"VALUE('IQEF Intake Form'!K93)","v":0},{"$f":"VALUE('IQEF Intake Form'!L93)","v":0},{"$f":"VALUE('IQEF Intake Form'!M93)","v":0},{"$f":"VALUE('IQEF Intake Form'!N93)","v":0},{"$f":"VALUE('IQEF Intake Form'!O93)","v":0},{"$f":"VALUE('IQEF Intake Form'!P93)","v":0},{"$f":"VALUE('IQEF Intake Form'!Q93)","v":0},{"$f":"VALUE('IQEF Intake Form'!R93)","v":0},{"$f":"VALUE('IQEF Intake Form'!S93)","v":0},{"$f":"VALUE('IQEF Intake Form'!T93)","v":0},{"$f":"VALUE('IQEF Intake Form'!U93)","v":0},{"$f":"VALUE('IQEF Intake Form'!V93)","v":0},{"$f":"VALUE('IQEF Intake Form'!W93)","v":0}]
[{"$f":"VALUE('IQEF Intake Form'!F94)","v":0},{"$f":"VALUE('IQEF Intake Form'!G94)","v":0},{"$f":"VALUE('IQEF Intake Form'!H94)","v":0},{"$f":"VALUE('IQEF Intake Form'!I94)","v":0},{"$f":"VALUE('IQEF Intake Form'!J94)","v":0},{"$f":"VALUE('IQEF Intake Form'!K94)","v":0},{"$f":"VALUE('IQEF Intake Form'!L94)","v":0},{"$f":"VALUE('IQEF Intake Form'!M94)","v":0},{"$f":"VALUE('IQEF Intake Form'!N94)","v":0},{"$f":"VALUE('IQEF Intake Form'!O94)","v":0},{"$f":"VALUE('IQEF Intake Form'!P94)","v":0},{"$f":"VALUE('IQEF Intake Form'!Q94)","v":0},{"$f":"VALUE('IQEF Intake Form'!R94)","v":0},{"$f":"VALUE('IQEF Intake Form'!S94)","v":0},{"$f":"VALUE('IQEF Intake Form'!T94)","v":0},{"$f":"VALUE('IQEF Intake Form'!U94)","v":0},{"$f":"VALUE('IQEF Intake Form'!V94)","v":0},{"$f":"VALUE('IQEF Intake Form'!W94)","v":0}]
[{"$f":"VALUE('IQEF Intake Form'!F95)","v":{"$error":"#VALUE!"}},{"$f":"VALUE('IQEF Intake Form'!G95)","v":0},{"$f":"VALUE('IQEF Intake Form'!H95)","v":0},{"$f":"VALUE('IQEF Intake Form'!I95)","v":0},{"$f":"VALUE('IQEF Intake Form'!J95)","v":0},{"$f":"VALUE('IQEF Intake Form'!K95)","v":0},{"$f":"VALUE('IQEF Intake Form'!L95)","v":0},{"$f":"VALUE('IQEF Intake Form'!M95)","v":0},{"$f":"VALUE('IQEF Intake Form'!N95)","v":0},{"$f":"VALUE('IQEF Intake Form'!O95)","v":0},{"$f":"VALUE('IQEF Intake Form'!P95)","v":0},{"$f":"VALUE('IQEF Intake Form'!Q95)","v":0},{"$f":"VALUE('IQEF Intake Form'!R95)","v":0},{"$f":"VALUE('IQEF Intake Form'!S95)","v":0},{"$f":"VALUE('IQEF Intake Form'!T95)","v":0},{"$f":"VALUE('IQEF Intake Form'!U95)","v":0},{"$f":"VALUE('IQEF Intake Form'!V95)","v":0},{"$f":"VALUE('IQEF Intake Form'!W95)","v":0}]
[{"$f":"VALUE('IQEF Intake Form'!F96)","v":{"$error":"#VALUE!"}},{"$f":"VALUE('IQEF Intake Form'!G96)","v":0},{"$f":"VALUE('IQEF Intake Form'!H96)","v":0},{"$f":"VALUE('IQEF Intake Form'!I96)","v":0},{"$f":"VALUE('IQEF Intake Form'!J96)","v":0},{"$f":"VALUE('IQEF Intake Form'!K96)","v":0},{"$f":"VALUE('IQEF Intake Form'!L96)","v":0},{"$f":"VALUE('IQEF Intake Form'!M96)","v":0},{"$f":"VALUE('IQEF Intake Form'!N96)","v":0},{"$f":"VALUE('IQEF Intake Form'!O96)","v":0},{"$f":"VALUE('IQEF Intake Form'!P96)","v":0},{"$f":"VALUE('IQEF Intake Form'!Q96)","v":0},{"$f":"VALUE('IQEF Intake Form'!R96)","v":0},{"$f":"VALUE('IQEF Intake Form'!S96)","v":0},{"$f":"VALUE('IQEF Intake Form'!T96)","v":0},{"$f":"VALUE('IQEF Intake Form'!U96)","v":0},{"$f":"VALUE('IQEF Intake Form'!V96)","v":0},{"$f":"VALUE('IQEF Intake Form'!W96)","v":0}]
[{"$f":"VALUE('IQEF Intake Form'!F97)","v":{"$error":"#VALUE!"}},{"$f":"VALUE('IQEF Intake Form'!G97)","v":{"$error":"#VALUE!"}},{"$f":"VALUE('IQEF Intake Form'!H97)","v":{"$error":"#VALUE!"}},{"$f":"VALUE('IQEF Intake Form'!I97)","v":{"$error":"#VALUE!"}},{"$f":"VALUE('IQEF Intake Form'!J97)","v":{"$error":"#VALUE!"}},{"$f":"VALUE('IQEF Intake Form'!K97)","v":{"$error":"#VALUE!"}},{"$f":"VALUE('IQEF Intake Form'!L97)","v":{"$error":"#VALUE!"}},{"$f":"VALUE('IQEF Intake Form'!M97)","v":{"$error":"#VALUE!"}},{"$f":"VALUE('IQEF Intake Form'!N97)","v":{"$error":"#VALUE!"}},{"$f":"VALUE('IQEF Intake Form'!O97)","v":0},{"$f":"VALUE('IQEF Intake Form'!P97)","v":0},{"$f":"VALUE('IQEF Intake Form'!Q97)","v":0},{"$f":"VALUE('IQEF Intake Form'!R97)","v":0},{"$f":"VALUE('IQEF Intake Form'!S97)","v":0},{"$f":"VALUE('IQEF Intake Form'!T97)","v":0},{"$f":"VALUE('IQEF Intake Form'!U97)","v":0},{"$f":"VALUE('IQEF Intake Form'!V97)","v":0},{"$f":"VALUE('IQEF Intake Form'!W97)","v":0}]
[{"$f":"VALUE('IQEF Intake Form'!F98)","v":0},{"$f":"VALUE('IQEF Intake Form'!G98)","v":0},{"$f":"VALUE('IQEF Intake Form'!H98)","v":0},{"$f":"VALUE('IQEF Intake Form'!I98)","v":0},{"$f":"VALUE('IQEF Intake Form'!J98)","v":0},{"$f":"VALUE('IQEF Intake Form'!K98)","v":{"$error":"#DIV/0!"}},{"$f":"VALUE('IQEF Intake Form'!L98)","v":0},{"$f":"VALUE('IQEF Intake Form'!M98)","v":0},{"$f":"VALUE('IQEF Intake Form'!N98)","v":0},{"$f":"VALUE('IQEF Intake Form'!O98)","v":0},{"$f":"VALUE('IQEF Intake Form'!P98)","v":0},{"$f":"VALUE('IQEF Intake Form'!Q98)","v":0},{"$f":"VALUE('IQEF Intake Form'!R98)","v":0},{"$f":"VALUE('IQEF Intake Form'!S98)","v":0},{"$f":"VALUE('IQEF Intake Form'!T98)","v":0},{"$f":"VALUE('IQEF Intake Form'!U98)","v":0},{"$f":"VALUE('IQEF Intake Form'!V98)","v":0},{"$f":"VALUE('IQEF Intake Form'!W98)","v":0}]
[{"$f":"VALUE('IQEF Intake Form'!F99)","v":0},{"$f":"VALUE('IQEF Intake Form'!G99)","v":0},{"$f":"VALUE('IQEF Intake Form'!H99)","v":0},{"$f":"VALUE('IQEF Intake Form'!I99)","v":0},{"$f":"VALUE('IQEF Intake Form'!J99)","v":0},{"$f":"VALUE('IQEF Intake Form'!K99)","v":{"$error":"#DIV/0!"}},{"$f":"VALUE('IQEF Intake Form'!L99)","v":0},{"$f":"VALUE('IQEF Intake Form'!M99)","v":0},{"$f":"VALUE('IQEF Intake Form'!N99)","v":0},{"$f":"VALUE('IQEF Intake Form'!O99)","v":0},{"$f":"VALUE('IQEF Intake Form'!P99)","v":0},{"$f":"VALUE('IQEF Intake Form'!Q99)","v":0},{"$f":"VALUE('IQEF Intake Form'!R99)","v":0},{"$f":"VALUE('IQEF Intake Form'!S99)","v":0},{"$f":"VALUE('IQEF Intake Form'!T99)","v":0},{"$f":"VALUE('IQEF Intake Form'!U99)","v":0},{"$f":"VALUE('IQEF Intake Form'!V99)","v":0},{"$f":"VALUE('IQEF Intake Form'!W99)","v":0}]
[{"$f":"VALUE('IQEF Intake Form'!F100)","v":0},{"$f":"VALUE('IQEF Intake Form'!G100)","v":0},{"$f":"VALUE('IQEF Intake Form'!H100)","v":0},{"$f":"VALUE('IQEF Intake Form'!I100)","v":0},{"$f":"VALUE('IQEF Intake Form'!J100)","v":0},{"$f":"VALUE('IQEF Intake Form'!K100)","v":0},{"$f":"VALUE('IQEF Intake Form'!L100)","v":0},{"$f":"VALUE('IQEF Intake Form'!M100)","v":0},{"$f":"VALUE('IQEF Intake Form'!N100)","v":0},{"$f":"VALUE('IQEF Intake Form'!O100)","v":0},{"$f":"VALUE('IQEF Intake Form'!P100)","v":0},{"$f":"VALUE('IQEF Intake Form'!Q100)","v":0},{"$f":"VALUE('IQEF Intake Form'!R100)","v":0},{"$f":"VALUE('IQEF Intake Form'!S100)","v":0},{"$f":"VALUE('IQEF Intake Form'!T100)","v":0},{"$f":"VALUE('IQEF Intake Form'!U100)","v":0},{"$f":"VALUE('IQEF Intake Form'!V100)","v":0},{"$f":"VALUE('IQEF Intake Form'!W100)","v":0}]
[{"$f":"VALUE('IQEF Intake Form'!F101)","v":{"$error":"#VALUE!"}},{"$f":"VALUE('IQEF Intake Form'!G101)","v":0},{"$f":"VALUE('IQEF Intake Form'!H101)","v":0},{"$f":"VALUE('IQEF Intake Form'!I101)","v":0},{"$f":"VALUE('IQEF Intake Form'!J101)","v":0},{"$f":"VALUE('IQEF Intake Form'!K101)","v":0},{"$f":"VALUE('IQEF Intake Form'!L101)","v":0},{"$f":"VALUE('IQEF Intake Form'!M101)","v":0},{"$f":"VALUE('IQEF Intake Form'!N101)","v":0},{"$f":"VALUE('IQEF Intake Form'!O101)","v":0},{"$f":"VALUE('IQEF Intake Form'!P101)","v":0},{"$f":"VALUE('IQEF Intake Form'!Q101)","v":0},{"$f":"VALUE('IQEF Intake Form'!R101)","v":0},{"$f":"VALUE('IQEF Intake Form'!S101)","v":0},{"$f":"VALUE('IQEF Intake Form'!T101)","v":0},{"$f":"VALUE('IQEF Intake Form'!U101)","v":0},{"$f":"VALUE('IQEF Intake Form'!V101)","v":0},{"$f":"VALUE('IQEF Intake Form'!W101)","v":0}]
[{"$f":"VALUE('IQEF Intake Form'!F102)","v":{"$error":"#VALUE!"}},{"$f":"VALUE('IQEF Intake Form'!G102)","v":0},{"$f":"VALUE('IQEF Intake Form'!H102)","v":0},{"$f":"VALUE('IQEF Intake Form'!I102)","v":0},{"$f":"VALUE('IQEF Intake Form'!J102)","v":0},{"$f":"VALUE('IQEF Intake Form'!K102)","v":0},{"$f":"VALUE('IQEF Intake Form'!L102)","v":0},{"$f":"VALUE('IQEF Intake Form'!M102)","v":0},{"$f":"VALUE('IQEF Intake Form'!N102)","v":0},{"$f":"VALUE('IQEF Intake Form'!O102)","v":0},{"$f":"VALUE('IQEF Intake Form'!P102)","v":0},{"$f":"VALUE('IQEF Intake Form'!Q102)","v":0},{"$f":"VALUE('IQEF Intake Form'!R102)","v":0},{"$f":"VALUE('IQEF Intake Form'!S102)","v":0},{"$f":"VALUE('IQEF Intake Form'!T102)","v":0},{"$f":"VALUE('IQEF Intake Form'!U102)","v":0},{"$f":"VALUE('IQEF Intake Form'!V102)","v":0},{"$f":"VALUE('IQEF Intake Form'!W102)","v":0}]
[{"$f":"VALUE('IQEF Intake Form'!F103)","v":0},{"$f":"VALUE('IQEF Intake Form'!G103)","v":0},{"$f":"VALUE('IQEF Intake Form'!H103)","v":0},{"$f":"VALUE('IQEF Intake Form'!I103)","v":0},{"$f":"VALUE('IQEF Intake Form'!J103)","v":0},{"$f":"VALUE('IQEF Intake Form'!K103)","v":0},{"$f":"VALUE('IQEF Intake Form'!L103)","v":0},{"$f":"VALUE('IQEF Intake Form'!M103)","v":0},{"$f":"VALUE('IQEF Intake Form'!N103)","v":0},{"$f":"VALUE('IQEF Intake Form'!O103)","v":0},{"$f":"VALUE('IQEF Intake Form'!P103)","v":0},{"$f":"VALUE('IQEF Intake Form'!Q103)","v":0},{"$f":"VALUE('IQEF Intake Form'!R103)","v":0},{"$f":"VALUE('IQEF Intake Form'!S103)","v":0},{"$f":"VALUE('IQEF Intake Form'!T103)","v":0},{"$f":"VALUE('IQEF Intake Form'!U103)","v":0},{"$f":"VALUE('IQEF Intake Form'!V103)","v":0},{"$f":"VALUE('IQEF Intake Form'!W103)","v":0}]
[{"$f":"VALUE('IQEF Intake Form'!F104)","v":0},{"$f":"VALUE('IQEF Intake Form'!G104)","v":0},{"$f":"VALUE('IQEF Intake Form'!H104)","v":0},{"$f":"VALUE('IQEF Intake Form'!I104)","v":0},{"$f":"VALUE('IQEF Intake Form'!J104)","v":0},{"$f":"VALUE('IQEF Intake Form'!K104)","v":0},{"$f":"VALUE('IQEF Intake Form'!L104)","v":0},{"$f":"VALUE('IQEF Intake Form'!M104)","v":0},{"$f":"VALUE('IQEF Intake Form'!N104)","v":0},{"$f":"VALUE('IQEF Intake Form'!O104)","v":0},{"$f":"VALUE('IQEF Intake Form'!P104)","v":0},{"$f":"VALUE('IQEF Intake Form'!Q104)","v":0},{"$f":"VALUE('IQEF Intake Form'!R104)","v":0},{"$f":"VALUE('IQEF Intake Form'!S104)","v":0},{"$f":"VALUE('IQEF Intake Form'!T104)","v":0},{"$f":"VALUE('IQEF Intake Form'!U104)","v":0},{"$f":"VALUE('IQEF Intake Form'!V104)","v":0},{"$f":"VALUE('IQEF Intake Form'!W104)","v":0}]
[{"$f":"VALUE('IQEF Intake Form'!F105)","v":0},{"$f":"VALUE('IQEF Intake Form'!G105)","v":0},{"$f":"VALUE('IQEF Intake Form'!H105)","v":0},{"$f":"VALUE('IQEF Intake Form'!I105)","v":0},{"$f":"VALUE('IQEF Intake Form'!J105)","v":0},{"$f":"VALUE('IQEF Intake Form'!K105)","v":0},{"$f":"VALUE('IQEF Intake Form'!L105)","v":0},{"$f":"VALUE('IQEF Intake Form'!M105)","v":0},{"$f":"VALUE('IQEF Intake Form'!N105)","v":0},{"$f":"VALUE('IQEF Intake Form'!O105)","v":0},{"$f":"VALUE('IQEF Intake Form'!P105)","v":0},{"$f":"VALUE('IQEF Intake Form'!Q105)","v":0},{"$f":"VALUE('IQEF Intake Form'!R105)","v":0},{"$f":"VALUE('IQEF Intake Form'!S105)","v":0},{"$f":"VALUE('IQEF Intake Form'!T105)","v":0},{"$f":"VALUE('IQEF Intake Form'!U105)","v":0},{"$f":"VALUE('IQEF Intake Form'!V105)","v":0},{"$f":"VALUE('IQEF Intake Form'!W105)","v":0}]
[{"$f":"VALUE('IQEF Intake Form'!F106)","v":0},{"$f":"VALUE('IQEF Intake Form'!G106)","v":0},{"$f":"VALUE('IQEF Intake Form'!H106)","v":0},{"$f":"VALUE('IQEF Intake Form'!I106)","v":0},{"$f":"VALUE('IQEF Intake Form'!J106)","v":0},{"$f":"VALUE('IQEF Intake Form'!K106)","v":0},{"$f":"VALUE('IQEF Intake Form'!L106)","v":0},{"$f":"VALUE('IQEF Intake Form'!M106)","v":0},{"$f":"VALUE('IQEF Intake Form'!N106)","v":0},{"$f":"VALUE('IQEF Intake Form'!O106)","v":0},{"$f":"VALUE('IQEF Intake Form'!P106)","v":0},{"$f":"VALUE('IQEF Intake Form'!Q106)","v":0},{"$f":"VALUE('IQEF Intake Form'!R106)","v":0},{"$f":"VALUE('IQEF Intake Form'!S106)","v":0},{"$f":"VALUE('IQEF Intake Form'!T106)","v":0},{"$f":"VALUE('IQEF Intake Form'!U106)","v":0},{"$f":"VALUE('IQEF Intake Form'!V106)","v":0},{"$f":"VALUE('IQEF Intake Form'!W106)","v":0}]
[{"$f":"VALUE('IQEF Intake Form'!F107)","v":0},{"$f":"VALUE('IQEF Intake Form'!G107)","v":0},{"$f":"VALUE('IQEF Intake Form'!H107)","v":0},{"$f":"VALUE('IQEF Intake Form'!I107)","v":0},{"$f":"VALUE('IQEF Intake Form'!J107)","v":0},{"$f":"VALUE('IQEF Intake Form'!K107)","v":0},{"$f":"VALUE('IQEF Intake Form'!L107)","v":0},{"$f":"VALUE('IQEF Intake Form'!M107)","v":0},{"$f":"VALUE('IQEF Intake Form'!N107)","v":0},{"$f":"VALUE('IQEF Intake Form'!O107)","v":0},{"$f":"VALUE('IQEF Intake Form'!P107)","v":0},{"$f":"VALUE('IQEF Intake Form'!Q107)","v":0},{"$f":"VALUE('IQEF Intake Form'!R107)","v":0},{"$f":"VALUE('IQEF Intake Form'!S107)","v":0},{"$f":"VALUE('IQEF Intake Form'!T107)","v":0},{"$f":"VALUE('IQEF Intake Form'!U107)","v":0},{"$f":"VALUE('IQEF Intake Form'!V107)","v":0},{"$f":"VALUE('IQEF Intake Form'!W107)","v":0}]
[{"$f":"VALUE('IQEF Intake Form'!F108)","v":0},{"$f":"VALUE('IQEF Intake Form'!G108)","v":0},{"$f":"VALUE('IQEF Intake Form'!H108)","v":0},{"$f":"VALUE('IQEF Intake Form'!I108)","v":0},{"$f":"VALUE('IQEF Intake Form'!J108)","v":0},{"$f":"VALUE('IQEF Intake Form'!K108)","v":0},{"$f":"VALUE('IQEF Intake Form'!L108)","v":0},{"$f":"VALUE('IQEF Intake Form'!M108)","v":0},{"$f":"VALUE('IQEF Intake Form'!N108)","v":0},{"$f":"VALUE('IQEF Intake Form'!O108)","v":0},{"$f":"VALUE('IQEF Intake Form'!P108)","v":0},{"$f":"VALUE('IQEF Intake Form'!Q108)","v":0},{"$f":"VALUE('IQEF Intake Form'!R108)","v":0},{"$f":"VALUE('IQEF Intake Form'!S108)","v":0},{"$f":"VALUE('IQEF Intake Form'!T108)","v":0},{"$f":"VALUE('IQEF Intake Form'!U108)","v":0},{"$f":"VALUE('IQEF Intake Form'!V108)","v":0},{"$f":"VALUE('IQEF Intake Form'!W108)","v":0}]
[{"$f":"VALUE('IQEF Intake Form'!F109)","v":0},{"$f":"VALUE('IQEF Intake Form'!G109)","v":0},{"$f":"VALUE('IQEF Intake Form'!H109)","v":0},{"$f":"VALUE('IQEF Intake Form'!I109)","v":0},{"$f":"VALUE('IQEF Intake Form'!J109)","v":0},{"$f":"VALUE('IQEF Intake Form'!K109)","v":0},{"$f":"VALUE('IQEF Intake Form'!L109)","v":0},{"$f":"VALUE('IQEF Intake Form'!M109)","v":0},{"$f":"VALUE('IQEF Intake Form'!N109)","v":0},{"$f":"VALUE('IQEF Intake Form'!O109)","v":0},{"$f":"VALUE('IQEF Intake Form'!P109)","v":0},{"$f":"VALUE('IQEF Intake Form'!Q109)","v":0},{"$f":"VALUE('IQEF Intake Form'!R109)","v":0},{"$f":"VALUE('IQEF Intake Form'!S109)","v":0},{"$f":"VALUE('IQEF Intake Form'!T109)","v":0},{"$f":"VALUE('IQEF Intake Form'!U109)","v":0},{"$f":"VALUE('IQEF Intake Form'!V109)","v":0},{"$f":"VALUE('IQEF Intake Form'!W109)","v":0}]
[{"$f":"VALUE('IQEF Intake Form'!F110)","v":0},{"$f":"VALUE('IQEF Intake Form'!G110)","v":0},{"$f":"VALUE('IQEF Intake Form'!H110)","v":0},{"$f":"VALUE('IQEF Intake Form'!I110)","v":0},{"$f":"VALUE('IQEF Intake Form'!J110)","v":0},{"$f":"VALUE('IQEF Intake Form'!K110)","v":0},{"$f":"VALUE('IQEF Intake Form'!L110)","v":0},{"$f":"VALUE('IQEF Intake Form'!M110)","v":0},{"$f":"VALUE('IQEF Intake Form'!N110)","v":0},{"$f":"VALUE('IQEF Intake Form'!O110)","v":0},{"$f":"VALUE('IQEF Intake Form'!P110)","v":0},{"$f":"VALUE('IQEF Intake Form'!Q110)","v":0},{"$f":"VALUE('IQEF Intake Form'!R110)","v":0},{"$f":"VALUE('IQEF Intake Form'!S110)","v":0},{"$f":"VALUE('IQEF Intake Form'!T110)","v":0},{"$f":"VALUE('IQEF Intake Form'!U110)","v":0},{"$f":"VALUE('IQEF Intake Form'!V110)","v":0},{"$f":"VALUE('IQEF Intake Form'!W110)","v":0}]
[{"$f":"VALUE('IQEF Intake Form'!F111)","v":0},{"$f":"VALUE('IQEF Intake Form'!G111)","v":0},{"$f":"VALUE('IQEF Intake Form'!H111)","v":0},{"$f":"VALUE('IQEF Intake Form'!I111)","v":0},{"$f":"VALUE('IQEF Intake Form'!J111)","v":0},{"$f":"VALUE('IQEF Intake Form'!K111)","v":0},{"$f":"VALUE('IQEF Intake Form'!L111)","v":0},{"$f":"VALUE('IQEF Intake Form'!M111)","v":0},{"$f":"VALUE('IQEF Intake Form'!N111)","v":0},{"$f":"VALUE('IQEF Intake Form'!O111)","v":0},{"$f":"VALUE('IQEF Intake Form'!P111)","v":0},{"$f":"VALUE('IQEF Intake Form'!Q111)","v":0},{"$f":"VALUE('IQEF Intake Form'!R111)","v":0},{"$f":"VALUE('IQEF Intake Form'!S111)","v":0},{"$f":"VALUE('IQEF Intake Form'!T111)","v":0},{"$f":"VALUE('IQEF Intake Form'!U111)","v":0},{"$f":"VALUE('IQEF Intake Form'!V111)","v":0},{"$f":"VALUE('IQEF Intake Form'!W111)","v":0}]
[{"$f":"VALUE('IQEF Intake Form'!F112)","v":0},{"$f":"VALUE('IQEF Intake Form'!G112)","v":0},{"$f":"VALUE('IQEF Intake Form'!H112)","v":0},{"$f":"VALUE('IQEF Intake Form'!I112)","v":0},{"$f":"VALUE('IQEF Intake Form'!J112)","v":0},{"$f":"VALUE('IQEF Intake Form'!K112)","v":0},{"$f":"VALUE('IQEF Intake Form'!L112)","v":0},{"$f":"VALUE('IQEF Intake Form'!M112)","v":0},{"$f":"VALUE('IQEF Intake Form'!N112)","v":0},{"$f":"VALUE('IQEF Intake Form'!O112)","v":0},{"$f":"VALUE('IQEF Intake Form'!P112)","v":0},{"$f":"VALUE('IQEF Intake Form'!Q112)","v":0},{"$f":"VALUE('IQEF Intake Form'!R112)","v":0},{"$f":"VALUE('IQEF Intake Form'!S112)","v":0},{"$f":"VALUE('IQEF Intake Form'!T112)","v":0},{"$f":"VALUE('IQEF Intake Form'!U112)","v":0},{"$f":"VALUE('IQEF Intake Form'!V112)","v":0},{"$f":"VALUE('IQEF Intake Form'!W112)","v":0}]
[{"$f":"VALUE('IQEF Intake Form'!F113)","v":0},{"$f":"VALUE('IQEF Intake Form'!G113)","v":0},{"$f":"VALUE('IQEF Intake Form'!H113)","v":0},{"$f":"VALUE('IQEF Intake Form'!I113)","v":0},{"$f":"VALUE('IQEF Intake Form'!J113)","v":0},{"$f":"VALUE('IQEF Intake Form'!K113)","v":0},{"$f":"VALUE('IQEF Intake Form'!L113)","v":0},{"$f":"VALUE('IQEF Intake Form'!M113)","v":0},{"$f":"VALUE('IQEF Intake Form'!N113)","v":0},{"$f":"VALUE('IQEF Intake Form'!O113)","v":0},{"$f":"VALUE('IQEF Intake Form'!P113)","v":0},{"$f":"VALUE('IQEF Intake Form'!Q113)","v":0},{"$f":"VALUE('IQEF Intake Form'!R113)","v":0},{"$f":"VALUE('IQEF Intake Form'!S113)","v":0},{"$f":"VALUE('IQEF Intake Form'!T113)","v":0},{"$f":"VALUE('IQEF Intake Form'!U113)","v":0},{"$f":"VALUE('IQEF Intake Form'!V113)","v":0},{"$f":"VALUE('IQEF Intake Form'!W113)","v":0}]
[{"$f":"VALUE('IQEF Intake Form'!F114)","v":0},{"$f":"VALUE('IQEF Intake Form'!G114)","v":0},{"$f":"VALUE('IQEF Intake Form'!H114)","v":0},{"$f":"VALUE('IQEF Intake Form'!I114)","v":0},{"$f":"VALUE('IQEF Intake Form'!J114)","v":0},{"$f":"VALUE('IQEF Intake Form'!K114)","v":0},{"$f":"VALUE('IQEF Intake Form'!L114)","v":0},{"$f":"VALUE('IQEF Intake Form'!M114)","v":0},{"$f":"VALUE('IQEF Intake Form'!N114)","v":0},{"$f":"VALUE('IQEF Intake Form'!O114)","v":0},{"$f":"VALUE('IQEF Intake Form'!P114)","v":0},{"$f":"VALUE('IQEF Intake Form'!Q114)","v":0},{"$f":"VALUE('IQEF Intake Form'!R114)","v":0},{"$f":"VALUE('IQEF Intake Form'!S114)","v":0},{"$f":"VALUE('IQEF Intake Form'!T114)","v":0},{"$f":"VALUE('IQEF Intake Form'!U114)","v":0},{"$f":"VALUE('IQEF Intake Form'!V114)","v":0},{"$f":"VALUE('IQEF Intake Form'!W114)","v":0}]
[{"$f":"VALUE('IQEF Intake Form'!F115)","v":0},{"$f":"VALUE('IQEF Intake Form'!G115)","v":0},{"$f":"VALUE('IQEF Intake Form'!H115)","v":0},{"$f":"VALUE('IQEF Intake Form'!I115)","v":0},{"$f":"VALUE('IQEF Intake Form'!J115)","v":0},{"$f":"VALUE('IQEF Intake Form'!K115)","v":0},{"$f":"VALUE('IQEF Intake Form'!L115)","v":0},{"$f":"VALUE('IQEF Intake Form'!M115)","v":0},{"$f":"VALUE('IQEF Intake Form'!N115)","v":0},{"$f":"VALUE('IQEF Intake Form'!O115)","v":0},{"$f":"VALUE('IQEF Intake Form'!P115)","v":0},{"$f":"VALUE('IQEF Intake Form'!Q115)","v":0},{"$f":"VALUE('IQEF Intake Form'!R115)","v":0},{"$f":"VALUE('IQEF Intake Form'!S115)","v":0},{"$f":"VALUE('IQEF Intake Form'!T115)","v":0},{"$f":"VALUE('IQEF Intake Form'!U115)","v":0},{"$f":"VALUE('IQEF Intake Form'!V115)","v":0},{"$f":"VALUE('IQEF Intake Form'!W115)","v":0}]
[{"$f":"VALUE('IQEF Intake Form'!F116)","v":0},{"$f":"VALUE('IQEF Intake Form'!G116)","v":0},{"$f":"VALUE('IQEF Intake Form'!H116)","v":0},{"$f":"VALUE('IQEF Intake Form'!I116)","v":0},{"$f":"VALUE('IQEF Intake Form'!J116)","v":0},{"$f":"VALUE('IQEF Intake Form'!K116)","v":0},{"$f":"VALUE('IQEF Intake Form'!L116)","v":0},{"$f":"VALUE('IQEF Intake Form'!M116)","v":0},{"$f":"VALUE('IQEF Intake Form'!N116)","v":0},{"$f":"VALUE('IQEF Intake Form'!O116)","v":0},{"$f":"VALUE('IQEF Intake Form'!P116)","v":0},{"$f":"VALUE('IQEF Intake Form'!Q116)","v":0},{"$f":"VALUE('IQEF Intake Form'!R116)","v":0},{"$f":"VALUE('IQEF Intake Form'!S116)","v":0},{"$f":"VALUE('IQEF Intake Form'!T116)","v":0},{"$f":"VALUE('IQEF Intake Form'!U116)","v":0},{"$f":"VALUE('IQEF Intake Form'!V116)","v":0},{"$f":"VALUE('IQEF Intake Form'!W116)","v":0}]
[{"$f":"VALUE('IQEF Intake Form'!F117)","v":0},{"$f":"VALUE('IQEF Intake Form'!G117)","v":0},{"$f":"VALUE('IQEF Intake Form'!H117)","v":0},{"$f":"VALUE('IQEF Intake Form'!I117)","v":0},{"$f":"VALUE('IQEF Intake Form'!J117)","v":0},{"$f":"VALUE('IQEF Intake Form'!K117)","v":0},{"$f":"VALUE('IQEF Intake Form'!L117)","v":0},{"$f":"VALUE('IQEF Intake Form'!M117)","v":0},{"$f":"VALUE('IQEF Intake Form'!N117)","v":0},{"$f":"VALUE('IQEF Intake Form'!O117)","v":0},{"$f":"VALUE('IQEF Intake Form'!P117)","v":0},{"$f":"VALUE('IQEF Intake Form'!Q117)","v":0},{"$f":"VALUE('IQEF Intake Form'!R117)","v":0},{"$f":"VALUE('IQEF Intake Form'!S117)","v":0},{"$f":"VALUE('IQEF Intake Form'!T117)","v":0},{"$f":"VALUE('IQEF Intake Form'!U117)","v":0},{"$f":"VALUE('IQEF Intake Form'!V117)","v":0},{"$f":"VALUE('IQEF Intake Form'!W117)","v":0}]
[{"$f":"VALUE('IQEF Intake Form'!F118)","v":0},{"$f":"VALUE('IQEF Intake Form'!G118)","v":0},{"$f":"VALUE('IQEF Intake Form'!H118)","v":0},{"$f":"VALUE('IQEF Intake Form'!I118)","v":0},{"$f":"VALUE('IQEF Intake Form'!J118)","v":0},{"$f":"VALUE('IQEF Intake Form'!K118)","v":0},{"$f":"VALUE('IQEF Intake Form'!L118)","v":0},{"$f":"VALUE('IQEF Intake Form'!M118)","v":0},{"$f":"VALUE('IQEF Intake Form'!N118)","v":0},{"$f":"VALUE('IQEF Intake Form'!O118)","v":0},{"$f":"VALUE('IQEF Intake Form'!P118)","v":0},{"$f":"VALUE('IQEF Intake Form'!Q118)","v":0},{"$f":"VALUE('IQEF Intake Form'!R118)","v":0},{"$f":"VALUE('IQEF Intake Form'!S118)","v":0},{"$f":"VALUE('IQEF Intake Form'!T118)","v":0},{"$f":"VALUE('IQEF Intake Form'!U118)","v":0},{"$f":"VALUE('IQEF Intake Form'!V118)","v":0},{"$f":"VALUE('IQEF Intake Form'!W118)","v":0}]
[{"$f":"VALUE('IQEF Intake Form'!F119)","v":0},{"$f":"VALUE('IQEF Intake Form'!G119)","v":0},{"$f":"VALUE('IQEF Intake Form'!H119)","v":0},{"$f":"VALUE('IQEF Intake Form'!I119)","v":0},{"$f":"VALUE('IQEF Intake Form'!J119)","v":0},{"$f":"VALUE('IQEF Intake Form'!K119)","v":0},{"$f":"VALUE('IQEF Intake Form'!L119)","v":0},{"$f":"VALUE('IQEF Intake Form'!M119)","v":0},{"$f":"VALUE('IQEF Intake Form'!N119)","v":0},{"$f":"VALUE('IQEF Intake Form'!O119)","v":0},{"$f":"VALUE('IQEF Intake Form'!P119)","v":0},{"$f":"VALUE('IQEF Intake Form'!Q119)","v":0},{"$f":"VALUE('IQEF Intake Form'!R119)","v":0},{"$f":"VALUE('IQEF Intake Form'!S119)","v":0},{"$f":"VALUE('IQEF Intake Form'!T119)","v":0},{"$f":"VALUE('IQEF Intake Form'!U119)","v":0},{"$f":"VALUE('IQEF Intake Form'!V119)","v":0},{"$f":"VALUE('IQEF Intake Form'!W119)","v":0}]
[{"$f":"VALUE('IQEF Intake Form'!F120)","v":0},{"$f":"VALUE('IQEF Intake Form'!G120)","v":0},{"$f":"VALUE('IQEF Intake Form'!H120)","v":0},{"$f":"VALUE('IQEF Intake Form'!I120)","v":0},{"$f":"VALUE('IQEF Intake Form'!J120)","v":0},{"$f":"VALUE('IQEF Intake Form'!K120)","v":0},{"$f":"VALUE('IQEF Intake Form'!L120)","v":0},{"$f":"VALUE('IQEF Intake Form'!M120)","v":0},{"$f":"VALUE('IQEF Intake Form'!N120)","v":0},{"$f":"VALUE('IQEF Intake Form'!O120)","v":0},{"$f":"VALUE('IQEF Intake Form'!P120)","v":0},{"$f":"VALUE('IQEF Intake Form'!Q120)","v":0},{"$f":"VALUE('IQEF Intake Form'!R120)","v":0},{"$f":"VALUE('IQEF Intake Form'!S120)","v":0},{"$f":"VALUE('IQEF Intake Form'!T120)","v":0},{"$f":"VALUE('IQEF Intake Form'!U120)","v":0},{"$f":"VALUE('IQEF Intake Form'!V120)","v":0},{"$f":"VALUE('IQEF Intake Form'!W120)","v":0}]
[{"$f":"VALUE('IQEF Intake Form'!F121)","v":0},{"$f":"VALUE('IQEF Intake Form'!G121)","v":0},{"$f":"VALUE('IQEF Intake Form'!H121)","v":0},{"$f":"VALUE('IQEF Intake Form'!I121)","v":0},{"$f":"VALUE('IQEF Intake Form'!J121)","v":0},{"$f":"VALUE('IQEF Intake Form'!K121)","v":0},{"$f":"VALUE('IQEF Intake Form'!L121)","v":0},{"$f":"VALUE('IQEF Intake Form'!M121)","v":0},{"$f":"VALUE('IQEF Intake Form'!N121)","v":0},{"$f":"VALUE('IQEF Intake Form'!O121)","v":0},{"$f":"VALUE('IQEF Intake Form'!P121)","v":0},{"$f":"VALUE('IQEF Intake Form'!Q121)","v":0},{"$f":"VALUE('IQEF Intake Form'!R121)","v":0},{"$f":"VALUE('IQEF Intake Form'!S121)","v":0},{"$f":"VALUE('IQEF Intake Form'!T121)","v":0},{"$f":"VALUE('IQEF Intake Form'!U121)","v":0},{"$f":"VALUE('IQEF Intake Form'!V121)","v":0},{"$f":"VALUE('IQEF Intake Form'!W121)","v":0}]
[{"$f":"VALUE('IQEF Intake Form'!F122)","v":0},{"$f":"VALUE('IQEF Intake Form'!G122)","v":0},{"$f":"VALUE('IQEF Intake Form'!H122)","v":0},{"$f":"VALUE('IQEF Intake Form'!I122)","v":0},{"$f":"VALUE('IQEF Intake Form'!J122)","v":0},{"$f":"VALUE('IQEF Intake Form'!K122)","v":0},{"$f":"VALUE('IQEF Intake Form'!L122)","v":0},{"$f":"VALUE('IQEF Intake Form'!M122)","v":0},{"$f":"VALUE('IQEF Intake Form'!N122)","v":0},{"$f":"VALUE('IQEF Intake Form'!O122)","v":0},{"$f":"VALUE('IQEF Intake Form'!P122)","v":0},{"$f":"VALUE('IQEF Intake Form'!Q122)","v":0},{"$f":"VALUE('IQEF Intake Form'!R122)","v":0},{"$f":"VALUE('IQEF Intake Form'!S122)","v":0},{"$f":"VALUE('IQEF Intake Form'!T122)","v":0},{"$f":"VALUE('IQEF Intake Form'!U122)","v":0},{"$f":"VALUE('IQEF Intake Form'!V122)","v":0},{"$f":"VALUE('IQEF Intake Form'!W122)","v":0}]
[{"$f":"VALUE('IQEF Intake Form'!F123)","v":0},{"$f":"VALUE('IQEF Intake Form'!G123)","v":0},{"$f":"VALUE('IQEF Intake Form'!H123)","v":0},{"$f":"VALUE('IQEF Intake Form'!I123)","v":0},{"$f":"VALUE('IQEF Intake Form'!J123)","v":0},{"$f":"VALUE('IQEF Intake Form'!K123)","v":0},{"$f":"VALUE('IQEF Intake Form'!L123)","v":0},{"$f":"VALUE('IQEF Intake Form'!M123)","v":0},{"$f":"VALUE('IQEF Intake Form'!N123)","v":0},{"$f":"VALUE('IQEF Intake Form'!O123)","v":0},{"$f":"VALUE('IQEF Intake Form'!P123)","v":0},{"$f":"VALUE('IQEF Intake Form'!Q123)","v":0},{"$f":"VALUE('IQEF Intake Form'!R123)","v":0},{"$f":"VALUE('IQEF Intake Form'!S123)","v":0},{"$f":"VALUE('IQEF Intake Form'!T123)","v":0},{"$f":"VALUE('IQEF Intake Form'!U123)","v":0},{"$f":"VALUE('IQEF Intake Form'!V123)","v":0},{"$f":"VALUE('IQEF Intake Form'!W123)","v":0}]
[{"$f":"VALUE('IQEF Intake Form'!F124)","v":0},{"$f":"VALUE('IQEF Intake Form'!G124)","v":0},{"$f":"VALUE('IQEF Intake Form'!H124)","v":0},{"$f":"VALUE('IQEF Intake Form'!I124)","v":0},{"$f":"VALUE('IQEF Intake Form'!J124)","v":0},{"$f":"VALUE('IQEF Intake Form'!K124)","v":0},{"$f":"VALUE('IQEF Intake Form'!L124)","v":0},{"$f":"VALUE('IQEF Intake Form'!M124)","v":0},{"$f":"VALUE('IQEF Intake Form'!N124)","v":0},{"$f":"VALUE('IQEF Intake Form'!O124)","v":0},{"$f":"VALUE('IQEF Intake Form'!P124)","v":0},{"$f":"VALUE('IQEF Intake Form'!Q124)","v":0},{"$f":"VALUE('IQEF Intake Form'!R124)","v":0},{"$f":"VALUE('IQEF Intake Form'!S124)","v":0},{"$f":"VALUE('IQEF Intake Form'!T124)","v":0},{"$f":"VALUE('IQEF Intake Form'!U124)","v":0},{"$f":"VALUE('IQEF Intake Form'!V124)","v":0},{"$f":"VALUE('IQEF Intake Form'!W124)","v":0}]
[{"$f":"VALUE('IQEF Intake Form'!F125)","v":0},{"$f":"VALUE('IQEF Intake Form'!G125)","v":0},{"$f":"VALUE('IQEF Intake Form'!H125)","v":0},{"$f":"VALUE('IQEF Intake Form'!I125)","v":0},{"$f":"VALUE('IQEF Intake Form'!J125)","v":0},{"$f":"VALUE('IQEF Intake Form'!K125)","v":0},{"$f":"VALUE('IQEF Intake Form'!L125)","v":0},{"$f":"VALUE('IQEF Intake Form'!M125)","v":0},{"$f":"VALUE('IQEF Intake Form'!N125)","v":0},{"$f":"VALUE('IQEF Intake Form'!O125)","v":0},{"$f":"VALUE('IQEF Intake Form'!P125)","v":0},{"$f":"VALUE('IQEF Intake Form'!Q125)","v":0},{"$f":"VALUE('IQEF Intake Form'!R125)","v":0},{"$f":"VALUE('IQEF Intake Form'!S125)","v":0},{"$f":"VALUE('IQEF Intake Form'!T125)","v":0},{"$f":"VALUE('IQEF Intake Form'!U125)","v":0},{"$f":"VALUE('IQEF Intake Form'!V125)","v":0},{"$f":"VALUE('IQEF Intake Form'!W125)","v":0}]
[{"$f":"VALUE('IQEF Intake Form'!F126)","v":0},{"$f":"VALUE('IQEF Intake Form'!G126)","v":0},{"$f":"VALUE('IQEF Intake Form'!H126)","v":0},{"$f":"VALUE('IQEF Intake Form'!I126)","v":0},{"$f":"VALUE('IQEF Intake Form'!J126)","v":0},{"$f":"VALUE('IQEF Intake Form'!K126)","v":0},{"$f":"VALUE('IQEF Intake Form'!L126)","v":0},{"$f":"VALUE('IQEF Intake Form'!M126)","v":0},{"$f":"VALUE('IQEF Intake Form'!N126)","v":0},{"$f":"VALUE('IQEF Intake Form'!O126)","v":0},{"$f":"VALUE('IQEF Intake Form'!P126)","v":0},{"$f":"VALUE('IQEF Intake Form'!Q126)","v":0},{"$f":"VALUE('IQEF Intake Form'!R126)","v":0},{"$f":"VALUE('IQEF Intake Form'!S126)","v":0},{"$f":"VALUE('IQEF Intake Form'!T126)","v":0},{"$f":"VALUE('IQEF Intake Form'!U126)","v":0},{"$f":"VALUE('IQEF Intake Form'!V126)","v":0},{"$f":"VALUE('IQEF Intake Form'!W126)","v":0}]
[{"$f":"VALUE('IQEF Intake Form'!F127)","v":0},{"$f":"VALUE('IQEF Intake Form'!G127)","v":0},{"$f":"VALUE('IQEF Intake Form'!H127)","v":0},{"$f":"VALUE('IQEF Intake Form'!I127)","v":0},{"$f":"VALUE('IQEF Intake Form'!J127)","v":0},{"$f":"VALUE('IQEF Intake Form'!K127)","v":0},{"$f":"VALUE('IQEF Intake Form'!L127)","v":0},{"$f":"VALUE('IQEF Intake Form'!M127)","v":0},{"$f":"VALUE('IQEF Intake Form'!N127)","v":0},{"$f":"VALUE('IQEF Intake Form'!O127)","v":0},{"$f":"VALUE('IQEF Intake Form'!P127)","v":0},{"$f":"VALUE('IQEF Intake Form'!Q127)","v":0},{"$f":"VALUE('IQEF Intake Form'!R127)","v":0},{"$f":"VALUE('IQEF Intake Form'!S127)","v":0},{"$f":"VALUE('IQEF Intake Form'!T127)","v":0},{"$f":"VALUE('IQEF Intake Form'!U127)","v":0},{"$f":"VALUE('IQEF Intake Form'!V127)","v":0},{"$f":"VALUE('IQEF Intake Form'!W127)","v":0}]
[{"$f":"VALUE('IQEF Intake Form'!F128)","v":0},{"$f":"VALUE('IQEF Intake Form'!G128)","v":0},{"$f":"VALUE('IQEF Intake Form'!H128)","v":0},{"$f":"VALUE('IQEF Intake Form'!I128)","v":0},{"$f":"VALUE('IQEF Intake Form'!J128)","v":0},{"$f":"VALUE('IQEF Intake Form'!K128)","v":0},{"$f":"VALUE('IQEF Intake Form'!L128)","v":0},{"$f":"VALUE('IQEF Intake Form'!M128)","v":0},{"$f":"VALUE('IQEF Intake Form'!N128)","v":0},{"$f":"VALUE('IQEF Intake Form'!O128)","v":0},{"$f":"VALUE('IQEF Intake Form'!P128)","v":0},{"$f":"VALUE('IQEF Intake Form'!Q128)","v":0},{"$f":"VALUE('IQEF Intake Form'!R128)","v":0},{"$f":"VALUE('IQEF Intake Form'!S128)","v":0},{"$f":"VALUE('IQEF Intake Form'!T128)","v":0},{"$f":"VALUE('IQEF Intake Form'!U128)","v":0},{"$f":"VALUE('IQEF Intake Form'!V128)","v":0},{"$f":"VALUE('IQEF Intake Form'!W128)","v":0}]

{"sheet":"Copy Values","index":3,"n_rows":97,"n_cols":12,"rows_kept":97,"cut":false,"hidden":true,"merged":[]}
["TOTALS\nlighting (first line) and all other (second line)\n",null,null,null,null,null,"Project Savings and Screening Performance, TOTALS\n"]
[{"$f":"SUM(A5:A24)","v":0},{"$f":"SUM(B5:B24)","v":0},0,0,0,0,"kWh","kW","Peak kW","MMBtu","NPV","TRB"]
[{"$f":"SUM(A27:A31,A34:A36,A39,A42,A46:A48,A52:A54,A57,A62:A64,A68:A71,A74:A75,A79:A84,A89:A91,A96:A97)","v":0},0,0,0,0,0,{"$f":"SUM(G5:G24,G27:G31,G34:G36,G39,G42,G46:G48,G52:G54,G57,G62:G64,G68:G71,G74:G75,G79:G84,G89:G91,G96:G97)","v":{"$error":"#VALUE!"}},{"$f":"SUM(H5:H24,H27:H31,H34:H36,H39,H42,H46:H48,H52:H54,H57,H62:H64,H68:H71,H74:H75,H79:H84,H89:H91,H96:H97)","v":{"$error":"#N/A"}},{"$error":"#REF!"},{"$error":"#N/A"},{"$error":"#REF!"},{"$error":"#REF!"}]
[{"$f":"IFERROR(G4,0)","v":"kWh"},{"$f":"IFERROR(H4,0)","v":"kW"},{"$f":"IFERROR(I4,0)","v":0},{"$f":"IFERROR(J4,0)","v":"MMBtu"},{"$f":"IFERROR(K4,0)","v":0},{"$f":"IFERROR(L4,0)","v":0},{"$f":"'Project Performance'!A4","v":"kWh"},{"$f":"'Project Performance'!B4","v":"kW"},{"$f":"'Project Performance'!#REF!","v":{"$error":"#REF!"}},{"$f":"'Project Performance'!C4","v":"MMBtu"},{"$f":"'Project Performance'!#REF!","v":{"$error":"#REF!"}},{"$f":"'Project Performance'!#REF!","v":{"$error":"#REF!"}}]
[0,0,0,0,0,0,{"$f":"'Project Performance'!A5","v":{"$error":"#VALUE!"}},{"$f":"'Project Performance'!B5","v":{"$error":"#N/A"}},{"$f":"'Project Performance'!#REF!","v":{"$error":"#REF!"}},{"$f":"'Project Performance'!C5","v":0},{"$f":"'Project Performance'!#REF!","v":{"$error":"#REF!"}},{"$f":"'Project Performance'!#REF!","v":{"$error":"#REF!"}}]
[0,0,0,0,0,0,{"$f":"'Project Performance'!A6","v":{"$error":"#VALUE!"}},{"$f":"'Project Performance'!B6","v":{"$error":"#N/A"}},{"$f":"'Project Performance'!#REF!","v":{"$error":"#REF!"}},{"$f":"'Project Performance'!C6","v":0},{"$f":"'Project Performance'!#REF!","v":{"$error":"#REF!"}},{"$f":"'Project Performance'!#REF!","v":{"$error":"#REF!"}}]
[0,0,0,0,0,0,{"$f":"'Project Performance'!A7","v":{"$error":"#VALUE!"}},{"$f":"'Project Performance'!B7","v":{"$error":"#N/A"}},{"$f":"'Project Performance'!#REF!","v":{"$error":"#REF!"}},{"$f":"'Project Performance'!C7","v":0},{"$f":"'Project Performance'!#REF!","v":{"$error":"#REF!"}},{"$f":"'Project Performance'!#REF!","v":{"$error":"#REF!"}}]
[0,0,0,0,0,0,{"$f":"'Project Performance'!A8","v":{"$error":"#VALUE!"}},{"$f":"'Project Performance'!B8","v":{"$error":"#N/A"}},{"$f":"'Project Performance'!#REF!","v":{"$error":"#REF!"}},{"$f":"'Project Performance'!C8","v":0},{"$f":"'Project Performance'!#REF!","v":{"$error":"#REF!"}},{"$f":"'Project Performance'!#REF!","v":{"$error":"#REF!"}}]
[0,0,0,0,0,0,{"$f":"'Project Performance'!A9","v":{"$error":"#VALUE!"}},{"$f":"'Project Performance'!B9","v":{"$error":"#N/A"}},{"$f":"'Project Performance'!#REF!","v":{"$error":"#REF!"}},{"$f":"'Project Performance'!C9","v":0},{"$f":"'Project Performance'!#REF!","v":{"$error":"#REF!"}},{"$f":"'Project Performance'!#REF!","v":{"$error":"#REF!"}}]
[0,0,0,0,0,0,{"$f":"'Project Performance'!A10","v":{"$error":"#VALUE!"}},{"$f":"'Project Performance'!B10","v":{"$error":"#N/A"}},{"$f":"'Project Performance'!#REF!","v":{"$error":"#REF!"}},{"$f":"'Project Performance'!C10","v":0},{"$f":"'Project Performance'!#REF!","v":{"$error":"#REF!"}},{"$f":"'Project Performance'!#REF!","v":{"$error":"#REF!"}}]
[0,0,0,0,0,0,{"$f":"'Project Performance'!A11","v":{"$error":"#VALUE!"}},{"$f":"'Project Performance'!B11","v":{"$error":"#N/A"}},{"$f":"'Project Performance'!#REF!","v":{"$error":"#REF!"}},{"$f":"'Project Performance'!C11","v":0},{"$f":"'Project Performance'!#REF!","v":{"$error":"#REF!"}},{"$f":"'Project Performance'!#REF!","v":{"$error":"#REF!"}}]
[0,0,0,0,0,0,{"$f":"'Project Performance'!A12","v":{"$error":"#VALUE!"}},{"$f":"'Project Performance'!B12","v":{"$error":"#N/A"}},{"$f":"'Project Performance'!#REF!","v":{"$error":"#REF!"}},{"$f":"'Project Performance'!C12","v":0},{"$f":"'Project Performance'!#REF!","v":{"$error":"#REF!"}},{"$f":"'Project Performance'!#REF!","v":{"$error":"#REF!"}}]
[0,0,0,0,0,0,{"$f":"'Project Performance'!A13","v":{"$error":"#VALUE!"}},{"$f":"'Project Performance'!B13","v":{"$error":"#N/A"}},{"$f":"'Project Performance'!#REF!","v":{"$error":"#REF!"}},{"$f":"'Project Performance'!C13","v":0},{"$f":"'Project Performance'!#REF!","v":{"$error":"#REF!"}},{"$f":"'Project Performance'!#REF!","v":{"$error":"#REF!"}}]
[0,0,0,0,0,0,{"$f":"'Project Performance'!A14","v":{"$error":"#VALUE!"}},{"$f":"'Project Performance'!B14","v":{"$error":"#N/A"}},{"$f":"'Project Performance'!#REF!","v":{"$error":"#REF!"}},{"$f":"'Project Performance'!C14","v":0},{"$f":"'Project Performance'!#REF!","v":{"$error":"#REF!"}},{"$f":"'Project Performance'!#REF!","v":{"$error":"#REF!"}}]
[0,0,0,0,0,0,{"$f":"'Project Performance'!A15","v":{"$error":"#VALUE!"}},{"$f":"'Project Performance'!B15","v":{"$error":"#N/A"}},{"$f":"'Project Performance'!#REF!","v":{"$error":"#REF!"}},{"$f":"'Project Performance'!C15","v":0},{"$f":"'Project Performance'!#REF!","v":{"$error":"#REF!"}},{"$f":"'Project Performance'!#REF!","v":{"$error":"#REF!"}}]
[0,0,0,0,0,0,{"$f":"'Project Performance'!A16","v":{"$error":"#VALUE!"}},{"$f":"'Project Performance'!B16","v":{"$error":"#N/A"}},{"$f":"'Project Performance'!#REF!","v":{"$error":"#REF!"}},{"$f":"'Project Performance'!C16","v":0},{"$f":"'Project Performance'!#REF!","v":{"$error":"#REF!"}},{"$f":"'Project Performance'!#REF!","v":{"$error":"#REF!"}}]
[0,0,0,0,0,0,{"$f":"'Project Performance'!A17","v":{"$error":"#VALUE!"}},{"$f":"'Project Performance'!B17","v":{"$error":"#N/A"}},{"$f":"'Project Performance'!#REF!","v":{"$error":"#REF!"}},{"$f":"'Project Performance'!C17","v":0},{"$f":"'Project Performance'!#REF!","v":{"$error":"#REF!"}},{"$f":"'Project Performance'!#REF!","v":{"$error":"#REF!"}}]
[0,0,0,0,0,0,{"$f":"'Project Performance'!A18","v":{"$error":"#VALUE!"}},{"$f":"'Project Performance'!B18","v":{"$error":"#N/A"}},{"$f":"'Project Performance'!#REF!","v":{"$error":"#REF!"}},{"$f":"'Project Performance'!C18","v":0},{"$f":"'Project Performance'!#REF!","v":{"$error":"#REF!"}},{"$f":"'Project Performance'!#REF!","v":{"$error":"#REF!"}}]
[0,0,0,0,0,0,{"$f":"'Project Performance'!A19","v":{"$error":"#VALUE!"}},{"$f":"'Project Performance'!B19","v":{"$error":"#N/A"}},{"$f":"'Project Performance'!#REF!","v":{"$error":"#REF!"}},{"$f":"'Project Performance'!C19","v":0},{"$f":"'Project Performance'!#REF!","v":{"$error":"#REF!"}},{"$f":"'Project Performance'!#REF!","v":{"$error":"#REF!"}}]
[0,0,0,0,0,0,{"$f":"'Project Performance'!A20","v":{"$error":"#VALUE!"}},{"$f":"'Project Performance'!B20","v":{"$error":"#N/A"}},{"$f":"'Project Performance'!#REF!","v":{"$error":"#REF!"}},{"$f":"'Project Performance'!C20","v":0},{"$f":"'Project Performance'!#REF!","v":{"$error":"#REF!"}},{"$f":"'Project Performance'!#REF!","v":{"$error":"#REF!"}}]
[0,0,0,0,0,0,{"$f":"'Project Performance'!A21","v":{"$error":"#VALUE!"}},{"$f":"'Project Performance'!B21","v":{"$error":"#N/A"}},{"$f":"'Project Performance'!#REF!","v":{"$error":"#REF!"}},{"$f":"'Project Performance'!C21","v":0},{"$f":"'Project Performance'!#REF!","v":{"$error":"#REF!"}},{"$f":"'Project Performance'!#REF!","v":{"$error":"#REF!"}}]
[0,0,0,0,0,0,{"$f":"'Project Performance'!A22","v":{"$error":"#VALUE!"}},{"$f":"'Project Performance'!B22","v":{"$error":"#N/A"}},{"$f":"'Project Performance'!#REF!","v":{"$error":"#REF!"}},{"$f":"'Project Performance'!C22","v":0},{"$f":"'Project Performance'!#REF!","v":{"$error":"#REF!"}},{"$f":"'Project Performance'!#REF!","v":{"$error":"#REF!"}}]
[0,0,0,0,0,0,{"$f":"'Project Performance'!A23","v":{"$error":"#VALUE!"}},{"$f":"'Project Performance'!B23","v":{"$error":"#N/A"}},{"$f":"'Project Performance'!#REF!","v":{"$error":"#REF!"}},{"$f":"'Project Performance'!C23","v":0},{"$f":"'Project Performance'!#REF!","v":{"$error":"#REF!"}},{"$f":"'Project Performance'!#REF!","v":{"$error":"#REF!"}}]
[0,0,0,0,0,0,{"$f":"'Project Performance'!A24","v":{"$error":"#VALUE!"}},{"$f":"'Project Performance'!B24","v":{"$error":"#N/A"}},{"$f":"'Project Performance'!#REF!","v":{"$error":"#REF!"}},{"$f":"'Project Performance'!C24","v":0},{"$f":"'Project Performance'!#REF!","v":{"$error":"#REF!"}},{"$f":"'Project Performance'!#REF!","v":{"$error":"#REF!"}}]
[]
["kWh","kW",0,"MMBtu",0,0,{"$f":"'Project Performance'!A26","v":"kWh"},{"$f":"'Project Performance'!B26","v":"kW"},{"$f":"'Project Performance'!#REF!","v":{"$error":"#REF!"}},{"$f":"'Project Performance'!C26","v":"MMBtu"},{"$f":"'Project Performance'!#REF!","v":{"$error":"#REF!"}},{"$f":"'Project Performance'!#REF!","v":{"$error":"#REF!"}}]
[{"$f":"IFERROR(G27,0)","v":0},0,0,0,0,0,{"$f":"'Project Performance'!A27","v":{"$error":"#VALUE!"}},{"$f":"'Project Performance'!B27","v":0},{"$f":"'Project Performance'!#REF!","v":{"$error":"#REF!"}},{"$f":"'Project Performance'!C27","v":0},{"$f":"'Project Performance'!#REF!","v":{"$error":"#REF!"}},{"$f":"'Project Performance'!#REF!","v":{"$error":"#REF!"}}]
[0,0,0,0,0,0,{"$f":"'Project Performance'!A28","v":{"$error":"#VALUE!"}},{"$f":"'Project Performance'!B28","v":0},{"$f":"'Project Performance'!#REF!","v":{"$error":"#REF!"}},{"$f":"'Project Performance'!C28","v":0},{"$f":"'Project Performance'!#REF!","v":{"$error":"#REF!"}},{"$f":"'Project Performance'!#REF!","v":{"$error":"#REF!"}}]
[0,0,0,0,0,0,{"$f":"'Project Performance'!A29","v":{"$error":"#VALUE!"}},{"$f":"'Project Performance'!B29","v":0},{"$f":"'Project Performance'!#REF!","v":{"$error":"#REF!"}},{"$f":"'Project Performance'!C29","v":0},{"$f":"'Project Performance'!#REF!","v":{"$error":"#REF!"}},{"$f":"'Project Performance'!#REF!","v":{"$error":"#REF!"}}]
[0,0,0,0,0,0,{"$f":"'Project Performance'!A30","v":{"$error":"#VALUE!"}},{"$f":"'Project Performance'!B30","v":0},{"$f":"'Project Performance'!#REF!","v":{"$error":"#REF!"}},{"$f":"'Project Performance'!C30","v":0},{"$f":"'Project Performance'!#REF!","v":{"$error":"#REF!"}},{"$f":"'Project Performance'!#REF!","v":{"$error":"#REF!"}}]
[0,0,0,0,0,0,{"$f":"'Project Performance'!A31","v":{"$error":"#VALUE!"}},{"$f":"'Project Performance'!B31","v":0},{"$f":"'Project Performance'!#REF!","v":{"$error":"#REF!"}},{"$f":"'Project Performance'!C31","v":0},{"$f":"'Project Performance'!#REF!","v":{"$error":"#REF!"}},{"$f":"'Project Performance'!#REF!","v":{"$error":"#REF!"}}]
[]
["kWh","kW",0,"MMBtu",0,0,{"$f":"'Project Performance'!A33","v":"kWh"},{"$f":"'Project Performance'!B33","v":"kW"},{"$f":"'Project Performance'!#REF!","v":{"$error":"#REF!"}},{"$f":"'Project Performance'!C33","v":"MMBtu"},{"$f":"'Project Performance'!#REF!","v":{"$error":"#REF!"}},{"$f":"'Project Performance'!#REF!","v":{"$error":"#REF!"}}]
[0,0,0,0,0,0,{"$f":"'Project Performance'!A34","v":0},{"$f":"'Project Performance'!B34","v":0},{"$f":"'Project Performance'!#REF!","v":{"$error":"#REF!"}},{"$f":"'Project Performance'!C34","v":{"$error":"#N/A"}},{"$f":"'Project Performance'!#REF!","v":{"$error":"#REF!"}},{"$f":"'Project Performance'!#REF!","v":{"$error":"#REF!"}}]
[0,0,0,0,0,0,{"$f":"'Project Performance'!A35","v":0},{"$f":"'Project Performance'!B35","v":0},{"$f":"'Project Performance'!#REF!","v":{"$error":"#REF!"}},{"$f":"'Project Performance'!C35","v":{"$error":"#N/A"}},{"$f":"'Project Performance'!#REF!","v":{"$error":"#REF!"}},{"$f":"'Project Performance'!#REF!","v":{"$error":"#REF!"}}]
[0,0,0,0,0,0,{"$f":"'Project Performance'!A36","v":0},{"$f":"'Project Performance'!B36","v":0},{"$f":"'Project Performance'!#REF!","v":{"$error":"#REF!"}},{"$f":"'Project Performance'!C36","v":{"$error":"#N/A"}},{"$f":"'Project Performance'!#REF!","v":{"$error":"#REF!"}},{"$f":"'Project Performance'!#REF!","v":{"$error":"#REF!"}}]
[]
["kWh","kW",0,"MMBtu",0,0,{"$f":"'Project Performance'!A39","v":"kWh"},{"$f":"'Project Performance'!B39","v":"kW"},{"$f":"'Project Performance'!#REF!","v":{"$error":"#REF!"}},{"$f":"'Project Performance'!C39","v":"MMBtu"},{"$f":"'Project Performance'!#REF!","v":{"$error":"#REF!"}},{"$f":"'Project Performance'!#REF!","v":{"$error":"#REF!"}}]
[0,0,0,0,0,0,{"$f":"'Project Performance'!A40","v":{"$error":"#DIV/0!"}},{"$f":"'Project Performance'!B40","v":{"$error":"#DIV/0!"}},{"$f":"'Project Performance'!#REF!","v":{"$error":"#REF!"}},{"$f":"'Project Performance'!C40","v":0},{"$f":"'Project Performance'!#REF!","v":{"$error":"#REF!"}},{"$f":"'Project Performance'!#REF!","v":{"$error":"#REF!"}}]
[]
["kWh","kW",0,"MMBtu",0,0,{"$f":"'Project Performance'!A42","v":"kWh"},{"$f":"'Project Performance'!B42","v":"kW"},{"$f":"'Project Performance'!#REF!","v":{"$error":"#REF!"}},{"$f":"'Project Performance'!C42","v":"MMBtu"},{"$f":"'Project Performance'!#REF!","v":{"$error":"#REF!"}},{"$f":"'Project Performance'!#REF!","v":{"$error":"#REF!"}}]
[0,0,0,0,0,0,{"$f":"'Project Performance'!A43","v":{"$error":"#DIV/0!"}},{"$f":"'Project Performance'!B43","v":{"$error":"#DIV/0!"}},{"$f":"'Project Performance'!#REF!","v":{"$error":"#REF!"}},{"$f":"'Project Performance'!C43","v":0},{"$f":"'Project Performance'!#REF!","v":{"$error":"#REF!"}},{"$f":"'Project Performance'!#REF!","v":{"$error":"#REF!"}}]
[]
[]
["kWh","kW",0,"MMBtu",0,0,{"$f":"'Project Performance'!A45","v":"kWh"},{"$f":"'Project Performance'!B45","v":"kW"},{"$f":"'Project Performance'!#REF!","v":{"$error":"#REF!"}},{"$f":"'Project Performance'!C45","v":"MMBtu"},{"$f":"'Project Performance'!#REF!","v":{"$error":"#REF!"}},{"$f":"'Project Performance'!#REF!","v":{"$error":"#REF!"}}]
[0,0,0,0,0,0,{"$f":"'Project Performance'!A46","v":{"$error":"#DIV/0!"}},{"$f":"'Project Performance'!B46","v":0},{"$f":"'Project Performance'!#REF!","v":{"$error":"#REF!"}},{"$f":"'Project Performance'!C46","v":0},{"$f":"'Project Performance'!#REF!","v":{"$error":"#REF!"}},{"$f":"'Project Performance'!#REF!","v":{"$error":"#REF!"}}]
[0,0,0,0,0,0,{"$f":"'Project Performance'!A47","v":{"$error":"#DIV/0!"}},{"$f":"'Project Performance'!B47","v":0},{"$f":"'Project Performance'!#REF!","v":{"$error":"#REF!"}},{"$f":"'Project Performance'!C47","v":0},{"$f":"'Project Performance'!#REF!","v":{"$error":"#REF!"}},{"$f":"'Project Performance'!#REF!","v":{"$error":"#REF!"}}]
[0,0,0,0,0,0,{"$f":"'Project Performance'!A48","v":{"$error":"#DIV/0!"}},{"$f":"'Project Performance'!B48","v":0},{"$f":"'Project Performance'!#REF!","v":{"$error":"#REF!"}},{"$f":"'Project Performance'!C48","v":0},{"$f":"'Project Performance'!#REF!","v":{"$error":"#REF!"}},{"$f":"'Project Performance'!#REF!","v":{"$error":"#REF!"}}]
[]
[]
["kWh","kW",0,"MMBtu",0,0,{"$f":"'Project Performance'!A50","v":"kWh"},{"$f":"'Project Performance'!B50","v":"kW"},{"$f":"'Project Performance'!#REF!","v":{"$error":"#REF!"}},{"$f":"'Project Performance'!C50","v":"MMBtu"},{"$f":"'Project Performance'!#REF!","v":{"$error":"#REF!"}},{"$f":"'Project Performance'!#REF!","v":{"$error":"#REF!"}}]
[0,0,0,0,0,0,{"$f":"'Project Performance'!A51","v":{"$error":"#N/A"}},{"$f":"'Project Performance'!B51","v":{"$error":"#N/A"}},{"$f":"'Project Performance'!#REF!","v":{"$error":"#REF!"}},{"$f":"'Project Performance'!C51","v":0},{"$f":"'Project Performance'!#REF!","v":{"$error":"#REF!"}},{"$f":"'Project Performance'!#REF!","v":{"$error":"#REF!"}}]
[0,0,0,0,0,0,{"$f":"'Project Performance'!A52","v":{"$error":"#N/A"}},{"$f":"'Project Performance'!B52","v":{"$error":"#N/A"}},{"$f":"'Project Performance'!#REF!","v":{"$error":"#REF!"}},{"$f":"'Project Performance'!C52","v":0},{"$f":"'Project Performance'!#REF!","v":{"$error":"#REF!"}},{"$f":"'Project Performance'!#REF!","v":{"$error":"#REF!"}}]
[0,0,0,0,0,0,{"$f":"'Project Performance'!A53","v":{"$error":"#N/A"}},{"$f":"'Project Performance'!B53","v":{"$error":"#N/A"}},{"$f":"'Project Performance'!#REF!","v":{"$error":"#REF!"}},{"$f":"'Project Performance'!C53","v":0},{"$f":"'Project Performance'!#REF!","v":{"$error":"#REF!"}},{"$f":"'Project Performance'!#REF!","v":{"$error":"#REF!"}}]
[]
["kWh","kW",0,"MMBtu",0,0,{"$f":"'Project Performance'!A55","v":"kWh"},{"$f":"'Project Performance'!B55","v":"kW"},{"$f":"'Project Performance'!#REF!","v":{"$error":"#REF!"}},{"$f":"'Project Performance'!C55","v":"MMBtu"},{"$f":"'Project Performance'!#REF!","v":{"$error":"#REF!"}},{"$f":"'Project Performance'!#REF!","v":{"$error":"#REF!"}}]
[0,0,0,0,0,0,{"$f":"'Project Performance'!A56","v":{"$error":"#N/A"}},{"$f":"'Project Performance'!B56","v":{"$error":"#N/A"}},{"$f":"'Project Performance'!#REF!","v":{"$error":"#REF!"}},{"$f":"'Project Performance'!C56","v":{"$error":"#N/A"}},{"$f":"'Project Performance'!#REF!","v":{"$error":"#REF!"}},{"$f":"'Project Performance'!#REF!","v":{"$error":"#REF!"}}]
[]
[]
[]
["kWh","kW",0,"MMBtu",0,0,{"$f":"'Project Performance'!A59","v":"kWh"},{"$f":"'Project Performance'!B59","v":"kW"},{"$f":"'Project Performance'!#REF!","v":{"$error":"#REF!"}},{"$f":"'Project Performance'!C59","v":"MMBtu"},{"$f":"'Project Performance'!#REF!","v":{"$error":"#REF!"}},{"$f":"'Project Performance'!#REF!","v":{"$error":"#REF!"}}]
[0,0,0,0,0,0,{"$f":"'Project Performance'!A60","v":0},{"$f":"'Project Performance'!B60","v":0},{"$f":"'Project Performance'!#REF!","v":{"$error":"#REF!"}},{"$f":"'Project Performance'!C60","v":{"$error":"#DIV/0!"}},{"$f":"'Project Performance'!#REF!","v":{"$error":"#REF!"}},{"$f":"'Project Performance'!#REF!","v":{"$error":"#REF!"}}]
[0,0,0,0,0,0,{"$f":"'Project Performance'!A61","v":0},{"$f":"'Project Performance'!B61","v":0},{"$f":"'Project Performance'!#REF!","v":{"$error":"#REF!"}},{"$f":"'Project Performance'!C61","v":{"$error":"#DIV/0!"}},{"$f":"'Project Performance'!#REF!","v":{"$error":"#REF!"}},{"$f":"'Project Performance'!#REF!","v":{"$error":"#REF!"}}]
[0,0,0,0,0,0,{"$f":"'Project Performance'!A62","v":0},{"$f":"'Project Performance'!B62","v":0},{"$f":"'Project Performance'!#REF!","v":{"$error":"#REF!"}},{"$f":"'Project Performance'!C62","v":{"$error":"#DIV/0!"}},{"$f":"'Project Performance'!#REF!","v":{"$error":"#REF!"}},{"$f":"'Project Performance'!#REF!","v":{"$error":"#REF!"}}]
[]
[]
[{"$f":"IFERROR(G67,0)","v":"kWh"},{"$f":"IFERROR(H67,0)","v":"kW"},{"$f":"IFERROR(I67,0)","v":0},{"$f":"IFERROR(J67,0)","v":"MMBtu"},{"$f":"IFERROR(K67,0)","v":0},{"$f":"IFERROR(L67,0)","v":0},{"$f":"'Project Performance'!A64","v":"kWh"},{"$f":"'Project Performance'!B64","v":"kW"},{"$f":"'Project Performance'!#REF!","v":{"$error":"#REF!"}},{"$f":"'Project Performance'!C64","v":"MMBtu"},{"$f":"'Project Performance'!#REF!","v":{"$error":"#REF!"}},{"$f":"'Project Performance'!#REF!","v":{"$error":"#REF!"}}]
[0,0,0,0,0,0,{"$f":"'Project Performance'!A65","v":0},{"$f":"'Project Performance'!B65","v":0},{"$f":"'Project Performance'!#REF!","v":{"$error":"#REF!"}},{"$f":"'Project Performance'!C65","v":0},{"$f":"'Project Performance'!#REF!","v":{"$error":"#REF!"}},{"$f":"'Project Performance'!#REF!","v":{"$error":"#REF!"}}]
[0,0,0,0,0,0,{"$f":"'Project Performance'!A66","v":0},{"$f":"'Project Performance'!B66","v":0},{"$f":"'Project Performance'!#REF!","v":{"$error":"#REF!"}},{"$f":"'Project Performance'!C66","v":0},{"$f":"'Project Performance'!#REF!","v":{"$error":"#REF!"}},{"$f":"'Project Performance'!#REF!","v":{"$error":"#REF!"}}]
[0,0,0,0,0,0,{"$f":"'Project Performance'!A67","v":0},{"$f":"'Project Performance'!B67","v":0},{"$f":"'Project Performance'!#REF!","v":{"$error":"#REF!"}},{"$f":"'Project Performance'!C67","v":0},{"$f":"'Project Performance'!#REF!","v":{"$error":"#REF!"}},{"$f":"'Project Performance'!#REF!","v":{"$error":"#REF!"}}]
[0,0,0,0,0,0,{"$f":"'Project Performance'!A68","v":0},{"$f":"'Project Performance'!B68","v":0},{"$f":"'Project Performance'!#REF!","v":{"$error":"#REF!"}},{"$f":"'Project Performance'!C68","v":0},{"$f":"'Project Performance'!#REF!","v":{"$error":"#REF!"}},{"$f":"'Project Performance'!#REF!","v":{"$error":"#REF!"}}]
[]
["kWh","kW",null,"MMBtu",0,null,{"$f":"'Project Performance'!B69","v":"kWh"},{"$f":"'Project Performance'!#REF!","v":{"$error":"#REF!"}},{"$f":"'Project Performance'!C69","v":"kW"},{"$f":"'Project Performance'!#REF!","v":{"$error":"#REF!"}},{"$f":"'Project Performance'!#REF!","v":{"$error":"#REF!"}},{"$f":"'Project Performance'!D69","v":"MMBtu"}]
[0,{"$f":"IFERROR(I74,0)","v":0},0,{"$f":"IFERROR(L74,0)","v":0},0,0,{"$f":"'Project Performance'!B70","v":0},{"$f":"'Project Performance'!#REF!","v":{"$error":"#REF!"}},{"$f":"'Project Performance'!C70","v":0},{"$f":"'Project Performance'!#REF!","v":{"$error":"#REF!"}},{"$f":"'Project Performance'!#REF!","v":{"$error":"#REF!"}},{"$f":"'Project Performance'!D70","v":0}]
[0,{"$f":"IFERROR(I75,0)","v":0},0,{"$f":"IFERROR(L75,0)","v":0},0,0,{"$f":"'Project Performance'!B71","v":0},{"$f":"'Project Performance'!#REF!","v":{"$error":"#REF!"}},{"$f":"'Project Performance'!C71","v":0},{"$f":"'Project Performance'!#REF!","v":{"$error":"#REF!"}},{"$f":"'Project Performance'!#REF!","v":{"$error":"#REF!"}},{"$f":"'Project Performance'!D71","v":0}]
[]
[]
["kWh","kW",0,"MMBtu",0,0,{"$f":"'Project Performance'!A73","v":"kWh"},{"$f":"'Project Performance'!B73","v":"kW"},{"$f":"'Project Performance'!#REF!","v":{"$error":"#REF!"}},{"$f":"'Project Performance'!C73","v":"MMBtu"},{"$f":"'Project Performance'!#REF!","v":{"$error":"#REF!"}},{"$f":"'Project Performance'!#REF!","v":{"$error":"#REF!"}}]
[0,0,0,0,0,0,{"$f":"'Project Performance'!A74","v":{"$error":"#N/A"}},{"$f":"'Project Performance'!B74","v":{"$error":"#N/A"}},{"$f":"'Project Performance'!#REF!","v":{"$error":"#REF!"}},{"$f":"'Project Performance'!C74","v":0},{"$f":"'Project Performance'!#REF!","v":{"$error":"#REF!"}},{"$f":"'Project Performance'!#REF!","v":{"$error":"#REF!"}}]
[0,0,0,0,0,0,{"$f":"'Project Performance'!A75","v":{"$error":"#N/A"}},{"$f":"'Project Performance'!B75","v":{"$error":"#N/A"}},{"$f":"'Project Performance'!#REF!","v":{"$error":"#REF!"}},{"$f":"'Project Performance'!C75","v":0},{"$f":"'Project Performance'!#REF!","v":{"$error":"#REF!"}},{"$f":"'Project Performance'!#REF!","v":{"$error":"#REF!"}}]
[0,0,0,0,0,0,{"$f":"'Project Performance'!A76","v":{"$error":"#N/A"}},{"$f":"'Project Performance'!B76","v":{"$error":"#N/A"}},{"$f":"'Project Performance'!#REF!","v":{"$error":"#REF!"}},{"$f":"'Project Performance'!C76","v":0},{"$f":"'Project Performance'!#REF!","v":{"$error":"#REF!"}},{"$f":"'Project Performance'!#REF!","v":{"$error":"#REF!"}}]
[0,0,0,0,0,0,{"$f":"'Project Performance'!A77","v":{"$error":"#N/A"}},{"$f":"'Project Performance'!B77","v":{"$error":"#N/A"}},{"$f":"'Project Performance'!#REF!","v":{"$error":"#REF!"}},{"$f":"'Project Performance'!C77","v":0},{"$f":"'Project Performance'!#REF!","v":{"$error":"#REF!"}},{"$f":"'Project Performance'!#REF!","v":{"$error":"#REF!"}}]
[0,0,0,0,0,0,{"$f":"'Project Performance'!A78","v":{"$error":"#N/A"}},{"$f":"'Project Performance'!B78","v":{"$error":"#N/A"}},{"$f":"'Project Performance'!#REF!","v":{"$error":"#REF!"}},{"$f":"'Project Performance'!C78","v":0},{"$f":"'Project Performance'!#REF!","v":{"$error":"#REF!"}},{"$f":"'Project Performance'!#REF!","v":{"$error":"#REF!"}}]
[0,0,0,0,0,0,{"$f":"'Project Performance'!A79","v":{"$error":"#N/A"}},{"$f":"'Project Performance'!B79","v":{"$error":"#N/A"}},{"$f":"'Project Performance'!#REF!","v":{"$error":"#REF!"}},{"$f":"'Project Performance'!C79","v":0},{"$f":"'Project Performance'!#REF!","v":{"$error":"#REF!"}},{"$f":"'Project Performance'!#REF!","v":{"$error":"#REF!"}}]
[]
[]
["kWh","kW",0,"MMBtu",0,0,{"$f":"'Project Performance'!A82","v":"kWh"},{"$f":"'Project Performance'!B82","v":"kW"},{"$f":"'Project Performance'!#REF!","v":{"$error":"#REF!"}},{"$f":"'Project Performance'!C82","v":"MMBtu"},{"$f":"'Project Performance'!#REF!","v":{"$error":"#REF!"}},{"$f":"'Project Performance'!#REF!","v":{"$error":"#REF!"}}]
[0,0,0,0,0,0]
[0,0,0,0,0,0,{"$f":"'Project Performance'!A83","v":{"$error":"#N/A"}},{"$f":"'Project Performance'!B83","v":{"$error":"#N/A"}},{"$f":"'Project Performance'!#REF!","v":{"$error":"#REF!"}},{"$f":"'Project Performance'!C83","v":0},{"$f":"'Project Performance'!#REF!","v":{"$error":"#REF!"}},{"$f":"'Project Performance'!#REF!","v":{"$error":"#REF!"}}]
[0,0,0,0,0,0,{"$f":"'Project Performance'!A84","v":{"$error":"#N/A"}},{"$f":"'Project Performance'!B84","v":{"$error":"#N/A"}},{"$f":"'Project Performance'!#REF!","v":{"$error":"#REF!"}},{"$f":"'Project Performance'!C84","v":0},{"$f":"'Project Performance'!#REF!","v":{"$error":"#REF!"}},{"$f":"'Project Performance'!#REF!","v":{"$error":"#REF!"}}]
[0,0,0,0,0,0,{"$f":"'Project Performance'!A85","v":{"$error":"#N/A"}},{"$f":"'Project Performance'!B85","v":{"$error":"#N/A"}},{"$f":"'Project Performance'!#REF!","v":{"$error":"#REF!"}},{"$f":"'Project Performance'!C85","v":0},{"$f":"'Project Performance'!#REF!","v":{"$error":"#REF!"}},{"$f":"'Project Performance'!#REF!","v":{"$error":"#REF!"}}]
[]
[]
[]
["kWh","kW",0,"MMBtu",0,0,{"$f":"'Project Performance'!A88","v":"kWh"},{"$f":"'Project Performance'!B88","v":"kW"},{"$f":"'Project Performance'!#REF!","v":{"$error":"#REF!"}},{"$f":"'Project Performance'!C88","v":"MMBtu"},{"$f":"'Project Performance'!#REF!","v":{"$error":"#REF!"}},{"$f":"'Project Performance'!#REF!","v":{"$error":"#REF!"}}]
[0,0,0,0,0,0,{"$f":"'Project Performance'!A89","v":0},{"$f":"'Project Performance'!B89","v":0},{"$f":"'Project Performance'!#REF!","v":{"$error":"#REF!"}},{"$f":"'Project Performance'!C89","v":0},{"$f":"'Project Performance'!#REF!","v":{"$error":"#REF!"}},{"$f":"'Project Performance'!#REF!","v":{"$error":"#REF!"}}]
[0,0,0,0,0,0,{"$f":"'Project Performance'!A90","v":0},{"$f":"'Project Performance'!B90","v":0},{"$f":"'Project Performance'!#REF!","v":{"$error":"#REF!"}},{"$f":"'Project Performance'!C90","v":0},{"$f":"'Project Performance'!#REF!","v":{"$error":"#REF!"}},{"$f":"'Project Performance'!#REF!","v":{"$error":"#REF!"}}]

{"sheet":"Project Performance","index":4,"n_rows":90,"n_cols":27,"rows_kept":90,"cut":false,"hidden":true,"merged":[]}
[]
[{"$f":"'Paste Values'!A3","v":{"$error":"#VALUE!"}}]
[{"$f":"'Paste Values'!A4","v":{"$error":"#VALUE!"}}]
["kWh","kW","MMBtu"]
[{"$f":"('Paste Values'!D5*'Paste Values'!G5-'Paste Values'!E5*'Paste Values'!H5)/1000*'Paste Values'!C5*VLOOKUP('Paste Values'!J5,waste_heat,3,FALSE)","v":{"$error":"#VALUE!"}},{"$f":"('Paste Values'!D5*'Paste Values'!G5-'Paste Values'!E5*'Paste Values'!H5)/1000*VLOOKUP('Paste Values'!J5,waste_heat,4,FALSE)","v":{"$error":"#N/A"}},null,{"$f":"-('Paste Values'!E5*'Paste Values'!H5-'Paste Values'!F5*'Paste Values'!I5)/1000*'Paste Values'!D5*(1-0.25)*0.7*0.23*0.95/0.75*0.68*0.003412","v":0}]
[{"$f":"('Paste Values'!D6*'Paste Values'!G6-'Paste Values'!E6*'Paste Values'!H6)/1000*'Paste Values'!C6*VLOOKUP('Paste Values'!J6,waste_heat,3,FALSE)","v":{"$error":"#VALUE!"}},{"$f":"('Paste Values'!D6*'Paste Values'!G6-'Paste Values'!E6*'Paste Values'!H6)/1000*VLOOKUP('Paste Values'!J6,waste_heat,4,FALSE)","v":{"$error":"#N/A"}},null,{"$f":"-('Paste Values'!E6*'Paste Values'!H6-'Paste Values'!F6*'Paste Values'!I6)/1000*'Paste Values'!D6*(1-0.25)*0.7*0.23*0.95/0.75*0.68*0.003412","v":0},null,null,null,null,null,null,null,null,null,null,null,null,null,null,null,{"$f":"\" ((WattsBASE – WattsEE ) / 1000) × HOURS × ISR × (WHFeHeat + (WHFeCool - 1))\"","v":" ((WattsBASE – WattsEE ) / 1000) × HOURS × ISR × (WHFeHeat + (WHFeCool - 1))"}]
[{"$f":"('Paste Values'!D7*'Paste Values'!G7-'Paste Values'!E7*'Paste Values'!H7)/1000*'Paste Values'!C7*VLOOKUP('Paste Values'!J7,waste_heat,3,FALSE)","v":{"$error":"#VALUE!"}},{"$f":"('Paste Values'!D7*'Paste Values'!G7-'Paste Values'!E7*'Paste Values'!H7)/1000*VLOOKUP('Paste Values'!J7,waste_heat,4,FALSE)","v":{"$error":"#N/A"}},null,{"$f":"-('Paste Values'!E7*'Paste Values'!H7-'Paste Values'!F7*'Paste Values'!I7)/1000*'Paste Values'!D7*(1-0.25)*0.7*0.23*0.95/0.75*0.68*0.003412","v":0},null,null,null,null,null,null,null,null,null,null,null,null,null,null,null,null,null,null,null,0.98699999999999999,"interior",1.107,"interior"]
[{"$f":"('Paste Values'!D8*'Paste Values'!G8-'Paste Values'!E8*'Paste Values'!H8)/1000*'Paste Values'!C8*VLOOKUP('Paste Values'!J8,waste_heat,3,FALSE)","v":{"$error":"#VALUE!"}},{"$f":"('Paste Values'!D8*'Paste Values'!G8-'Paste Values'!E8*'Paste Values'!H8)/1000*VLOOKUP('Paste Values'!J8,waste_heat,4,FALSE)","v":{"$error":"#N/A"}},null,{"$f":"-('Paste Values'!E8*'Paste Values'!H8-'Paste Values'!F8*'Paste Values'!I8)/1000*'Paste Values'!D8*(1-0.25)*0.7*0.23*0.95/0.75*0.68*0.003412","v":0},null,null,null,null,null,null,null,null,null,null,null,null,null,null,null,null,null,null,null,1,"exterior",1,"exterior"]
[{"$f":"('Paste Values'!D9*'Paste Values'!G9-'Paste Values'!E9*'Paste Values'!H9)/1000*'Paste Values'!C9*VLOOKUP('Paste Values'!J9,waste_heat,3,FALSE)","v":{"$error":"#VALUE!"}},{"$f":"('Paste Values'!D9*'Paste Values'!G9-'Paste Values'!E9*'Paste Values'!H9)/1000*VLOOKUP('Paste Values'!J9,waste_heat,4,FALSE)","v":{"$error":"#N/A"}},null,{"$f":"-('Paste Values'!E9*'Paste Values'!H9-'Paste Values'!F9*'Paste Values'!I9)/1000*'Paste Values'!D9*(1-0.25)*0.7*0.23*0.95/0.75*0.68*0.003412","v":0},null,null,null,null,null,null,null,null,null,null,null,null,null,null,null,null,null,"Lighting Waste Heat Lookup"]
[{"$f":"('Paste Values'!D10*'Paste Values'!G10-'Paste Values'!E10*'Paste Values'!H10)/1000*'Paste Values'!C10*VLOOKUP('Paste Values'!J10,waste_heat,3,FALSE)","v":{"$error":"#VALUE!"}},{"$f":"('Paste Values'!D10*'Paste Values'!G10-'Paste Values'!E10*'Paste Values'!H10)/1000*VLOOKUP('Paste Values'!J10,waste_heat,4,FALSE)","v":{"$error":"#N/A"}},null,{"$f":"-('Paste Values'!E10*'Paste Values'!H10-'Paste Values'!F10*'Paste Values'!I10)/1000*'Paste Values'!D10*(1-0.25)*0.7*0.23*0.95/0.75*0.68*0.003412","v":0},null,null,null,null,null,null,null,null,null,null,null,null,null,null,null,null,null,null,null,"energy","demand"]
[{"$f":"('Paste Values'!D11*'Paste Values'!G11-'Paste Values'!E11*'Paste Values'!H11)/1000*'Paste Values'!C11*VLOOKUP('Paste Values'!J11,waste_heat,3,FALSE)","v":{"$error":"#VALUE!"}},{"$f":"('Paste Values'!D11*'Paste Values'!G11-'Paste Values'!E11*'Paste Values'!H11)/1000*VLOOKUP('Paste Values'!J11,waste_heat,4,FALSE)","v":{"$error":"#N/A"}},null,{"$f":"-('Paste Values'!E11*'Paste Values'!H11-'Paste Values'!F11*'Paste Values'!I11)/1000*'Paste Values'!D11*(1-0.25)*0.7*0.23*0.95/0.75*0.68*0.003412","v":0},null,null,null,null,null,null,null,null,null,null,null,null,null,null,null,null,null,1,"Heating Only",{"$f":"(X7+(Z8-Z8))","v":0.98699999999999999},1]
[{"$f":"('Paste Values'!D12*'Paste Values'!G12-'Paste Values'!E12*'Paste Values'!H12)/1000*'Paste Values'!C12*VLOOKUP('Paste Values'!J12,waste_heat,3,FALSE)","v":{"$error":"#VALUE!"}},{"$f":"('Paste Values'!D12*'Paste Values'!G12-'Paste Values'!E12*'Paste Values'!H12)/1000*VLOOKUP('Paste Values'!J12,waste_heat,4,FALSE)","v":{"$error":"#N/A"}},null,{"$f":"-('Paste Values'!E12*'Paste Values'!H12-'Paste Values'!F12*'Paste Values'!I12)/1000*'Paste Values'!D12*(1-0.25)*0.7*0.23*0.95/0.75*0.68*0.003412","v":0},null,null,null,null,null,null,null,null,null,null,null,null,null,null,null,null,null,2,"Cooling Only",{"$f":"(X8+(Z7-Z8))","v":1.107},1.107]
[{"$f":"('Paste Values'!D13*'Paste Values'!G13-'Paste Values'!E13*'Paste Values'!H13)/1000*'Paste Values'!C13*VLOOKUP('Paste Values'!J13,waste_heat,3,FALSE)","v":{"$error":"#VALUE!"}},{"$f":"('Paste Values'!D13*'Paste Values'!G13-'Paste Values'!E13*'Paste Values'!H13)/1000*VLOOKUP('Paste Values'!J13,waste_heat,4,FALSE)","v":{"$error":"#N/A"}},null,{"$f":"-('Paste Values'!E13*'Paste Values'!H13-'Paste Values'!F13*'Paste Values'!I13)/1000*'Paste Values'!D13*(1-0.25)*0.7*0.23*0.95/0.75*0.68*0.003412","v":0},null,null,null,null,null,null,null,null,null,null,null,null,null,null,null,null,null,3,"Heating & Cooling",{"$f":"(X7+(Z7-Z8))","v":1.0939999999999999},1.107]
[{"$f":"('Paste Values'!D14*'Paste Values'!G14-'Paste Values'!E14*'Paste Values'!H14)/1000*'Paste Values'!C14*VLOOKUP('Paste Values'!J14,waste_heat,3,FALSE)","v":{"$error":"#VALUE!"}},{"$f":"('Paste Values'!D14*'Paste Values'!G14-'Paste Values'!E14*'Paste Values'!H14)/1000*VLOOKUP('Paste Values'!J14,waste_heat,4,FALSE)","v":{"$error":"#N/A"}},null,{"$f":"-('Paste Values'!E14*'Paste Values'!H14-'Paste Values'!F14*'Paste Values'!I14)/1000*'Paste Values'!D14*(1-0.25)*0.7*0.23*0.95/0.75*0.68*0.003412","v":0},null,null,null,null,null,null,null,null,null,null,null,null,null,null,null,null,null,4,"No Conditioning",{"$f":"(X8+(Z8-Z8))","v":1},1]
[{"$f":"('Paste Values'!D15*'Paste Values'!G15-'Paste Values'!E15*'Paste Values'!H15)/1000*'Paste Values'!C15*VLOOKUP('Paste Values'!J15,waste_heat,3,FALSE)","v":{"$error":"#VALUE!"}},{"$f":"('Paste Values'!D15*'Paste Values'!G15-'Paste Values'!E15*'Paste Values'!H15)/1000*VLOOKUP('Paste Values'!J15,waste_heat,4,FALSE)","v":{"$error":"#N/A"}},null,{"$f":"-('Paste Values'!E15*'Paste Values'!H15-'Paste Values'!F15*'Paste Values'!I15)/1000*'Paste Values'!D15*(1-0.25)*0.7*0.23*0.95/0.75*0.68*0.003412","v":0}]
[{"$f":"('Paste Values'!D16*'Paste Values'!G16-'Paste Values'!E16*'Paste Values'!H16)/1000*'Paste Values'!C16*VLOOKUP('Paste Values'!J16,waste_heat,3,FALSE)","v":{"$error":"#VALUE!"}},{"$f":"('Paste Values'!D16*'Paste Values'!G16-'Paste Values'!E16*'Paste Values'!H16)/1000*VLOOKUP('Paste Values'!J16,waste_heat,4,FALSE)","v":{"$error":"#N/A"}},null,{"$f":"-('Paste Values'!E16*'Paste Values'!H16-'Paste Values'!F16*'Paste Values'!I16)/1000*'Paste Values'!D16*(1-0.25)*0.7*0.23*0.95/0.75*0.68*0.003412","v":0}]
[{"$f":"('Paste Values'!D17*'Paste Values'!G17-'Paste Values'!E17*'Paste Values'!H17)/1000*'Paste Values'!C17*VLOOKUP('Paste Values'!J17,waste_heat,3,FALSE)","v":{"$error":"#VALUE!"}},{"$f":"('Paste Values'!D17*'Paste Values'!G17-'Paste Values'!E17*'Paste Values'!H17)/1000*VLOOKUP('Paste Values'!J17,waste_heat,4,FALSE)","v":{"$error":"#N/A"}},null,{"$f":"-('Paste Values'!E17*'Paste Values'!H17-'Paste Values'!F17*'Paste Values'!I17)/1000*'Paste Values'!D17*(1-0.25)*0.7*0.23*0.95/0.75*0.68*0.003412","v":0}]
[{"$f":"('Paste Values'!D18*'Paste Values'!G18-'Paste Values'!E18*'Paste Values'!H18)/1000*'Paste Values'!C18*VLOOKUP('Paste Values'!J18,waste_heat,3,FALSE)","v":{"$error":"#VALUE!"}},{"$f":"('Paste Values'!D18*'Paste Values'!G18-'Paste Values'!E18*'Paste Values'!H18)/1000*VLOOKUP('Paste Values'!J18,waste_heat,4,FALSE)","v":{"$error":"#N/A"}},null,{"$f":"-('Paste Values'!E18*'Paste Values'!H18-'Paste Values'!F18*'Paste Values'!I18)/1000*'Paste Values'!D18*(1-0.25)*0.7*0.23*0.95/0.75*0.68*0.003412","v":0},null,null,null,null,null,null,null,null,null,null,null,null,null,null,null,null,null,null,"AFUE lookup"]
[{"$f":"('Paste Values'!D19*'Paste Values'!G19-'Paste Values'!E19*'Paste Values'!H19)/1000*'Paste Values'!C19*VLOOKUP('Paste Values'!J19,waste_heat,3,FALSE)","v":{"$error":"#VALUE!"}},{"$f":"('Paste Values'!D19*'Paste Values'!G19-'Paste Values'!E19*'Paste Values'!H19)/1000*VLOOKUP('Paste Values'!J19,waste_heat,4,FALSE)","v":{"$error":"#N/A"}},null,{"$f":"-('Paste Values'!E19*'Paste Values'!H19-'Paste Values'!F19*'Paste Values'!I19)/1000*'Paste Values'!D19*(1-0.25)*0.7*0.23*0.95/0.75*0.68*0.003412","v":0},null,null,null,null,null,null,null,null,null,null,null,null,null,null,null,null,null,null,1,99]
[{"$f":"('Paste Values'!D20*'Paste Values'!G20-'Paste Values'!E20*'Paste Values'!H20)/1000*'Paste Values'!C20*VLOOKUP('Paste Values'!J20,waste_heat,3,FALSE)","v":{"$error":"#VALUE!"}},{"$f":"('Paste Values'!D20*'Paste Values'!G20-'Paste Values'!E20*'Paste Values'!H20)/1000*VLOOKUP('Paste Values'!J20,waste_heat,4,FALSE)","v":{"$error":"#N/A"}},null,{"$f":"-('Paste Values'!E20*'Paste Values'!H20-'Paste Values'!F20*'Paste Values'!I20)/1000*'Paste Values'!D20*(1-0.25)*0.7*0.23*0.95/0.75*0.68*0.003412","v":0},null,null,null,null,null,null,null,null,null,null,null,null,null,null,null,null,null,null,2,98]
[{"$f":"('Paste Values'!D21*'Paste Values'!G21-'Paste Values'!E21*'Paste Values'!H21)/1000*'Paste Values'!C21*VLOOKUP('Paste Values'!J21,waste_heat,3,FALSE)","v":{"$error":"#VALUE!"}},{"$f":"('Paste Values'!D21*'Paste Values'!G21-'Paste Values'!E21*'Paste Values'!H21)/1000*VLOOKUP('Paste Values'!J21,waste_heat,4,FALSE)","v":{"$error":"#N/A"}},null,{"$f":"-('Paste Values'!E21*'Paste Values'!H21-'Paste Values'!F21*'Paste Values'!I21)/1000*'Paste Values'!D21*(1-0.25)*0.7*0.23*0.95/0.75*0.68*0.003412","v":0},null,null,null,null,null,null,null,null,null,null,null,null,null,null,null,null,null,null,3,97]
[{"$f":"('Paste Values'!D22*'Paste Values'!G22-'Paste Values'!E22*'Paste Values'!H22)/1000*'Paste Values'!C22*VLOOKUP('Paste Values'!J22,waste_heat,3,FALSE)","v":{"$error":"#VALUE!"}},{"$f":"('Paste Values'!D22*'Paste Values'!G22-'Paste Values'!E22*'Paste Values'!H22)/1000*VLOOKUP('Paste Values'!J22,waste_heat,4,FALSE)","v":{"$error":"#N/A"}},null,{"$f":"-('Paste Values'!E22*'Paste Values'!H22-'Paste Values'!F22*'Paste Values'!I22)/1000*'Paste Values'!D22*(1-0.25)*0.7*0.23*0.95/0.75*0.68*0.003412","v":0},null,null,null,null,null,null,null,null,null,null,null,null,null,null,null,null,null,null,4,96]
[{"$f":"('Paste Values'!D23*'Paste Values'!G23-'Paste Values'!E23*'Paste Values'!H23)/1000*'Paste Values'!C23*VLOOKUP('Paste Values'!J23,waste_heat,3,FALSE)","v":{"$error":"#VALUE!"}},{"$f":"('Paste Values'!D23*'Paste Values'!G23-'Paste Values'!E23*'Paste Values'!H23)/1000*VLOOKUP('Paste Values'!J23,waste_heat,4,FALSE)","v":{"$error":"#N/A"}},null,{"$f":"-('Paste Values'!E23*'Paste Values'!H23-'Paste Values'!F23*'Paste Values'!I23)/1000*'Paste Values'!D23*(1-0.25)*0.7*0.23*0.95/0.75*0.68*0.003412","v":0},null,null,null,null,null,null,null,null,null,null,null,null,null,null,null,null,null,null,5,95]
[{"$f":"('Paste Values'!D24*'Paste Values'!G24-'Paste Values'!E24*'Paste Values'!H24)/1000*'Paste Values'!C24*VLOOKUP('Paste Values'!J24,waste_heat,3,FALSE)","v":{"$error":"#VALUE!"}},{"$f":"('Paste Values'!D24*'Paste Values'!G24-'Paste Values'!E24*'Paste Values'!H24)/1000*VLOOKUP('Paste Values'!J24,waste_heat,4,FALSE)","v":{"$error":"#N/A"}},null,{"$f":"-('Paste Values'!E24*'Paste Values'!H24-'Paste Values'!F24*'Paste Values'!I24)/1000*'Paste Values'!D24*(1-0.25)*0.7*0.23*0.95/0.75*0.68*0.003412","v":0},null,null,null,null,null,null,null,null,null,null,null,null,null,null,null,null,null,null,6,94]
[{"$f":"'Paste Values'!A26","v":{"$error":"#VALUE!"}},null,null,null,null,null,null,null,null,null,null,null,null,null,null,null,null,null,null,null,null,null,7,93]
["kWh","kW","MMBtu",null,null,null,null,null,null,null,null,null,null,null,null,null,null,null,null,null,null,null,8,92]
[{"$f":"'Paste Values'!C27/1000*'Paste Values'!D27*0.3*1.113","v":{"$error":"#VALUE!"}},{"$f":"'Paste Values'!C27/1000*0.3*1.252","v":0},null,{"$f":"-B27*0.00065","v":0},null,null,null,null,null,null,null,null,null,null,null,null,null,null,null,null,null,null,9,91]
[{"$f":"'Paste Values'!C28/1000*'Paste Values'!D28*0.3*1.113","v":{"$error":"#VALUE!"}},{"$f":"'Paste Values'!C28/1000*0.3*1.252","v":0},null,{"$f":"-B28*0.00065","v":0},null,null,null,null,null,null,null,null,null,null,null,null,null,null,null,null,null,null,10,90]
[{"$f":"'Paste Values'!C29/1000*'Paste Values'!D29*0.3*1.113","v":{"$error":"#VALUE!"}},{"$f":"'Paste Values'!C29/1000*0.3*1.252","v":0},null,{"$f":"-B29*0.00065","v":0},null,null,null,null,null,null,null,null,null,null,null,null,null,null,null,null,null,null,11,89]
[{"$f":"'Paste Values'!C30/1000*'Paste Values'!D30*0.3*1.113","v":{"$error":"#VALUE!"}},{"$f":"'Paste Values'!C30/1000*0.3*1.252","v":0},null,{"$f":"-B30*0.00065","v":0},null,null,null,null,null,null,null,null,null,null,null,null,null,null,null,null,null,null,12,88]
[{"$f":"'Paste Values'!C31/1000*'Paste Values'!D31*0.3*1.113","v":{"$error":"#VALUE!"}},{"$f":"'Paste Values'!C31/1000*0.3*1.252","v":0},null,{"$f":"-B31*0.00065","v":0},null,null,null,null,null,null,null,null,null,null,null,null,null,null,null,null,null,null,13,87]
["Space Heating",null,null,null,null,null,null,null,null,null,null,null,null,null,null,null,null,null,null,null,null,null,14,86]
["kWh","kW","MMBtu",null,null,null,null,null,null,null,null,null,null,null,null,null,null,null,null,null,null,null,15,85]
[{"$f":"IF(AND('Paste Values'!A34=1,'Paste Values'!I34=1),924*'Paste Values'!H34,0)","v":0},{"$f":"IF(A34>0,0.189*'Paste Values'!H34,0)","v":0},{"$f":"('Paste Values'!E34*VLOOKUP('Paste Values'!D34,afue,2,FALSE)/10^6*2247*24/53)*(1/VLOOKUP('Paste Values'!C34,afue,2,FALSE)-1/VLOOKUP('Paste Values'!D34,afue,2,FALSE))*'Paste Values'!H34","v":{"$error":"#N/A"}},null,null,null,null,null,null,null,null,null,null,null,null,null,null,null,null,null,null,null,16,84]
[{"$f":"IF(AND('Paste Values'!A35=1,'Paste Values'!I35=1),924*'Paste Values'!H35,0)","v":0},{"$f":"IF(A35>0,0.189*'Paste Values'!H35,0)","v":0},{"$f":"('Paste Values'!E35*VLOOKUP('Paste Values'!D35,afue,2,FALSE)/10^6*2247*24/53)*(1/VLOOKUP('Paste Values'!C35,afue,2,FALSE)-1/VLOOKUP('Paste Values'!D35,afue,2,FALSE))*'Paste Values'!H35","v":{"$error":"#N/A"}},null,null,null,null,null,null,null,null,null,null,null,null,null,null,null,null,null,null,null,17,83]
[{"$f":"IF(AND('Paste Values'!A36=1,'Paste Values'!I36=1),924*'Paste Values'!H36,0)","v":0},{"$f":"IF(A36>0,0.189*'Paste Values'!H36,0)","v":0},{"$f":"('Paste Values'!E36*VLOOKUP('Paste Values'!D36,afue,2,FALSE)/10^6*2247*24/53)*(1/VLOOKUP('Paste Values'!C36,afue,2,FALSE)-1/VLOOKUP('Paste Values'!D36,afue,2,FALSE))*'Paste Values'!H36","v":{"$error":"#N/A"}},null,null,null,null,null,null,null,null,null,null,null,null,null,null,null,null,null,null,null,18,82]
["Air Conditioning",null,null,null,null,null,null,null,null,null,null,null,null,null,null,null,null,null,null,null,null,null,19,81]
["Room Air Conditioner",null,null,null,null,null,null,null,null,null,null,null,null,null,null,null,null,null,null,null,null,null,20,80]
["kWh","kW","MMBtu",null,null,null,null,null,null,null,null,null,null,null,null,null,null,null,null,null,null,null,21,79]
[{"$f":"'Paste Values'!B39*(1/'Paste Values'!E39-1/'Paste Values'!F39)*'Paste Values'!D39*325/10^3","v":{"$error":"#DIV/0!"}},{"$f":"'Paste Values'!B39*(1/'Paste Values'!E39-1/'Paste Values'!F39)*'Paste Values'!D39/10^3","v":{"$error":"#DIV/0!"}},0,null,null,null,null,null,null,null,null,null,null,null,null,null,null,null,null,null,null,null,22,78]
["Central Unitary/Split System, PTAC",null,null,null,null,null,null,null,null,null,null,null,null,null,null,null,null,null,null,null,null,null,23,77]
["kWh","kW","MMBtu",null,null,null,null,null,null,null,null,null,null,null,null,null,null,null,null,null,null,null,24,76]
[{"$f":"'Paste Values'!D42*(1/'Paste Values'!H42-1/'Paste Values'!I42)*1823/1000*'Paste Values'!E42","v":{"$error":"#DIV/0!"}},{"$f":"'Paste Values'!D42*(1/'Paste Values'!F42-1/'Paste Values'!G42)/10^3*'Paste Values'!E42","v":{"$error":"#DIV/0!"}},0,null,null,null,null,null,null,null,null,null,null,null,null,null,null,null,null,null,null,null,25,75]
["Chiller",null,null,null,null,null,null,null,null,null,null,null,null,null,null,null,null,null,null,null,null,null,26,74]
["kWh","kW","MMBtu",null,null,null,null,null,null,null,null,null,null,null,null,null,null,null,null,null,null,null,27,73]
[{"$f":"'Paste Values'!B46*(12/'Paste Values'!E46-12/'Paste Values'!F46)*1823*'Paste Values'!J46","v":{"$error":"#DIV/0!"}},{"$f":"'Paste Values'!B46*(IF('Paste Values'!C46<4,'Paste Values'!C46,12/'Paste Values'!C46)-IF('Paste Values'!D46<4,'Paste Values'!D46,12/'Paste Values'!D46))*'Paste Values'!J46","v":0},0,null,null,null,null,null,null,null,null,null,null,null,null,null,null,null,null,null,null,null,28,72]
[{"$f":"'Paste Values'!B47*(12/'Paste Values'!E47-12/'Paste Values'!F47)*1823*'Paste Values'!J47","v":{"$error":"#DIV/0!"}},{"$f":"'Paste Values'!B47*(IF('Paste Values'!C47<4,'Paste Values'!C47,12/'Paste Values'!C47)-IF('Paste Values'!D47<4,'Paste Values'!D47,12/'Paste Values'!D47))*'Paste Values'!J47","v":0},0,null,null,null,null,null,null,null,null,null,null,null,null,null,null,null,null,null,null,null,29,71]
[{"$f":"'Paste Values'!B48*(12/'Paste Values'!E48-12/'Paste Values'!F48)*1823*'Paste Values'!J48","v":{"$error":"#DIV/0!"}},{"$f":"'Paste Values'!B48*(IF('Paste Values'!C48<4,'Paste Values'!C48,12/'Paste Values'!C48)-IF('Paste Values'!D48<4,'Paste Values'!D48,12/'Paste Values'!D48))*'Paste Values'!J48","v":0},0,null,null,null,null,null,null,null,null,null,null,null,null,null,null,null,null,null,null,null,30,70]
["Heat Pump",null,null,null,null,null,null,null,null,null,null,null,null,null,null,"EER base","SEER base","COP base","HSPF base"]
["kWh","kW","MMBtu",null,null,null,null,null,null,null,null,null,null,1,"Air Source",11,14,{"$f":"8/3.412","v":2.3446658851113718},{"$f":"R50*3.412","v":8}]
[{"$f":"('Paste Values'!C52*744*(1/VLOOKUP('Paste Values'!A52,heat_pump,4,FALSE)-1/'Paste Values'!G52)/10^3+'Paste Values'!B52*866*((1/VLOOKUP('Paste Values'!A52,heat_pump,6,FALSE)-1/('Paste Values'!F52*3.412))/10^3))*'Paste Values'!D52","v":{"$error":"#N/A"}},{"$f":"('Paste Values'!C52*(1/VLOOKUP('Paste Values'!A52,heat_pump,3,FALSE)-1/'Paste Values'!G52)/10^3)*'Paste Values'!D52","v":{"$error":"#N/A"}},0,null,null,null,null,null,null,null,null,null,null,2,"Water Source",12,{"$f":"P51","v":12},4.2,{"$f":"R51*3.412","v":14.330400000000001}]
[{"$f":"('Paste Values'!C53*744*(1/VLOOKUP('Paste Values'!A53,heat_pump,4,FALSE)-1/'Paste Values'!G53)/10^3+'Paste Values'!B53*866*((1/VLOOKUP('Paste Values'!A53,heat_pump,6,FALSE)-1/('Paste Values'!F53*3.412))/10^3))*'Paste Values'!D53","v":{"$error":"#N/A"}},{"$f":"('Paste Values'!C53*(1/VLOOKUP('Paste Values'!A53,heat_pump,3,FALSE)-1/'Paste Values'!G53)/10^3)*'Paste Values'!D53","v":{"$error":"#N/A"}},0,null,null,null,null,null,null,null,null,null,null,3,"Ductless Mini Split",12.2,14,{"$f":"8.2/3.412","v":2.4032825322391558},{"$f":"R52*3.412","v":8.1999999999999993}]
[{"$f":"('Paste Values'!C54*744*(1/VLOOKUP('Paste Values'!A54,heat_pump,4,FALSE)-1/'Paste Values'!G54)/10^3+'Paste Values'!B54*866*((1/VLOOKUP('Paste Values'!A54,heat_pump,6,FALSE)-1/('Paste Values'!F54*3.412))/10^3))*'Paste Values'!D54","v":{"$error":"#N/A"}},{"$f":"('Paste Values'!C54*(1/VLOOKUP('Paste Values'!A54,heat_pump,3,FALSE)-1/'Paste Values'!G54)/10^3)*'Paste Values'!D54","v":{"$error":"#N/A"}},0,null,null,null,null,null,null,null,null,null,null,4,"Packaged Terminal",{"$f":"14-(0.3*'Paste Values'!C52/10^3)","v":14},{"$f":"P53","v":14},{"$f":"3.2-(0.026*'Paste Values'!B52/10^3)","v":3.2},10.9184]
["Thermostat"]
["kWh","kW","MMBtu",null,null,null,null,null,null,null,null,null,null,null,null,"lifetime","kWh","kW","MMBtu",null,{"$f":"CONCATENATE(IF('Paste Values'!B57=\"\",\"x\",'Paste Values'!B57),IF('Paste Values'!C57=\"\",\"x\",'Paste Values'!C57))","v":"00"},"kWh","kW","Loadshape"]
[{"$f":"VLOOKUP('Paste Values'!A57,thermo,4,FALSE)*'Paste Values'!D57","v":{"$error":"#N/A"}},{"$f":"VLOOKUP('Paste Values'!A57,thermo,5,FALSE)*'Paste Values'!D57","v":{"$error":"#N/A"}},{"$f":"VLOOKUP('Paste Values'!A57,thermo,6,FALSE)*'Paste Values'!D57","v":{"$error":"#N/A"}},null,null,null,null,null,null,null,null,null,null,1,"Advanced",10,{"$f":"VLOOKUP(U55,U56:W64,2,FALSE)","v":{"$error":"#N/A"}},{"$f":"VLOOKUP(U55,U56:W64,3,FALSE)","v":{"$error":"#N/A"}},{"$f":"IF('Paste Values'!B57=1,2.4,0)","v":0},null,"xx",0,0,72]
["Hot Water Efficiency",null,null,null,null,null,null,null,null,null,null,null,null,2,"Programmable",5,{"$f":"IF('Paste Values'!B57=2,175.6,0)","v":0},0,{"$f":"IF('Paste Values'!B57=1,1.63,0)","v":0},null,"x1",89.3,0.13,24]
["Water Heating",null,null,null,null,null,null,null,null,null,null,null,null,null,null,null,null,null,null,null,"x2",0,0,72]
["kWh","kW","MMBtu",null,null,null,null,null,null,null,"kW","kWh","MMBtu","H20",null,"life",{"$f":"VLOOKUP('Paste Values'!A57,'Project Performance'!N56:P57,3,FALSE)","v":{"$error":"#N/A"}},null,null,null,"1x",0,0,72]
[{"$f":"IF(OR('Paste Values'!A62=4,'Paste Values'!A62=\"\"),'Paste Values'!B62*46*365*8.33*(125-63.6)/3412*(1/'Paste Values'!C62-1/'Paste Values'!D62)*'Paste Values'!E62,0)","v":0},{"$f":"A60/3228","v":0},{"$f":"IF(OR('Paste Values'!A62=4,'Paste Values'!A62=\"\"),0,'Paste Values'!B62*46*365*8.33*(125-63.6)/10^6*(1/'Paste Values'!C62-1/'Paste Values'!D62)*'Paste Values'!E62)","v":{"$error":"#DIV/0!"}},null,null,null,null,null,1,"Low flow showerhead",3.2946,201.3,0.84099999999999997,2.9,null,null,null,null,null,null,"2x",259.8,0,47]
[{"$f":"IF(OR('Paste Values'!A63=4,'Paste Values'!A63=\"\"),'Paste Values'!B63*46*365*8.33*(125-63.6)/3412*(1/'Paste Values'!C63-1/'Paste Values'!D63)*'Paste Values'!E63,0)","v":0},{"$f":"A61/3228","v":0},{"$f":"IF(OR('Paste Values'!A63=4,'Paste Values'!A63=\"\"),0,'Paste Values'!B63*46*365*8.33*(125-63.6)/10^6*(1/'Paste Values'!C63-1/'Paste Values'!D63)*'Paste Values'!E63)","v":{"$error":"#DIV/0!"}},null,null,null,null,null,2,"Faucet aerator/flow restrictor",1.2,50,0.2,1.01,null,null,null,null,null,null,{"$f":"1&1","v":"11"},111.5,0.13,72]
[{"$f":"IF(OR('Paste Values'!A64=4,'Paste Values'!A64=\"\"),'Paste Values'!B64*46*365*8.33*(125-63.6)/3412*(1/'Paste Values'!C64-1/'Paste Values'!D64)*'Paste Values'!E64,0)","v":0},0,{"$f":"IF(OR('Paste Values'!A64=4,'Paste Values'!A64=\"\"),0,'Paste Values'!B64*46*365*8.33*(125-63.6)/10^6*(1/'Paste Values'!C64-1/'Paste Values'!D64)*'Paste Values'!E64)","v":{"$error":"#DIV/0!"}},null,null,null,null,null,3,"Shower Restriction Valve",0.74958999999999998,45.8,0.192,0.66,null,null,null,null,null,null,{"$f":"1&2","v":"12"},22.2,0,47]
["Aerators, Showerheads & Restrictor Valves",null,null,null,null,null,null,null,null,null,null,null,null,null,null,null,null,null,null,null,{"$f":"2&1","v":"21"},349.2,0.13,73]
["kWh","kW","MMBtu","H2O",null,null,null,null,null,null,null,null,null,null,null,"ESVG","DSVG",null,null,null,{"$f":"2&2","v":"22"},259.8,0,47]
[{"$f":"IF('Paste Values'!C68=1,VLOOKUP('Paste Values'!A68,flow,4,FALSE)*'Paste Values'!D68,0)","v":0},{"$f":"IF('Paste Values'!C68=1,VLOOKUP('Paste Values'!A68,flow,3,FALSE)*'Paste Values'!D68,0)","v":0},{"$f":"IF('Paste Values'!C68=2,VLOOKUP('Paste Values'!A68,flow,5,FALSE)*'Paste Values'!D68,0)","v":0},{"$f":"VLOOKUP('Paste Values'!A68,flow,6,FALSE)*'Paste Values'!F68","v":{"$error":"#N/A"}},null,null,null,null,null,null,"kW","kWh","MMBtu",null,null,"kWh/hp ","kW/hp","Loadshape",null,null,null,null,null,{"$f":"IF('Paste Values'!A54=2,47,VLOOKUP('Project Performance'!U55,'Project Performance'!U56:X64,4,FALSE))","v":{"$error":"#N/A"}}]
[{"$f":"IF('Paste Values'!C69=1,VLOOKUP('Paste Values'!A69,flow,4,FALSE)*'Paste Values'!D69,0)","v":0},{"$f":"IF('Paste Values'!C69=1,VLOOKUP('Paste Values'!A69,flow,3,FALSE)*'Paste Values'!D69,0)","v":0},{"$f":"IF('Paste Values'!C69=2,VLOOKUP('Paste Values'!A69,flow,5,FALSE)*'Paste Values'!D69,0)","v":0},{"$f":"VLOOKUP('Paste Values'!A69,flow,6,FALSE)*'Paste Values'!F69","v":{"$error":"#N/A"}},null,null,null,null,null,null,{"$f":"0.000294/6","v":4.8999999999999998E-5},{"$f":"24.9/6","v":4.1499999999999995},{"$f":"0.017/6","v":2.8333333333333335E-3},1,"Supply Fans ",2033,0.28599999999999998,52]
[{"$f":"IF('Paste Values'!C70=1,VLOOKUP('Paste Values'!A70,flow,4,FALSE)*'Paste Values'!D70,0)","v":0},{"$f":"IF('Paste Values'!C70=1,VLOOKUP('Paste Values'!A70,flow,3,FALSE)*'Paste Values'!D70,0)","v":0},{"$f":"IF('Paste Values'!C70=2,VLOOKUP('Paste Values'!A70,flow,5,FALSE)*'Paste Values'!D70,0)","v":0},{"$f":"VLOOKUP('Paste Values'!A70,flow,6,FALSE)*'Paste Values'!F70","v":{"$error":"#N/A"}},null,null,null,null,null,null,1.289E-2,113,{"$f":"L67*(3412*0.98)/0.78/10^6","v":0.48441651282051273},2,"Return Fans ",1788,0.29699999999999999,53]
[{"$f":"IF('Paste Values'!C71=1,VLOOKUP('Paste Values'!A71,flow,4,FALSE)*'Paste Values'!D71,0)","v":0},{"$f":"IF('Paste Values'!C71=1,VLOOKUP('Paste Values'!A71,flow,3,FALSE)*'Paste Values'!D71,0)","v":0},{"$f":"IF('Paste Values'!C71=2,VLOOKUP('Paste Values'!A71,flow,5,FALSE)*'Paste Values'!D71,0)","v":0},{"$f":"VLOOKUP('Paste Values'!A71,flow,6,FALSE)*'Paste Values'!F71","v":{"$error":"#N/A"}},null,null,null,null,null,null,null,null,null,3,"Cooling Water Pumps ",1633,0.185,56]
[null,"kWh","kW","MMBtu",null,null,null,null,null,null,null,null,null,4,"Hot Water Pumps ",1548,9.6000000000000002E-2,75]
["Pipe Wrap",{"$f":"IF('Paste Values'!C74=1,'Paste Values'!B74*'Project Performance'!L66,0)","v":0},{"$f":"IF('Paste Values'!C74=1,'Paste Values'!B74*'Project Performance'!K66,0)","v":0},{"$f":"IF('Paste Values'!C74=2,'Paste Values'!B74*'Project Performance'!M66,0)","v":0},null,null,null,null,null,null,null,null,null,5,"WSHP Circulation Pumps ",2562,0.23400000000000001,76]
["Tank Insulation",{"$f":"IF('Paste Values'!C75=1,'Paste Values'!B75*'Project Performance'!L67,0)","v":0},{"$f":"IF('Paste Values'!C75=1,'Paste Values'!B75*'Project Performance'!K67,0)","v":0},{"$f":"IF('Paste Values'!C75=2,'Paste Values'!B75*'Project Performance'!M67,0)","v":0}]
["Variable Frequency Drives"]
["kWh","kW","MMBtu",null,null,null,null,null,null,null,null,null,null,null,null,"kWh","kW"]
[{"$f":"VLOOKUP('Paste Values'!A79,vfd,3,FALSE)*'Paste Values'!B79*'Paste Values'!C79","v":{"$error":"#N/A"}},{"$f":"VLOOKUP('Paste Values'!A79,vfd,4,FALSE)*'Paste Values'!B79*'Paste Values'!C79","v":{"$error":"#N/A"}},0,null,null,null,null,null,null,null,null,null,null,1,"Energy Star/CEE Tier 1",685.2,0.111]
[{"$f":"VLOOKUP('Paste Values'!A80,vfd,3,FALSE)*'Paste Values'!B80*'Paste Values'!C80","v":{"$error":"#N/A"}},{"$f":"VLOOKUP('Paste Values'!A80,vfd,4,FALSE)*'Paste Values'!B80*'Paste Values'!C80","v":{"$error":"#N/A"}},0,null,null,null,null,null,null,null,null,null,null,2,"CEE Tier 2",710.8,0.115]
[{"$f":"VLOOKUP('Paste Values'!A81,vfd,3,FALSE)*'Paste Values'!B81*'Paste Values'!C81","v":{"$error":"#N/A"}},{"$f":"VLOOKUP('Paste Values'!A81,vfd,4,FALSE)*'Paste Values'!B81*'Paste Values'!C81","v":{"$error":"#N/A"}},0,null,null,null,null,null,null,null,null,null,null,3,"CEE Tier 3",736.6,0.11899999999999999]
[{"$f":"VLOOKUP('Paste Values'!A82,vfd,3,FALSE)*'Paste Values'!B82*'Paste Values'!C82","v":{"$error":"#N/A"}},{"$f":"VLOOKUP('Paste Values'!A82,vfd,4,FALSE)*'Paste Values'!B82*'Paste Values'!C82","v":{"$error":"#N/A"}},0]
[{"$f":"VLOOKUP('Paste Values'!A83,vfd,3,FALSE)*'Paste Values'!B83*'Paste Values'!C83","v":{"$error":"#N/A"}},{"$f":"VLOOKUP('Paste Values'!A83,vfd,4,FALSE)*'Paste Values'!B83*'Paste Values'!C83","v":{"$error":"#N/A"}},0]
[{"$f":"VLOOKUP('Paste Values'!A84,vfd,3,FALSE)*'Paste Values'!B84*'Paste Values'!C84","v":{"$error":"#N/A"}},{"$f":"VLOOKUP('Paste Values'!A84,vfd,4,FALSE)*'Paste Values'!B84*'Paste Values'!C84","v":{"$error":"#N/A"}},0]
["Kitchen Appliances"]
["Refrigerator"]
["kWh","kW","MMBtu"]
[{"$f":"VLOOKUP('Paste Values'!A89,fridge,3,FALSE)*'Paste Values'!B89","v":{"$error":"#N/A"}},{"$f":"VLOOKUP('Paste Values'!A89,fridge,4,FALSE)*'Paste Values'!B89","v":{"$error":"#N/A"}},0]
[{"$f":"VLOOKUP('Paste Values'!A90,fridge,3,FALSE)*'Paste Values'!B90","v":{"$error":"#N/A"}},{"$f":"VLOOKUP('Paste Values'!A90,fridge,4,FALSE)*'Paste Values'!B90","v":{"$error":"#N/A"}},0]
[{"$f":"VLOOKUP('Paste Values'!A91,fridge,3,FALSE)*'Paste Values'!B91","v":{"$error":"#N/A"}},{"$f":"VLOOKUP('Paste Values'!A91,fridge,4,FALSE)*'Paste Values'!B91","v":{"$error":"#N/A"}},0]
["Ventilation"]
["Exhaust-only, in-unit"]
["kWh","kW","MMBtu"]
[{"$f":"'Paste Values'!B96*('Paste Values'!C96/2.8-'Paste Values'!D96)/10^3*'Paste Values'!E96","v":0},{"$f":"('Paste Values'!C96/2.8-'Paste Values'!D96)/10^3*'Paste Values'!E96","v":0},0]
[{"$f":"'Paste Values'!B97*('Paste Values'!C97/2.8-'Paste Values'!D97)/10^3*'Paste Values'!E97","v":0},{"$f":"('Paste Values'!C97/2.8-'Paste Values'!D97)/10^3*'Paste Values'!E97","v":0},0]